﻿Posting date,Supplier number,Supplier name,Expense type,Department,Amount
27/10/2021,1249077,The Advocacy Project,Hired and Contracted Services,ASC Procurement and Business Intelligenc,"51,294.00"
05/11/2021,1249077,The Advocacy Project,Hired and Contracted Services,ASC Procurement and Business Intelligenc,"51,294.00"
23/12/2021,1243825,4-5 Grays Inn Square,Legal Costs,Adult Social Care Finance and Resources,"2,000.00"
13/10/2021,1257745,Russell Scott Entertainment Ltd,B*Contract Claims/Provisions,Adult Social Care Finance and Resources,"3,750.00"
01/10/2021,1245648,Star Boarding Kennels,Other premises related costs,Adult Social Care Finance and Resources,879.60
21/10/2021,1245228,Pohwer,Hired and Contracted Services,Adult Social Care Finance and Resources,"4,227.04"
03/12/2021,1245228,Pohwer,Hired and Contracted Services,Adult Social Care Finance and Resources,"3,021.23"
30/12/2021,1245228,Pohwer,Hired and Contracted Services,Adult Social Care Finance and Resources,"2,282.68"
04/10/2021,1251196,Royal Borough of Kensington and,B*Payments to OLAs - Southampton City Co,Adult Social Care Finance and Resources,"316,208.00"
20/10/2021,1283007,Allergy Cosmos Ltd,Hired and Contracted Services,Adult Social Care Operations,"40,042.97"
21/12/2021,1255843,A.I. Care Services Ltd,Grant Aid and Donations,Adult Social Care Operations,"6,100.00"
03/11/2021,1245982,Anchor Trust,Grant Aid and Donations,Adult Social Care Operations,"10,201.00"
20/12/2021,1245982,Anchor Trust,Grant Aid and Donations,Adult Social Care Operations,"9,094.05"
20/12/2021,1245982,Anchor Trust,Grant Aid and Donations,Adult Social Care Operations,"8,000.00"
20/12/2021,1245982,Anchor Trust,Grant Aid and Donations,Adult Social Care Operations,"12,798.63"
21/12/2021,1245982,Anchor Trust,Grant Aid and Donations,Adult Social Care Operations,900.00
21/12/2021,1243931,Ashbourne Healthcare Services,Grant Aid and Donations,Adult Social Care Operations,"14,700.00"
20/12/2021,1245091,Care UK Community Partnerships Ltd,Grant Aid and Donations,Adult Social Care Operations,"25,690.69"
20/12/2021,1245091,Care UK Community Partnerships Ltd,Grant Aid and Donations,Adult Social Care Operations,"36,156.14"
21/12/2021,1245091,Care UK Community Partnerships Ltd,Grant Aid and Donations,Adult Social Care Operations,"2,542.50"
21/12/2021,1245091,Care UK Community Partnerships Ltd,Grant Aid and Donations,Adult Social Care Operations,"22,600.00"
21/12/2021,1276470,Certitude (Support for Living),Grant Aid and Donations,Adult Social Care Operations,"4,000.00"
21/12/2021,1276470,Certitude (Support for Living),Grant Aid and Donations,Adult Social Care Operations,"5,000.00"
21/12/2021,1259597,Ethica Services LTD,Grant Aid and Donations,Adult Social Care Operations,"52,491.66"
21/12/2021,1276119,Feelcare Domiciliary Services Ltd,Grant Aid and Donations,Adult Social Care Operations,"1,202.20"
06/10/2021,1283543,Florence Staffing Ltd,Payments to Private Contractors,Adult Social Care Operations,"9,680.00"
03/11/2021,1250680,Full Of Life,Grant Aid and Donations,Adult Social Care Operations,910.00
01/11/2021,1273817,GCH Alan Morkill House Ltd,Grant Aid and Donations,Adult Social Care Operations,"7,267.03"
03/11/2021,1273817,GCH Alan Morkill House Ltd,Grant Aid and Donations,Adult Social Care Operations,"7,988.04"
20/12/2021,1273817,GCH Alan Morkill House Ltd,Grant Aid and Donations,Adult Social Care Operations,"26,877.13"
21/12/2021,1273817,GCH Alan Morkill House Ltd,Grant Aid and Donations,Adult Social Care Operations,"16,800.00"
21/12/2021,1273817,GCH Alan Morkill House Ltd,Grant Aid and Donations,Adult Social Care Operations,"19,097.50"
21/12/2021,1273817,GCH Alan Morkill House Ltd,Grant Aid and Donations,Adult Social Care Operations,"1,890.00"
16/11/2021,1247257,Health Vision Uk,Other Recovered Costs,Adult Social Care Operations,"7,913.89"
21/12/2021,1247257,Health Vision Uk,Grant Aid and Donations,Adult Social Care Operations,"119,502.00"
20/12/2021,1247650,London Care Ltd,Grant Aid and Donations,Adult Social Care Operations,"4,903.64"
21/12/2021,1247650,London Care Ltd,Grant Aid and Donations,Adult Social Care Operations,"140,487.04"
21/12/2021,1247650,London Care Ltd,Grant Aid and Donations,Adult Social Care Operations,"23,242.50"
21/12/2021,1247853,Look Ahead Housing & Care Ltd,Grant Aid and Donations,Adult Social Care Operations,"2,500.00"
21/12/2021,1259132,MMR Home Care LTD,Grant Aid and Donations,Adult Social Care Operations,"9,000.00"
21/12/2021,1266168,Midshire Care LTD,Grant Aid and Donations,Adult Social Care Operations,"2,304.21"
20/12/2021,1274153,Notting Hill Genesis,Grant Aid and Donations,Adult Social Care Operations,"18,000.00"
20/12/2021,1274153,Notting Hill Genesis,Grant Aid and Donations,Adult Social Care Operations,908.86
21/12/2021,1274153,Notting Hill Genesis,Grant Aid and Donations,Adult Social Care Operations,"10,000.00"
21/12/2021,1274153,Notting Hill Genesis,Grant Aid and Donations,Adult Social Care Operations,"4,307.88"
20/12/2021,1244971,Octavia Housing (Main Account),Grant Aid and Donations,Adult Social Care Operations,"2,204.03"
21/12/2021,1248618,Riverside Echg,Grant Aid and Donations,Adult Social Care Operations,"2,000.00"
21/12/2021,1248618,Riverside Echg,Grant Aid and Donations,Adult Social Care Operations,"2,000.00"
08/12/2021,1279054,Safeairquality Limited,Payments to Private Contractors,Adult Social Care Operations,"4,320.00"
21/12/2021,1279054,Safeairquality Limited,Payments to Private Contractors,Adult Social Care Operations,"2,160.00"
31/12/2021,1279054,Safeairquality Limited,Payments to Private Contractors,Adult Social Care Operations,"8,640.00"
21/12/2021,1248843,Sage Care Ltd,Grant Aid and Donations,Adult Social Care Operations,"100,903.74"
01/11/2021,1243532,Sanctuary Care Ltd,Grant Aid and Donations,Adult Social Care Operations,"20,795.00"
01/11/2021,1243532,Sanctuary Care Ltd,Grant Aid and Donations,Adult Social Care Operations,"26,111.86"
01/11/2021,1243532,Sanctuary Care Ltd,Grant Aid and Donations,Adult Social Care Operations,"9,826.00"
20/12/2021,1243532,Sanctuary Care Ltd,Grant Aid and Donations,Adult Social Care Operations,"13,438.57"
20/12/2021,1243532,Sanctuary Care Ltd,Grant Aid and Donations,Adult Social Care Operations,"7,359.21"
20/12/2021,1243532,Sanctuary Care Ltd,Grant Aid and Donations,Adult Social Care Operations,"12,798.63"
21/12/2021,1243532,Sanctuary Care Ltd,Grant Aid and Donations,Adult Social Care Operations,"8,000.00"
21/12/2021,1243532,Sanctuary Care Ltd,Grant Aid and Donations,Adult Social Care Operations,"5,229.08"
21/12/2021,1243532,Sanctuary Care Ltd,Grant Aid and Donations,Adult Social Care Operations,"9,094.05"
21/12/2021,1243532,Sanctuary Care Ltd,Grant Aid and Donations,Adult Social Care Operations,"8,400.00"
21/12/2021,1243532,Sanctuary Care Ltd,Grant Aid and Donations,Adult Social Care Operations,"9,548.75"
21/12/2021,1243532,Sanctuary Care Ltd,Grant Aid and Donations,Adult Social Care Operations,900.00
21/12/2021,1243532,Sanctuary Care Ltd,Grant Aid and Donations,Adult Social Care Operations,"4,600.00"
21/12/2021,1243532,Sanctuary Care Ltd,Grant Aid and Donations,Adult Social Care Operations,517.50
21/12/2021,1243532,Sanctuary Care Ltd,Grant Aid and Donations,Adult Social Care Operations,945.00
21/12/2021,1245584,Single Homeless Project,Grant Aid and Donations,Adult Social Care Operations,"2,000.00"
21/12/2021,1248913,Smithfield Health & Social Care,Grant Aid and Donations,Adult Social Care Operations,"33,887.93"
03/11/2021,1243548,St Georges Nursing Home Ltd,Grant Aid and Donations,Adult Social Care Operations,"8,047.10"
20/12/2021,1243548,St Georges Nursing Home Ltd,Grant Aid and Donations,Adult Social Care Operations,"10,003.45"
20/12/2021,1243548,St Georges Nursing Home Ltd,Grant Aid and Donations,Adult Social Care Operations,"14,078.50"
21/12/2021,1243548,St Georges Nursing Home Ltd,Grant Aid and Donations,Adult Social Care Operations,"8,800.00"
21/12/2021,1243548,St Georges Nursing Home Ltd,Grant Aid and Donations,Adult Social Care Operations,990.00
21/12/2021,1245636,St Mungos Broadway (Grants &,Grant Aid and Donations,Adult Social Care Operations,"2,500.00"
21/12/2021,1245825,Sweet Tree Home Care Services,Grant Aid and Donations,Adult Social Care Operations,"1,952.00"
12/10/2021,1282242,Traffik UK LTD,Cleaning services,Adult Social Care Operations,"1,482.00"
03/11/2021,1249232,Vincentian Care Plus,Grant Aid and Donations,Adult Social Care Operations,"6,597.65"
20/12/2021,1249232,Vincentian Care Plus,Grant Aid and Donations,Adult Social Care Operations,"3,402.95"
21/12/2021,1249232,Vincentian Care Plus,Grant Aid and Donations,Adult Social Care Operations,"75,502.50"
21/12/2021,1249232,Vincentian Care Plus,Grant Aid and Donations,Adult Social Care Operations,"16,129.49"
01/11/2021,1249291,Westminster Society,Grant Aid and Donations,Adult Social Care Operations,"20,448.80"
03/11/2021,1249291,Westminster Society,Grant Aid and Donations,Adult Social Care Operations,"5,262.00"
16/11/2021,1249291,Westminster Society,Other Recovered Costs,Adult Social Care Operations,"5,769.00"
20/12/2021,1249291,Westminster Society,Grant Aid and Donations,Adult Social Care Operations,"1,599.83"
20/12/2021,1249291,Westminster Society,Grant Aid and Donations,Adult Social Care Operations,"1,599.83"
20/12/2021,1249291,Westminster Society,Grant Aid and Donations,Adult Social Care Operations,"13,725.10"
21/12/2021,1249291,Westminster Society,Grant Aid and Donations,Adult Social Care Operations,"1,136.76"
21/12/2021,1249291,Westminster Society,Grant Aid and Donations,Adult Social Care Operations,"1,000.00"
21/12/2021,1249291,Westminster Society,Grant Aid and Donations,Adult Social Care Operations,"1,000.00"
21/12/2021,1249291,Westminster Society,Grant Aid and Donations,Adult Social Care Operations,800.00
21/12/2021,1249291,Westminster Society,Grant Aid and Donations,Adult Social Care Operations,800.00
21/12/2021,1249291,Westminster Society,Grant Aid and Donations,Adult Social Care Operations,"1,279.86"
21/12/2021,1249291,Westminster Society,Grant Aid and Donations,Adult Social Care Operations,"1,136.76"
21/12/2021,1249291,Westminster Society,Grant Aid and Donations,Adult Social Care Operations,909.40
21/12/2021,1249291,Westminster Society,Grant Aid and Donations,Adult Social Care Operations,909.40
21/12/2021,1249291,Westminster Society,Grant Aid and Donations,Adult Social Care Operations,"16,200.00"
21/12/2021,1249291,Westminster Society,Grant Aid and Donations,Adult Social Care Operations,"1,279.86"
21/12/2021,1249291,Westminster Society,Grant Aid and Donations,Adult Social Care Operations,"2,895.68"
03/11/2021,1243566,Yarrow Housing Ltd,Grant Aid and Donations,Adult Social Care Operations,"7,000.00"
20/12/2021,1243566,Yarrow Housing Ltd,Grant Aid and Donations,Adult Social Care Operations,"1,919.80"
21/12/2021,1243566,Yarrow Housing Ltd,Grant Aid and Donations,Adult Social Care Operations,"1,364.11"
21/12/2021,1243566,Yarrow Housing Ltd,Grant Aid and Donations,Adult Social Care Operations,"1,200.00"
01/11/2021,1249317,Zocalo Ltd T/as Bluebird Care,Grant Aid and Donations,Adult Social Care Operations,"13,377.00"
20/12/2021,1249317,Zocalo Ltd T/as Bluebird Care,Grant Aid and Donations,Adult Social Care Operations,"1,838.86"
21/12/2021,1249317,Zocalo Ltd T/as Bluebird Care,Grant Aid and Donations,Adult Social Care Operations,"8,438.17"
21/12/2021,1249317,Zocalo Ltd T/as Bluebird Care,Grant Aid and Donations,Adult Social Care Operations,"8,715.94"
01/12/2021,1244309,Doro Care Ltd,###,Bi-Borough Director of Integrated Care,"8,600.00"
01/12/2021,1244309,Doro Care Ltd,###,Bi-Borough Director of Integrated Care,700.00
15/12/2021,1244309,Doro Care Ltd,###,Bi-Borough Director of Integrated Care,"1,408.00"
15/12/2021,1244309,Doro Care Ltd,###,Bi-Borough Director of Integrated Care,"1,444.00"
22/11/2021,1244670,Just Checking Ltd,Subscriptions,Bi-Borough Director of Integrated Care,"1,295.00"
19/10/2021,1273817,GCH Alan Morkill House Ltd,Hired and Contracted Services,Bi-Borough Director of Integrated Care,"364,008.00"
02/12/2021,1273817,GCH Alan Morkill House Ltd,Hired and Contracted Services,Bi-Borough Director of Integrated Care,"455,010.00"
17/12/2021,1273817,GCH Alan Morkill House Ltd,Hired and Contracted Services,Bi-Borough Director of Integrated Care,"364,008.00"
12/11/2021,1245595,Skyguard Ltd,Health and Safety Equipment,Bi-Borough Director of Integrated Care,"7,560.00"
21/12/2021,1245693,London Borough Of Hammersmith &,B*Payments to OLAs - Southampton City Co,Bi-Borough Director of Integrated Care,"38,309.21"
21/12/2021,1245693,London Borough Of Hammersmith &,B*Payments to OLAs - Southampton City Co,Bi-Borough Director of Integrated Care,"25,641.21"
10/12/2021,1243775,Royal Borough of Kensington &,B*Payments to OLAs - Southampton City Co,Bi-Borough Director of Integrated Care,"53,831.51"
10/12/2021,1243775,Royal Borough of Kensington &,B*Payments to OLAs - Southampton City Co,Bi-Borough Director of Integrated Care,"15,734.62"
10/12/2021,1243775,Royal Borough of Kensington &,B*Payments to OLAs - Southampton City Co,Bi-Borough Director of Integrated Care,"12,095.19"
21/12/2021,1245693,London Borough Of Hammersmith &,B*Payments to OLAs - Southampton City Co,Bi-Borough Director of Integrated Care,"4,146.45"
23/11/2021,1255843,A.I. Care Services Ltd,,Bi-Borough Director of Integrated Care,536.96
14/12/2021,1255843,A.I. Care Services Ltd,,Bi-Borough Director of Integrated Care,536.96
14/10/2021,1271174,ASPECTS 2 LIMITED,,Bi-Borough Director of Integrated Care,"8,234.40"
12/11/2021,1271174,ASPECTS 2 LIMITED,,Bi-Borough Director of Integrated Care,"8,234.40"
16/11/2021,1271174,ASPECTS 2 LIMITED,,Bi-Borough Director of Integrated Care,"16,468.80"
09/12/2021,1271174,ASPECTS 2 LIMITED,,Bi-Borough Director of Integrated Care,"8,234.40"
14/10/2021,1243851,Accomplish Group Ltd,,Bi-Borough Director of Integrated Care,"8,877.40"
14/10/2021,1243851,Accomplish Group Ltd,,Bi-Borough Director of Integrated Care,"8,877.40"
12/11/2021,1243851,Accomplish Group Ltd,,Bi-Borough Director of Integrated Care,"8,877.40"
12/11/2021,1243851,Accomplish Group Ltd,,Bi-Borough Director of Integrated Care,"8,877.40"
09/12/2021,1243851,Accomplish Group Ltd,,Bi-Borough Director of Integrated Care,"8,877.40"
09/12/2021,1243851,Accomplish Group Ltd,,Bi-Borough Director of Integrated Care,"8,877.40"
14/10/2021,1243435,Acorn Village,,Bi-Borough Director of Integrated Care,"5,221.08"
12/11/2021,1243435,Acorn Village,,Bi-Borough Director of Integrated Care,"5,221.08"
09/12/2021,1243435,Acorn Village,,Bi-Borough Director of Integrated Care,"5,221.08"
12/10/2021,1243931,Ashbourne Healthcare Services,,Bi-Borough Director of Integrated Care,"1,703.12"
12/10/2021,1243931,Ashbourne Healthcare Services,,Bi-Borough Director of Integrated Care,"1,703.22"
21/10/2021,1243931,Ashbourne Healthcare Services,,Bi-Borough Director of Integrated Care,"1,103.28"
21/10/2021,1243931,Ashbourne Healthcare Services,,Bi-Borough Director of Integrated Care,"1,103.29"
03/11/2021,1243931,Ashbourne Healthcare Services,,Bi-Borough Director of Integrated Care,"1,703.22"
02/12/2021,1243931,Ashbourne Healthcare Services,,Bi-Borough Director of Integrated Care,"1,061.33"
02/12/2021,1243931,Ashbourne Healthcare Services,,Bi-Borough Director of Integrated Care,"1,061.34"
23/12/2021,1243931,Ashbourne Healthcare Services,,Bi-Borough Director of Integrated Care,"1,455.67"
23/12/2021,1243931,Ashbourne Healthcare Services,,Bi-Borough Director of Integrated Care,"1,581.51"
14/10/2021,1243942,Aspens Charities,,Bi-Borough Director of Integrated Care,"7,000.00"
12/11/2021,1243942,Aspens Charities,,Bi-Borough Director of Integrated Care,"7,000.00"
09/12/2021,1243942,Aspens Charities,,Bi-Borough Director of Integrated Care,"7,000.00"
14/10/2021,1243961,Autism Anglia,,Bi-Borough Director of Integrated Care,"10,644.00"
12/11/2021,1243961,Autism Anglia,,Bi-Borough Director of Integrated Care,"10,644.00"
09/12/2021,1243961,Autism Anglia,,Bi-Borough Director of Integrated Care,"10,644.00"
14/10/2021,1243962,Autism London,,Bi-Borough Director of Integrated Care,"4,812.00"
14/10/2021,1243962,Autism London,,Bi-Borough Director of Integrated Care,685.52
12/11/2021,1243962,Autism London,,Bi-Borough Director of Integrated Care,"4,812.00"
12/11/2021,1243962,Autism London,,Bi-Borough Director of Integrated Care,685.52
09/12/2021,1243962,Autism London,,Bi-Borough Director of Integrated Care,685.52
09/12/2021,1243962,Autism London,,Bi-Borough Director of Integrated Care,"4,812.00"
21/10/2021,1246247,Blitz Home Environmental Cleaning,,Bi-Borough Director of Integrated Care,590.00
14/10/2021,1243444,Broadham Care Ltd,,Bi-Borough Director of Integrated Care,"6,324.00"
14/10/2021,1243444,Broadham Care Ltd,,Bi-Borough Director of Integrated Care,"1,400.00"
12/11/2021,1243444,Broadham Care Ltd,,Bi-Borough Director of Integrated Care,"1,400.00"
12/11/2021,1243444,Broadham Care Ltd,,Bi-Borough Director of Integrated Care,"6,324.00"
09/12/2021,1243444,Broadham Care Ltd,,Bi-Borough Director of Integrated Care,"1,400.00"
09/12/2021,1243444,Broadham Care Ltd,,Bi-Borough Director of Integrated Care,"6,324.00"
14/10/2021,1243445,Broadstreet House Limited,,Bi-Borough Director of Integrated Care,"4,096.00"
12/11/2021,1243445,Broadstreet House Limited,,Bi-Borough Director of Integrated Care,"4,096.00"
09/12/2021,1243445,Broadstreet House Limited,,Bi-Borough Director of Integrated Care,"4,096.00"
14/10/2021,1246286,Brunswick Supported Living,,Bi-Borough Director of Integrated Care,"2,629.28"
12/11/2021,1246286,Brunswick Supported Living,,Bi-Borough Director of Integrated Care,"2,629.28"
09/12/2021,1246286,Brunswick Supported Living,,Bi-Borough Director of Integrated Care,"2,629.28"
14/10/2021,1273390,CHILTERN SUPPORT & HOUSING LTD,,Bi-Borough Director of Integrated Care,"16,536.72"
12/11/2021,1273390,CHILTERN SUPPORT & HOUSING LTD,,Bi-Borough Director of Integrated Care,"16,536.72"
09/12/2021,1273390,CHILTERN SUPPORT & HOUSING LTD,,Bi-Borough Director of Integrated Care,"16,536.72"
14/10/2021,1244092,Cambrian Learning Disabilities Ltd,,Bi-Borough Director of Integrated Care,"5,690.00"
12/11/2021,1244092,Cambrian Learning Disabilities Ltd,,Bi-Borough Director of Integrated Care,"5,690.00"
09/12/2021,1244092,Cambrian Learning Disabilities Ltd,,Bi-Borough Director of Integrated Care,"5,690.00"
21/10/2021,1243795,Cambs & Peterborough Mental,B*Voluntary-Spot-V Dep-Enhanced - do not u,Bi-Borough Director of Integrated Care,568.14
10/11/2021,1243795,Cambs & Peterborough Mental,B*Voluntary-Spot-V Dep-Enhanced - do not u,Bi-Borough Director of Integrated Care,568.14
13/12/2021,1243795,Cambs & Peterborough Mental,B*Voluntary-Spot-V Dep-Enhanced - do not u,Bi-Borough Director of Integrated Care,568.14
14/10/2021,1246321,Camphill Village Trust,,Bi-Borough Director of Integrated Care,"3,981.08"
12/11/2021,1246321,Camphill Village Trust,,Bi-Borough Director of Integrated Care,"3,981.08"
09/12/2021,1246321,Camphill Village Trust,,Bi-Borough Director of Integrated Care,"3,981.08"
14/10/2021,1246324,Candour Care Services (Broadview),,Bi-Borough Director of Integrated Care,"7,434.92"
12/11/2021,1246324,Candour Care Services (Broadview),,Bi-Borough Director of Integrated Care,"7,434.92"
09/12/2021,1246324,Candour Care Services (Broadview),,Bi-Borough Director of Integrated Care,"7,434.92"
09/12/2021,1246327,Canterbury Oast Trust Ltd,,Bi-Borough Director of Integrated Care,"29,067.26"
14/10/2021,1259100,Care Assist Limited,,Bi-Borough Director of Integrated Care,"7,761.60"
14/10/2021,1259100,Care Assist Limited,,Bi-Borough Director of Integrated Care,"7,761.60"
12/11/2021,1259100,Care Assist Limited,,Bi-Borough Director of Integrated Care,"7,761.60"
12/11/2021,1259100,Care Assist Limited,,Bi-Borough Director of Integrated Care,"7,761.60"
09/12/2021,1259100,Care Assist Limited,,Bi-Borough Director of Integrated Care,"7,761.60"
09/12/2021,1259100,Care Assist Limited,,Bi-Borough Director of Integrated Care,"7,761.60"
14/10/2021,1246339,Caretech Community Services Ltd,,Bi-Borough Director of Integrated Care,"107,214.92"
14/10/2021,1246339,Caretech Community Services Ltd,,Bi-Borough Director of Integrated Care,"5,379.96"
14/10/2021,1246339,Caretech Community Services Ltd,,Bi-Borough Director of Integrated Care,"1,325.00"
12/11/2021,1246339,Caretech Community Services Ltd,,Bi-Borough Director of Integrated Care,"1,325.00"
12/11/2021,1246339,Caretech Community Services Ltd,,Bi-Borough Director of Integrated Care,"5,379.96"
12/11/2021,1246339,Caretech Community Services Ltd,,Bi-Borough Director of Integrated Care,"5,379.96"
12/11/2021,1246339,Caretech Community Services Ltd,,Bi-Borough Director of Integrated Care,987.40
09/12/2021,1246339,Caretech Community Services Ltd,,Bi-Borough Director of Integrated Care,"5,379.96"
09/12/2021,1246339,Caretech Community Services Ltd,,Bi-Borough Director of Integrated Care,"1,325.00"
09/12/2021,1246339,Caretech Community Services Ltd,,Bi-Borough Director of Integrated Care,"4,396.36"
09/12/2021,1246339,Caretech Community Services Ltd,,Bi-Borough Director of Integrated Care,"4,396.36"
09/12/2021,1246339,Caretech Community Services Ltd,,Bi-Borough Director of Integrated Care,"5,379.96"
09/12/2021,1246339,Caretech Community Services Ltd,,Bi-Borough Director of Integrated Care,987.40
14/10/2021,1276470,Certitude (Support for Living),,Bi-Borough Director of Integrated Care,"2,939.35"
14/10/2021,1276470,Certitude (Support for Living),,Bi-Borough Director of Integrated Care,"5,793.04"
14/10/2021,1276470,Certitude (Support for Living),,Bi-Borough Director of Integrated Care,"4,219.88"
14/10/2021,1276470,Certitude (Support for Living),,Bi-Borough Director of Integrated Care,"4,219.88"
14/10/2021,1276470,Certitude (Support for Living),,Bi-Borough Director of Integrated Care,"9,113.99"
14/10/2021,1276470,Certitude (Support for Living),,Bi-Borough Director of Integrated Care,"2,639.60"
14/10/2021,1276470,Certitude (Support for Living),,Bi-Borough Director of Integrated Care,"6,119.24"
14/10/2021,1276470,Certitude (Support for Living),,Bi-Borough Director of Integrated Care,"7,909.21"
12/11/2021,1276470,Certitude (Support for Living),,Bi-Borough Director of Integrated Care,"5,819.48"
12/11/2021,1276470,Certitude (Support for Living),,Bi-Borough Director of Integrated Care,"8,587.28"
12/11/2021,1276470,Certitude (Support for Living),,Bi-Borough Director of Integrated Care,"12,988.04"
12/11/2021,1276470,Certitude (Support for Living),,Bi-Borough Director of Integrated Care,"3,477.50"
12/11/2021,1276470,Certitude (Support for Living),,Bi-Borough Director of Integrated Care,"1,447.08"
12/11/2021,1276470,Certitude (Support for Living),,Bi-Borough Director of Integrated Care,"11,270.76"
12/11/2021,1276470,Certitude (Support for Living),,Bi-Borough Director of Integrated Care,"4,489.32"
12/11/2021,1276470,Certitude (Support for Living),,Bi-Borough Director of Integrated Care,"5,793.04"
12/11/2021,1276470,Certitude (Support for Living),,Bi-Borough Director of Integrated Care,"5,819.48"
09/12/2021,1276470,Certitude (Support for Living),,Bi-Borough Director of Integrated Care,"5,372.08"
09/12/2021,1276470,Certitude (Support for Living),,Bi-Borough Director of Integrated Care,"2,302.32"
09/12/2021,1276470,Certitude (Support for Living),,Bi-Borough Director of Integrated Care,"11,270.76"
09/12/2021,1276470,Certitude (Support for Living),,Bi-Borough Director of Integrated Care,"4,489.32"
09/12/2021,1276470,Certitude (Support for Living),,Bi-Borough Director of Integrated Care,"5,793.04"
09/12/2021,1276470,Certitude (Support for Living),,Bi-Borough Director of Integrated Care,"5,819.48"
09/12/2021,1276470,Certitude (Support for Living),,Bi-Borough Director of Integrated Care,"5,819.48"
09/12/2021,1276470,Certitude (Support for Living),,Bi-Borough Director of Integrated Care,"8,587.28"
09/12/2021,1276470,Certitude (Support for Living),,Bi-Borough Director of Integrated Care,"12,988.04"
14/10/2021,1244167,Choice Support,,Bi-Borough Director of Integrated Care,"8,936.00"
12/11/2021,1244167,Choice Support,,Bi-Borough Director of Integrated Care,"8,936.00"
09/12/2021,1244167,Choice Support,,Bi-Borough Director of Integrated Care,"8,936.00"
14/10/2021,1243458,Cocklebury Farmhouse Homes Ltd,,Bi-Borough Director of Integrated Care,"4,952.00"
14/10/2021,1243458,Cocklebury Farmhouse Homes Ltd,,Bi-Borough Director of Integrated Care,"5,536.00"
14/10/2021,1243458,Cocklebury Farmhouse Homes Ltd,,Bi-Borough Director of Integrated Care,"5,568.00"
14/10/2021,1243458,Cocklebury Farmhouse Homes Ltd,,Bi-Borough Director of Integrated Care,"6,408.00"
14/10/2021,1243458,Cocklebury Farmhouse Homes Ltd,,Bi-Borough Director of Integrated Care,"7,028.00"
12/11/2021,1243458,Cocklebury Farmhouse Homes Ltd,,Bi-Borough Director of Integrated Care,"6,408.00"
12/11/2021,1243458,Cocklebury Farmhouse Homes Ltd,,Bi-Borough Director of Integrated Care,"7,028.00"
12/11/2021,1243458,Cocklebury Farmhouse Homes Ltd,,Bi-Borough Director of Integrated Care,"4,952.00"
12/11/2021,1243458,Cocklebury Farmhouse Homes Ltd,,Bi-Borough Director of Integrated Care,"5,536.00"
12/11/2021,1243458,Cocklebury Farmhouse Homes Ltd,,Bi-Borough Director of Integrated Care,"5,568.00"
09/12/2021,1243458,Cocklebury Farmhouse Homes Ltd,,Bi-Borough Director of Integrated Care,"6,408.00"
09/12/2021,1243458,Cocklebury Farmhouse Homes Ltd,,Bi-Borough Director of Integrated Care,"7,028.00"
09/12/2021,1243458,Cocklebury Farmhouse Homes Ltd,,Bi-Borough Director of Integrated Care,"4,952.00"
09/12/2021,1243458,Cocklebury Farmhouse Homes Ltd,,Bi-Borough Director of Integrated Care,"5,536.00"
09/12/2021,1243458,Cocklebury Farmhouse Homes Ltd,,Bi-Borough Director of Integrated Care,"5,568.00"
22/12/2021,1246600,Community Focus Inclusive Arts,B*Voluntary-Spot-V Dep-Enhanced - do not u,Bi-Borough Director of Integrated Care,"1,325.00"
22/12/2021,1246600,Community Focus Inclusive Arts,B*Voluntary-Spot-V Dep-Enhanced - do not u,Bi-Borough Director of Integrated Care,"1,325.00"
22/12/2021,1246600,Community Focus Inclusive Arts,B*Voluntary-Spot-V Dep-Enhanced - do not u,Bi-Borough Director of Integrated Care,"1,325.00"
22/12/2021,1246600,Community Focus Inclusive Arts,B*Voluntary-Spot-V Dep-Enhanced - do not u,Bi-Borough Director of Integrated Care,"1,325.00"
12/11/2021,1280687,Community Integrated Care,,Bi-Borough Director of Integrated Care,"28,659.00"
12/11/2021,1280687,Community Integrated Care,,Bi-Borough Director of Integrated Care,"52,469.20"
12/11/2021,1280687,Community Integrated Care,,Bi-Borough Director of Integrated Care,"26,234.60"
12/11/2021,1280687,Community Integrated Care,,Bi-Borough Director of Integrated Care,"26,703.20"
12/11/2021,1280687,Community Integrated Care,,Bi-Borough Director of Integrated Care,"26,703.20"
12/11/2021,1280687,Community Integrated Care,,Bi-Borough Director of Integrated Care,"26,725.20"
09/12/2021,1280687,Community Integrated Care,,Bi-Borough Director of Integrated Care,"31,969.68"
09/12/2021,1280687,Community Integrated Care,,Bi-Borough Director of Integrated Care,"10,493.84"
09/12/2021,1280687,Community Integrated Care,,Bi-Borough Director of Integrated Care,"5,735.08"
09/12/2021,1280687,Community Integrated Care,,Bi-Borough Director of Integrated Care,"5,340.64"
09/12/2021,1280687,Community Integrated Care,,Bi-Borough Director of Integrated Care,"5,340.64"
09/12/2021,1280687,Community Integrated Care,,Bi-Borough Director of Integrated Care,"5,345.04"
09/12/2021,1280687,Community Integrated Care,,Bi-Borough Director of Integrated Care,"19,933.20"
09/12/2021,1280687,Community Integrated Care,,Bi-Borough Director of Integrated Care,"32,536.00"
14/10/2021,1244212,PERSONAL PAYMENTS,,Bi-Borough Director of Integrated Care,"3,320.00"
12/11/2021,1244212,PERSONAL PAYMENTS,,Bi-Borough Director of Integrated Care,"3,320.00"
09/12/2021,1244212,PERSONAL PAYMENTS,,Bi-Borough Director of Integrated Care,"3,320.00"
14/10/2021,1243470,Downing (Chertsey Road) Ltd,,Bi-Borough Director of Integrated Care,"5,971.20"
12/11/2021,1243470,Downing (Chertsey Road) Ltd,,Bi-Borough Director of Integrated Care,"5,971.20"
09/12/2021,1243470,Downing (Chertsey Road) Ltd,,Bi-Borough Director of Integrated Care,"5,971.20"
14/10/2021,1243474,Duckyls Farm Centre,,Bi-Borough Director of Integrated Care,"2,959.12"
12/11/2021,1243474,Duckyls Farm Centre,,Bi-Borough Director of Integrated Care,"2,959.12"
09/12/2021,1243474,Duckyls Farm Centre,,Bi-Borough Director of Integrated Care,"2,959.12"
14/10/2021,1245108,Elysium Healthcare No 2 Ltd,,Bi-Borough Director of Integrated Care,"9,899.67"
12/11/2021,1245108,Elysium Healthcare No 2 Ltd,,Bi-Borough Director of Integrated Care,"8,896.64"
09/12/2021,1245108,Elysium Healthcare No 2 Ltd,,Bi-Borough Director of Integrated Care,"8,896.64"
14/10/2021,1245110,Eric Patrick Care Ltd,,Bi-Borough Director of Integrated Care,"7,868.00"
12/11/2021,1245110,Eric Patrick Care Ltd,,Bi-Borough Director of Integrated Care,"7,868.00"
09/12/2021,1245110,Eric Patrick Care Ltd,,Bi-Borough Director of Integrated Care,"7,868.00"
08/10/2021,1259597,Ethica Services LTD,,Bi-Borough Director of Integrated Care,"1,173.00"
02/11/2021,1259597,Ethica Services LTD,,Bi-Borough Director of Integrated Care,"2,277.00"
17/11/2021,1259597,Ethica Services LTD,,Bi-Borough Director of Integrated Care,"2,001.00"
14/10/2021,1243483,Greenview Healthcare Ltd,,Bi-Borough Director of Integrated Care,"4,471.00"
12/11/2021,1243483,Greenview Healthcare Ltd,,Bi-Borough Director of Integrated Care,"4,471.00"
09/12/2021,1243483,Greenview Healthcare Ltd,,Bi-Borough Director of Integrated Care,"4,471.00"
14/10/2021,1243485,Grove Care Partnership Ltd,,Bi-Borough Director of Integrated Care,"8,051.84"
12/11/2021,1243485,Grove Care Partnership Ltd,,Bi-Borough Director of Integrated Care,"8,051.84"
09/12/2021,1243485,Grove Care Partnership Ltd,,Bi-Borough Director of Integrated Care,"8,051.84"
14/10/2021,1258503,Guyatt House Care Limited,,Bi-Borough Director of Integrated Care,"7,081.16"
12/11/2021,1258503,Guyatt House Care Limited,,Bi-Borough Director of Integrated Care,"7,081.16"
09/12/2021,1258503,Guyatt House Care Limited,,Bi-Borough Director of Integrated Care,"7,081.16"
21/10/2021,1244531,HCP Staffing Services Ltd,,Bi-Borough Director of Integrated Care,717.88
26/10/2021,1244531,HCP Staffing Services Ltd,,Bi-Borough Director of Integrated Care,536.92
26/10/2021,1244531,HCP Staffing Services Ltd,,Bi-Borough Director of Integrated Care,717.88
26/10/2021,1244531,HCP Staffing Services Ltd,,Bi-Borough Director of Integrated Care,717.88
01/11/2021,1244531,HCP Staffing Services Ltd,,Bi-Borough Director of Integrated Care,717.88
05/11/2021,1244531,HCP Staffing Services Ltd,,Bi-Borough Director of Integrated Care,"3,589.40"
05/11/2021,1244531,HCP Staffing Services Ltd,,Bi-Borough Director of Integrated Care,717.88
30/11/2021,1244531,HCP Staffing Services Ltd,,Bi-Borough Director of Integrated Care,770.84
22/12/2021,1244531,HCP Staffing Services Ltd,,Bi-Borough Director of Integrated Care,717.88
30/12/2021,1244531,HCP Staffing Services Ltd,,Bi-Borough Director of Integrated Care,717.88
14/10/2021,1244549,HF Trust Ltd,,Bi-Borough Director of Integrated Care,"3,539.28"
14/10/2021,1244549,HF Trust Ltd,,Bi-Borough Director of Integrated Care,"15,117.84"
12/11/2021,1244549,HF Trust Ltd,,Bi-Borough Director of Integrated Care,"3,539.28"
12/11/2021,1244549,HF Trust Ltd,,Bi-Borough Director of Integrated Care,"15,117.84"
09/12/2021,1244549,HF Trust Ltd,,Bi-Borough Director of Integrated Care,"15,117.84"
09/12/2021,1244549,HF Trust Ltd,,Bi-Borough Director of Integrated Care,"3,539.28"
14/10/2021,1244515,Hampshire Autistic Society,,Bi-Borough Director of Integrated Care,"5,307.08"
12/11/2021,1244515,Hampshire Autistic Society,,Bi-Borough Director of Integrated Care,"5,307.08"
09/12/2021,1244515,Hampshire Autistic Society,,Bi-Borough Director of Integrated Care,"5,307.08"
14/10/2021,1243490,Haydon Park Lodge Ltd,,Bi-Borough Director of Integrated Care,"4,000.00"
12/11/2021,1243490,Haydon Park Lodge Ltd,,Bi-Borough Director of Integrated Care,"4,000.00"
09/12/2021,1243490,Haydon Park Lodge Ltd,,Bi-Borough Director of Integrated Care,"4,000.00"
14/10/2021,1260257,Hazel Homes for Autism Ltd,,Bi-Borough Director of Integrated Care,861.00
14/10/2021,1260257,Hazel Homes for Autism Ltd,,Bi-Borough Director of Integrated Care,"14,885.24"
12/11/2021,1260257,Hazel Homes for Autism Ltd,,Bi-Borough Director of Integrated Care,861.00
12/11/2021,1260257,Hazel Homes for Autism Ltd,,Bi-Borough Director of Integrated Care,"14,885.24"
09/12/2021,1260257,Hazel Homes for Autism Ltd,,Bi-Borough Director of Integrated Care,861.00
09/12/2021,1260257,Hazel Homes for Autism Ltd,,Bi-Borough Director of Integrated Care,"14,885.24"
19/10/2021,1247257,Health Vision Uk,,Bi-Borough Director of Integrated Care,"2,066.30"
19/10/2021,1247257,Health Vision Uk,,Bi-Borough Director of Integrated Care,"2,066.30"
13/11/2021,1247257,Health Vision Uk,,Bi-Borough Director of Integrated Care,"2,075.36"
13/11/2021,1247257,Health Vision Uk,,Bi-Borough Director of Integrated Care,"2,159.36"
23/12/2021,1247257,Health Vision Uk,,Bi-Borough Director of Integrated Care,"2,075.36"
23/12/2021,1247257,Health Vision Uk,,Bi-Borough Director of Integrated Care,"2,074.43"
14/10/2021,1245125,Heathcotes (Southern) Ltd,,Bi-Borough Director of Integrated Care,"7,935.20"
14/10/2021,1245125,Heathcotes (Southern) Ltd,,Bi-Borough Director of Integrated Care,"14,838.72"
12/11/2021,1245125,Heathcotes (Southern) Ltd,,Bi-Borough Director of Integrated Care,"7,935.20"
12/11/2021,1245125,Heathcotes (Southern) Ltd,,Bi-Borough Director of Integrated Care,"14,838.72"
09/12/2021,1245125,Heathcotes (Southern) Ltd,,Bi-Borough Director of Integrated Care,"8,619.30"
09/12/2021,1245125,Heathcotes (Southern) Ltd,,Bi-Borough Director of Integrated Care,"21,436.51"
14/10/2021,1267460,Hunters Lodge Care Home,,Bi-Borough Director of Integrated Care,"3,930.64"
12/11/2021,1267460,Hunters Lodge Care Home,,Bi-Borough Director of Integrated Care,"3,930.64"
09/12/2021,1267460,Hunters Lodge Care Home,,Bi-Borough Director of Integrated Care,"3,930.64"
06/10/2021,1247526,Integrity Care and Support Ltd,B*Voluntary-Spot-V Dep-Enhanced - do not u,Bi-Borough Director of Integrated Care,"1,580.00"
06/10/2021,1247526,Integrity Care and Support Ltd,B*Voluntary-Spot-V Dep-Enhanced - do not u,Bi-Borough Director of Integrated Care,632.00
06/10/2021,1247526,Integrity Care and Support Ltd,B*Voluntary-Spot-V Dep-Enhanced - do not u,Bi-Borough Director of Integrated Care,829.50
06/10/2021,1247526,Integrity Care and Support Ltd,B*Voluntary-Spot-V Dep-Enhanced - do not u,Bi-Borough Director of Integrated Care,"1,896.00"
06/10/2021,1247526,Integrity Care and Support Ltd,B*Voluntary-Spot-V Dep-Enhanced - do not u,Bi-Borough Director of Integrated Care,948.00
06/10/2021,1247526,Integrity Care and Support Ltd,B*Voluntary-Spot-V Dep-Enhanced - do not u,Bi-Borough Director of Integrated Care,790.00
06/10/2021,1247526,Integrity Care and Support Ltd,B*Voluntary-Spot-V Dep-Enhanced - do not u,Bi-Borough Director of Integrated Care,"1,422.00"
06/10/2021,1247526,Integrity Care and Support Ltd,B*Voluntary-Spot-V Dep-Enhanced - do not u,Bi-Borough Director of Integrated Care,"1,659.00"
06/10/2021,1247526,Integrity Care and Support Ltd,B*Voluntary-Spot-V Dep-Enhanced - do not u,Bi-Borough Director of Integrated Care,612.25
06/10/2021,1247526,Integrity Care and Support Ltd,B*Voluntary-Spot-V Dep-Enhanced - do not u,Bi-Borough Director of Integrated Care,632.00
06/10/2021,1247526,Integrity Care and Support Ltd,B*Voluntary-Spot-V Dep-Enhanced - do not u,Bi-Borough Director of Integrated Care,"1,264.00"
06/10/2021,1247526,Integrity Care and Support Ltd,B*Voluntary-Spot-V Dep-Enhanced - do not u,Bi-Borough Director of Integrated Care,711.00
06/10/2021,1247526,Integrity Care and Support Ltd,B*Voluntary-Spot-V Dep-Enhanced - do not u,Bi-Borough Director of Integrated Care,553.00
06/10/2021,1247526,Integrity Care and Support Ltd,B*Voluntary-Spot-V Dep-Enhanced - do not u,Bi-Borough Director of Integrated Care,750.50
06/10/2021,1247526,Integrity Care and Support Ltd,B*Voluntary-Spot-V Dep-Enhanced - do not u,Bi-Borough Director of Integrated Care,"1,106.00"
06/10/2021,1247526,Integrity Care and Support Ltd,B*Voluntary-Spot-V Dep-Enhanced - do not u,Bi-Borough Director of Integrated Care,948.00
06/10/2021,1247526,Integrity Care and Support Ltd,B*Voluntary-Spot-V Dep-Enhanced - do not u,Bi-Borough Director of Integrated Care,"1,303.50"
06/10/2021,1247526,Integrity Care and Support Ltd,B*Voluntary-Spot-V Dep-Enhanced - do not u,Bi-Borough Director of Integrated Care,"1,501.00"
06/10/2021,1247526,Integrity Care and Support Ltd,B*Voluntary-Spot-V Dep-Enhanced - do not u,Bi-Borough Director of Integrated Care,"1,935.50"
06/10/2021,1247526,Integrity Care and Support Ltd,B*Voluntary-Spot-V Dep-Enhanced - do not u,Bi-Borough Director of Integrated Care,"1,382.50"
01/11/2021,1247526,Integrity Care and Support Ltd,B*Voluntary-Spot-V Dep-Enhanced - do not u,Bi-Borough Director of Integrated Care,671.50
01/11/2021,1247526,Integrity Care and Support Ltd,B*Voluntary-Spot-V Dep-Enhanced - do not u,Bi-Borough Director of Integrated Care,829.50
01/11/2021,1247526,Integrity Care and Support Ltd,B*Voluntary-Spot-V Dep-Enhanced - do not u,Bi-Borough Director of Integrated Care,513.50
01/11/2021,1247526,Integrity Care and Support Ltd,B*Voluntary-Spot-V Dep-Enhanced - do not u,Bi-Borough Director of Integrated Care,790.00
01/11/2021,1247526,Integrity Care and Support Ltd,B*Voluntary-Spot-V Dep-Enhanced - do not u,Bi-Borough Director of Integrated Care,553.00
01/11/2021,1247526,Integrity Care and Support Ltd,B*Voluntary-Spot-V Dep-Enhanced - do not u,Bi-Borough Director of Integrated Care,"1,264.00"
01/11/2021,1247526,Integrity Care and Support Ltd,B*Voluntary-Spot-V Dep-Enhanced - do not u,Bi-Borough Director of Integrated Care,632.00
01/11/2021,1247526,Integrity Care and Support Ltd,B*Voluntary-Spot-V Dep-Enhanced - do not u,Bi-Borough Director of Integrated Care,691.25
01/11/2021,1247526,Integrity Care and Support Ltd,B*Voluntary-Spot-V Dep-Enhanced - do not u,Bi-Borough Director of Integrated Care,"1,659.00"
01/11/2021,1247526,Integrity Care and Support Ltd,B*Voluntary-Spot-V Dep-Enhanced - do not u,Bi-Borough Director of Integrated Care,553.00
01/11/2021,1247526,Integrity Care and Support Ltd,B*Voluntary-Spot-V Dep-Enhanced - do not u,Bi-Borough Director of Integrated Care,612.25
01/11/2021,1247526,Integrity Care and Support Ltd,B*Voluntary-Spot-V Dep-Enhanced - do not u,Bi-Borough Director of Integrated Care,"1,501.00"
01/11/2021,1247526,Integrity Care and Support Ltd,B*Voluntary-Spot-V Dep-Enhanced - do not u,Bi-Borough Director of Integrated Care,"1,935.50"
01/11/2021,1247526,Integrity Care and Support Ltd,B*Voluntary-Spot-V Dep-Enhanced - do not u,Bi-Borough Director of Integrated Care,"1,264.00"
01/11/2021,1247526,Integrity Care and Support Ltd,B*Voluntary-Spot-V Dep-Enhanced - do not u,Bi-Borough Director of Integrated Care,"1,323.25"
01/11/2021,1247526,Integrity Care and Support Ltd,B*Voluntary-Spot-V Dep-Enhanced - do not u,Bi-Borough Director of Integrated Care,"1,382.50"
01/11/2021,1247526,Integrity Care and Support Ltd,B*Voluntary-Spot-V Dep-Enhanced - do not u,Bi-Borough Director of Integrated Care,"1,896.00"
01/11/2021,1247526,Integrity Care and Support Ltd,B*Voluntary-Spot-V Dep-Enhanced - do not u,Bi-Borough Director of Integrated Care,948.00
01/11/2021,1247526,Integrity Care and Support Ltd,B*Voluntary-Spot-V Dep-Enhanced - do not u,Bi-Borough Director of Integrated Care,711.00
01/11/2021,1247526,Integrity Care and Support Ltd,B*Voluntary-Spot-V Dep-Enhanced - do not u,Bi-Borough Director of Integrated Care,711.00
01/11/2021,1247526,Integrity Care and Support Ltd,B*Voluntary-Spot-V Dep-Enhanced - do not u,Bi-Borough Director of Integrated Care,"1,244.25"
01/11/2021,1247526,Integrity Care and Support Ltd,B*Voluntary-Spot-V Dep-Enhanced - do not u,Bi-Borough Director of Integrated Care,"1,481.25"
01/11/2021,1247526,Integrity Care and Support Ltd,B*Voluntary-Spot-V Dep-Enhanced - do not u,Bi-Borough Director of Integrated Care,790.00
24/11/2021,1247526,Integrity Care and Support Ltd,B*Voluntary-Spot-V Dep-Enhanced - do not u,Bi-Borough Director of Integrated Care,"1,933.50"
24/11/2021,1247526,Integrity Care and Support Ltd,B*Voluntary-Spot-V Dep-Enhanced - do not u,Bi-Borough Director of Integrated Care,632.00
24/11/2021,1247526,Integrity Care and Support Ltd,B*Voluntary-Spot-V Dep-Enhanced - do not u,Bi-Borough Director of Integrated Care,"2,034.25"
24/11/2021,1247526,Integrity Care and Support Ltd,B*Voluntary-Spot-V Dep-Enhanced - do not u,Bi-Borough Director of Integrated Care,"1,283.75"
24/11/2021,1247526,Integrity Care and Support Ltd,B*Voluntary-Spot-V Dep-Enhanced - do not u,Bi-Borough Director of Integrated Care,612.25
24/11/2021,1247526,Integrity Care and Support Ltd,B*Voluntary-Spot-V Dep-Enhanced - do not u,Bi-Borough Director of Integrated Care,829.50
24/11/2021,1247526,Integrity Care and Support Ltd,B*Voluntary-Spot-V Dep-Enhanced - do not u,Bi-Borough Director of Integrated Care,612.25
24/11/2021,1247526,Integrity Care and Support Ltd,B*Voluntary-Spot-V Dep-Enhanced - do not u,Bi-Borough Director of Integrated Care,"2,172.50"
24/11/2021,1247526,Integrity Care and Support Ltd,B*Voluntary-Spot-V Dep-Enhanced - do not u,Bi-Borough Director of Integrated Care,948.00
24/11/2021,1247526,Integrity Care and Support Ltd,B*Voluntary-Spot-V Dep-Enhanced - do not u,Bi-Borough Director of Integrated Care,948.00
24/11/2021,1247526,Integrity Care and Support Ltd,B*Voluntary-Spot-V Dep-Enhanced - do not u,Bi-Borough Director of Integrated Care,"1,204.75"
24/11/2021,1247526,Integrity Care and Support Ltd,B*Voluntary-Spot-V Dep-Enhanced - do not u,Bi-Borough Director of Integrated Care,"1,501.00"
24/11/2021,1247526,Integrity Care and Support Ltd,B*Voluntary-Spot-V Dep-Enhanced - do not u,Bi-Borough Director of Integrated Care,"1,246.00"
24/11/2021,1247526,Integrity Care and Support Ltd,B*Voluntary-Spot-V Dep-Enhanced - do not u,Bi-Borough Director of Integrated Care,770.25
24/11/2021,1247526,Integrity Care and Support Ltd,B*Voluntary-Spot-V Dep-Enhanced - do not u,Bi-Borough Director of Integrated Care,632.00
24/11/2021,1247526,Integrity Care and Support Ltd,B*Voluntary-Spot-V Dep-Enhanced - do not u,Bi-Borough Director of Integrated Care,"1,501.00"
24/11/2021,1247526,Integrity Care and Support Ltd,B*Voluntary-Spot-V Dep-Enhanced - do not u,Bi-Borough Director of Integrated Care,849.25
24/11/2021,1247526,Integrity Care and Support Ltd,B*Voluntary-Spot-V Dep-Enhanced - do not u,Bi-Borough Director of Integrated Care,711.00
24/11/2021,1247526,Integrity Care and Support Ltd,B*Voluntary-Spot-V Dep-Enhanced - do not u,Bi-Borough Director of Integrated Care,632.00
24/11/2021,1247526,Integrity Care and Support Ltd,B*Voluntary-Spot-V Dep-Enhanced - do not u,Bi-Borough Director of Integrated Care,790.00
24/11/2021,1247526,Integrity Care and Support Ltd,B*Voluntary-Spot-V Dep-Enhanced - do not u,Bi-Borough Director of Integrated Care,"1,520.75"
24/11/2021,1247526,Integrity Care and Support Ltd,B*Voluntary-Spot-V Dep-Enhanced - do not u,Bi-Borough Director of Integrated Care,671.50
24/11/2021,1247526,Integrity Care and Support Ltd,B*Voluntary-Spot-V Dep-Enhanced - do not u,Bi-Borough Director of Integrated Care,"1,106.00"
29/10/2021,1255762,J P Healthwise Limited,Legal Costs,Bi-Borough Director of Integrated Care,908.40
14/10/2021,1247598,Kisimul Group Ltd,,Bi-Borough Director of Integrated Care,"13,955.32"
12/11/2021,1247598,Kisimul Group Ltd,,Bi-Borough Director of Integrated Care,"13,955.32"
09/12/2021,1247598,Kisimul Group Ltd,,Bi-Borough Director of Integrated Care,"13,955.32"
14/10/2021,1243503,Life Opportunities Trust,,Bi-Borough Director of Integrated Care,"5,176.00"
14/10/2021,1243503,Life Opportunities Trust,,Bi-Borough Director of Integrated Care,"6,095.60"
12/11/2021,1243503,Life Opportunities Trust,,Bi-Borough Director of Integrated Care,"5,176.00"
12/11/2021,1243503,Life Opportunities Trust,,Bi-Borough Director of Integrated Care,"6,095.60"
09/12/2021,1243503,Life Opportunities Trust,,Bi-Borough Director of Integrated Care,"6,095.60"
14/10/2021,1243506,Lifeways Community Care Ltd,,Bi-Borough Director of Integrated Care,"11,633.00"
14/10/2021,1243506,Lifeways Community Care Ltd,,Bi-Borough Director of Integrated Care,"6,760.88"
12/11/2021,1243506,Lifeways Community Care Ltd,,Bi-Borough Director of Integrated Care,"11,633.00"
12/11/2021,1243506,Lifeways Community Care Ltd,,Bi-Borough Director of Integrated Care,"7,253.39"
09/12/2021,1243506,Lifeways Community Care Ltd,,Bi-Borough Director of Integrated Care,"12,713.30"
09/12/2021,1243506,Lifeways Community Care Ltd,,Bi-Borough Director of Integrated Care,"6,896.08"
14/10/2021,1249729,Linden Lodge School,,Bi-Borough Director of Integrated Care,"8,593.57"
12/11/2021,1249729,Linden Lodge School,,Bi-Borough Director of Integrated Care,"4,632.00"
09/12/2021,1249729,Linden Lodge School,,Bi-Borough Director of Integrated Care,"4,632.00"
14/10/2021,1244762,Livability,,Bi-Borough Director of Integrated Care,"6,180.00"
12/11/2021,1244762,Livability,,Bi-Borough Director of Integrated Care,"6,180.00"
09/12/2021,1244762,Livability,,Bi-Borough Director of Integrated Care,"6,180.00"
07/10/2021,1247650,London Care Ltd,,Bi-Borough Director of Integrated Care,949.38
21/10/2021,1247650,London Care Ltd,,Bi-Borough Director of Integrated Care,"1,310.58"
21/10/2021,1247650,London Care Ltd,,Bi-Borough Director of Integrated Care,741.20
21/10/2021,1247650,London Care Ltd,,Bi-Borough Director of Integrated Care,"1,552.77"
21/10/2021,1247650,London Care Ltd,,Bi-Borough Director of Integrated Care,"1,530.83"
01/11/2021,1247650,London Care Ltd,,Bi-Borough Director of Integrated Care,930.00
30/11/2021,1247650,London Care Ltd,,Bi-Borough Director of Integrated Care,930.00
04/12/2021,1247650,London Care Ltd,,Bi-Borough Director of Integrated Care,"1,306.92"
04/12/2021,1247650,London Care Ltd,,Bi-Borough Director of Integrated Care,741.20
04/12/2021,1247650,London Care Ltd,,Bi-Borough Director of Integrated Care,"1,556.49"
04/12/2021,1247650,London Care Ltd,,Bi-Borough Director of Integrated Care,"1,516.93"
14/10/2021,1247651,London Care Partnership Ltd,,Bi-Borough Director of Integrated Care,"9,475.54"
12/11/2021,1247651,London Care Partnership Ltd,,Bi-Borough Director of Integrated Care,"8,515.52"
09/12/2021,1247651,London Care Partnership Ltd,,Bi-Borough Director of Integrated Care,"8,515.52"
14/10/2021,1247656,London Cyrenians Housing Ltd,,Bi-Borough Director of Integrated Care,"14,280.00"
12/11/2021,1247656,London Cyrenians Housing Ltd,,Bi-Borough Director of Integrated Care,"14,280.00"
09/12/2021,1247656,London Cyrenians Housing Ltd,,Bi-Borough Director of Integrated Care,"14,280.00"
23/12/2021,1247846,London Vip Cars,Payments to Transport Operators,Bi-Borough Director of Integrated Care,"4,898.00"
12/11/2021,1282320,Marcus and Marcus,,Bi-Borough Director of Integrated Care,"21,909.00"
09/12/2021,1282320,Marcus and Marcus,,Bi-Borough Director of Integrated Care,"48,231.00"
14/10/2021,1245144,Methodist Homes For The Aged,,Bi-Borough Director of Integrated Care,"3,105.16"
12/11/2021,1245144,Methodist Homes For The Aged,,Bi-Borough Director of Integrated Care,"3,105.16"
09/12/2021,1245144,Methodist Homes For The Aged,,Bi-Borough Director of Integrated Care,"3,105.16"
14/10/2021,1247933,Minster Pathways Ltd,,Bi-Borough Director of Integrated Care,"3,504.00"
14/10/2021,1247933,Minster Pathways Ltd,,Bi-Borough Director of Integrated Care,"1,248.00"
12/11/2021,1247933,Minster Pathways Ltd,,Bi-Borough Director of Integrated Care,"3,504.00"
12/11/2021,1247933,Minster Pathways Ltd,,Bi-Borough Director of Integrated Care,"1,248.00"
09/12/2021,1247933,Minster Pathways Ltd,,Bi-Borough Director of Integrated Care,"6,604.68"
09/12/2021,1247933,Minster Pathways Ltd,,Bi-Borough Director of Integrated Care,"1,248.00"
14/10/2021,1244905,Nas Services Ltd (Residential),,Bi-Borough Director of Integrated Care,"4,058.88"
14/10/2021,1244905,Nas Services Ltd (Residential),,Bi-Borough Director of Integrated Care,"7,400.08"
14/10/2021,1244905,Nas Services Ltd (Residential),,Bi-Borough Director of Integrated Care,"3,379.32"
14/10/2021,1244905,Nas Services Ltd (Residential),,Bi-Borough Director of Integrated Care,"7,738.00"
26/10/2021,1244905,Nas Services Ltd (Residential),B*Voluntary-Spot-V Dep-Enhanced - do not u,Bi-Borough Director of Integrated Care,"1,247.28"
26/10/2021,1244905,Nas Services Ltd (Residential),B*Voluntary-Spot-V Dep-Enhanced - do not u,Bi-Borough Director of Integrated Care,"1,418.44"
12/11/2021,1244905,Nas Services Ltd (Residential),,Bi-Borough Director of Integrated Care,"7,400.08"
12/11/2021,1244905,Nas Services Ltd (Residential),,Bi-Borough Director of Integrated Care,"3,379.32"
12/11/2021,1244905,Nas Services Ltd (Residential),,Bi-Borough Director of Integrated Care,"7,738.00"
12/11/2021,1244905,Nas Services Ltd (Residential),,Bi-Borough Director of Integrated Care,"4,058.88"
09/12/2021,1244905,Nas Services Ltd (Residential),,Bi-Borough Director of Integrated Care,"9,566.49"
09/12/2021,1244905,Nas Services Ltd (Residential),,Bi-Borough Director of Integrated Care,"4,058.88"
09/12/2021,1244905,Nas Services Ltd (Residential),,Bi-Borough Director of Integrated Care,"7,400.08"
09/12/2021,1244905,Nas Services Ltd (Residential),,Bi-Borough Director of Integrated Care,"3,379.32"
09/12/2021,1244905,Nas Services Ltd (Residential),,Bi-Borough Director of Integrated Care,"7,738.00"
14/12/2021,1244905,Nas Services Ltd (Residential),B*Voluntary-Spot-V Dep-Enhanced - do not u,Bi-Borough Director of Integrated Care,"1,418.44"
14/12/2021,1244905,Nas Services Ltd (Residential),B*Voluntary-Spot-V Dep-Enhanced - do not u,Bi-Borough Director of Integrated Care,"1,247.28"
17/12/2021,1244905,Nas Services Ltd (Residential),B*Voluntary-Spot-V Dep-Enhanced - do not u,Bi-Borough Director of Integrated Care,"7,795.48"
17/12/2021,1244905,Nas Services Ltd (Residential),B*Voluntary-Spot-V Dep-Enhanced - do not u,Bi-Borough Director of Integrated Care,"1,247.28"
21/12/2021,1244905,Nas Services Ltd (Residential),B*Voluntary-Spot-V Dep-Enhanced - do not u,Bi-Borough Director of Integrated Care,"1,247.28"
21/12/2021,1244905,Nas Services Ltd (Residential),B*Voluntary-Spot-V Dep-Enhanced - do not u,Bi-Borough Director of Integrated Care,"1,418.44"
26/10/2021,1244906,Nas Services Ltd (Use 3009018),B*Voluntary-Spot-V Dep-Enhanced - do not u,Bi-Borough Director of Integrated Care,"2,970.72"
26/10/2021,1244906,Nas Services Ltd (Use 3009018),B*Voluntary-Spot-V Dep-Enhanced - do not u,Bi-Borough Director of Integrated Care,"2,915.36"
26/10/2021,1244906,Nas Services Ltd (Use 3009018),B*Voluntary-Spot-V Dep-Enhanced - do not u,Bi-Borough Director of Integrated Care,"5,243.80"
26/10/2021,1244906,Nas Services Ltd (Use 3009018),B*Voluntary-Spot-V Dep-Enhanced - do not u,Bi-Borough Director of Integrated Care,"1,124.96"
26/10/2021,1244906,Nas Services Ltd (Use 3009018),B*Voluntary-Spot-V Dep-Enhanced - do not u,Bi-Borough Director of Integrated Care,"1,308.36"
26/10/2021,1244906,Nas Services Ltd (Use 3009018),B*Voluntary-Spot-V Dep-Enhanced - do not u,Bi-Borough Director of Integrated Care,"4,879.20"
26/10/2021,1244906,Nas Services Ltd (Use 3009018),B*Voluntary-Spot-V Dep-Enhanced - do not u,Bi-Borough Director of Integrated Care,"2,027.52"
26/10/2021,1244906,Nas Services Ltd (Use 3009018),B*Voluntary-Spot-V Dep-Enhanced - do not u,Bi-Borough Director of Integrated Care,"1,772.04"
26/10/2021,1244906,Nas Services Ltd (Use 3009018),B*Voluntary-Spot-V Dep-Enhanced - do not u,Bi-Borough Director of Integrated Care,"5,335.00"
26/10/2021,1244906,Nas Services Ltd (Use 3009018),B*Voluntary-Spot-V Dep-Enhanced - do not u,Bi-Borough Director of Integrated Care,"1,744.52"
14/12/2021,1244906,Nas Services Ltd (Use 3009018),B*Voluntary-Spot-V Dep-Enhanced - do not u,Bi-Borough Director of Integrated Care,"2,970.72"
14/12/2021,1244906,Nas Services Ltd (Use 3009018),B*Voluntary-Spot-V Dep-Enhanced - do not u,Bi-Borough Director of Integrated Care,"1,124.96"
14/12/2021,1244906,Nas Services Ltd (Use 3009018),B*Voluntary-Spot-V Dep-Enhanced - do not u,Bi-Borough Director of Integrated Care,"1,744.52"
14/12/2021,1244906,Nas Services Ltd (Use 3009018),B*Voluntary-Spot-V Dep-Enhanced - do not u,Bi-Borough Director of Integrated Care,"1,772.04"
14/12/2021,1244906,Nas Services Ltd (Use 3009018),B*Voluntary-Spot-V Dep-Enhanced - do not u,Bi-Borough Director of Integrated Care,"5,335.00"
14/12/2021,1244906,Nas Services Ltd (Use 3009018),B*Voluntary-Spot-V Dep-Enhanced - do not u,Bi-Borough Director of Integrated Care,"5,243.80"
14/12/2021,1244906,Nas Services Ltd (Use 3009018),B*Voluntary-Spot-V Dep-Enhanced - do not u,Bi-Borough Director of Integrated Care,"4,879.20"
14/12/2021,1244906,Nas Services Ltd (Use 3009018),B*Voluntary-Spot-V Dep-Enhanced - do not u,Bi-Borough Director of Integrated Care,"2,027.52"
14/12/2021,1244906,Nas Services Ltd (Use 3009018),B*Voluntary-Spot-V Dep-Enhanced - do not u,Bi-Borough Director of Integrated Care,"2,915.36"
14/12/2021,1244906,Nas Services Ltd (Use 3009018),B*Voluntary-Spot-V Dep-Enhanced - do not u,Bi-Borough Director of Integrated Care,"1,308.36"
17/12/2021,1244906,Nas Services Ltd (Use 3009018),B*Voluntary-Spot-V Dep-Enhanced - do not u,Bi-Borough Director of Integrated Care,"3,644.20"
21/12/2021,1244906,Nas Services Ltd (Use 3009018),B*Voluntary-Spot-V Dep-Enhanced - do not u,Bi-Borough Director of Integrated Care,"1,124.96"
21/12/2021,1244906,Nas Services Ltd (Use 3009018),B*Voluntary-Spot-V Dep-Enhanced - do not u,Bi-Borough Director of Integrated Care,"1,308.36"
21/12/2021,1244906,Nas Services Ltd (Use 3009018),B*Voluntary-Spot-V Dep-Enhanced - do not u,Bi-Borough Director of Integrated Care,"5,243.80"
21/12/2021,1244906,Nas Services Ltd (Use 3009018),B*Voluntary-Spot-V Dep-Enhanced - do not u,Bi-Borough Director of Integrated Care,"1,744.52"
21/12/2021,1244906,Nas Services Ltd (Use 3009018),B*Voluntary-Spot-V Dep-Enhanced - do not u,Bi-Borough Director of Integrated Care,"2,970.72"
21/12/2021,1244906,Nas Services Ltd (Use 3009018),B*Voluntary-Spot-V Dep-Enhanced - do not u,Bi-Borough Director of Integrated Care,"1,772.04"
21/12/2021,1244906,Nas Services Ltd (Use 3009018),B*Voluntary-Spot-V Dep-Enhanced - do not u,Bi-Borough Director of Integrated Care,"2,915.36"
21/12/2021,1244906,Nas Services Ltd (Use 3009018),B*Voluntary-Spot-V Dep-Enhanced - do not u,Bi-Borough Director of Integrated Care,"4,879.20"
21/12/2021,1244906,Nas Services Ltd (Use 3009018),B*Voluntary-Spot-V Dep-Enhanced - do not u,Bi-Borough Director of Integrated Care,"2,027.52"
12/11/2021,1282551,Nisacraftcare Limited,,Bi-Borough Director of Integrated Care,"47,812.41"
12/11/2021,1282551,Nisacraftcare Limited,,Bi-Borough Director of Integrated Care,"45,222.73"
09/12/2021,1282551,Nisacraftcare Limited,,Bi-Borough Director of Integrated Care,"14,092.08"
09/12/2021,1282551,Nisacraftcare Limited,,Bi-Borough Director of Integrated Care,"8,065.20"
14/10/2021,1247147,Norwood Schools Ltd,,Bi-Borough Director of Integrated Care,"5,998.48"
14/10/2021,1247147,Norwood Schools Ltd,,Bi-Borough Director of Integrated Care,"5,253.52"
14/10/2021,1247147,Norwood Schools Ltd,,Bi-Borough Director of Integrated Care,"8,758.72"
14/10/2021,1247147,Norwood Schools Ltd,,Bi-Borough Director of Integrated Care,"6,755.08"
12/11/2021,1247147,Norwood Schools Ltd,,Bi-Borough Director of Integrated Care,"8,323.48"
12/11/2021,1247147,Norwood Schools Ltd,,Bi-Borough Director of Integrated Care,"7,303.24"
12/11/2021,1247147,Norwood Schools Ltd,,Bi-Borough Director of Integrated Care,"12,152.60"
12/11/2021,1247147,Norwood Schools Ltd,,Bi-Borough Director of Integrated Care,"9,372.72"
09/12/2021,1247147,Norwood Schools Ltd,,Bi-Borough Director of Integrated Care,"6,298.48"
09/12/2021,1247147,Norwood Schools Ltd,,Bi-Borough Director of Integrated Care,"5,518.00"
09/12/2021,1247147,Norwood Schools Ltd,,Bi-Borough Director of Integrated Care,"9,196.64"
09/12/2021,1247147,Norwood Schools Ltd,,Bi-Borough Director of Integrated Care,"7,092.84"
14/10/2021,1243520,Oakview Care (Berkshire) Ltd,,Bi-Borough Director of Integrated Care,"6,699.96"
12/11/2021,1243520,Oakview Care (Berkshire) Ltd,,Bi-Borough Director of Integrated Care,"6,699.96"
09/12/2021,1243520,Oakview Care (Berkshire) Ltd,,Bi-Borough Director of Integrated Care,"6,699.96"
27/10/2021,1248252,Origin Housing Ltd,B*Voluntary-Spot-V Dep-Enhanced - do not u,Bi-Borough Director of Integrated Care,"1,408.00"
27/10/2021,1248252,Origin Housing Ltd,B*Voluntary-Spot-V Dep-Enhanced - do not u,Bi-Borough Director of Integrated Care,704.00
27/10/2021,1248252,Origin Housing Ltd,B*Voluntary-Spot-V Dep-Enhanced - do not u,Bi-Borough Director of Integrated Care,704.00
14/10/2021,1243524,PERSONAL PAYMENTS,,Bi-Borough Director of Integrated Care,"3,379.76"
14/10/2021,1243524,PERSONAL PAYMENTS,,Bi-Borough Director of Integrated Care,936.00
12/11/2021,1243524,PERSONAL PAYMENTS,,Bi-Borough Director of Integrated Care,936.00
12/11/2021,1243524,PERSONAL PAYMENTS,,Bi-Borough Director of Integrated Care,"3,379.76"
09/12/2021,1243524,PERSONAL PAYMENTS,,Bi-Borough Director of Integrated Care,"3,379.76"
09/12/2021,1243524,PERSONAL PAYMENTS,,Bi-Borough Director of Integrated Care,936.00
14/10/2021,1245005,PERSONAL PAYMENTS,,Bi-Borough Director of Integrated Care,"2,146.88"
14/10/2021,1245005,PERSONAL PAYMENTS,,Bi-Borough Director of Integrated Care,"1,744.80"
14/10/2021,1245005,PERSONAL PAYMENTS,,Bi-Borough Director of Integrated Care,"2,842.88"
14/10/2021,1245005,PERSONAL PAYMENTS,,Bi-Borough Director of Integrated Care,"2,146.88"
14/10/2021,1245005,PERSONAL PAYMENTS,,Bi-Borough Director of Integrated Care,"1,337.68"
14/10/2021,1245005,PERSONAL PAYMENTS,,Bi-Borough Director of Integrated Care,"2,902.96"
12/11/2021,1245005,PERSONAL PAYMENTS,,Bi-Borough Director of Integrated Care,"2,842.88"
12/11/2021,1245005,PERSONAL PAYMENTS,,Bi-Borough Director of Integrated Care,"2,146.88"
12/11/2021,1245005,PERSONAL PAYMENTS,,Bi-Borough Director of Integrated Care,"1,337.68"
12/11/2021,1245005,PERSONAL PAYMENTS,,Bi-Borough Director of Integrated Care,"2,902.96"
12/11/2021,1245005,PERSONAL PAYMENTS,,Bi-Borough Director of Integrated Care,"2,146.88"
12/11/2021,1245005,PERSONAL PAYMENTS,,Bi-Borough Director of Integrated Care,"1,744.80"
09/12/2021,1245005,PERSONAL PAYMENTS,,Bi-Borough Director of Integrated Care,"2,146.88"
09/12/2021,1245005,PERSONAL PAYMENTS,,Bi-Borough Director of Integrated Care,"1,337.68"
09/12/2021,1245005,PERSONAL PAYMENTS,,Bi-Borough Director of Integrated Care,"2,902.96"
09/12/2021,1245005,PERSONAL PAYMENTS,,Bi-Borough Director of Integrated Care,"1,744.80"
09/12/2021,1245005,PERSONAL PAYMENTS,,Bi-Borough Director of Integrated Care,"2,146.88"
09/12/2021,1245005,PERSONAL PAYMENTS,,Bi-Borough Director of Integrated Care,"2,842.88"
06/10/2021,1245825,Sweet Tree Home Care Services,Adult Social Care - Other Transfer Pay,Bi-Borough Director of Integrated Care,"3,705.34"
14/10/2021,1282437,PERSONAL PAYMENTS,Adult Social Care - Other Transfer Pay,Bi-Borough Director of Integrated Care,"4,317.36"
14/10/2021,1246066,Barrie Bookkeeping & Payroll,Adult Social Care - Other Transfer Pay,Bi-Borough Director of Integrated Care,"7,625.98"
14/10/2021,1246066,Barrie Bookkeeping & Payroll,Adult Social Care - Other Transfer Pay,Bi-Borough Director of Integrated Care,941.93
21/10/2021,1250037,PERSONAL PAYMENTS,Adult Social Care - Other Transfer Pay,Bi-Borough Director of Integrated Care,"2,383.72"
21/10/2021,1247727,PERSONAL PAYMENTS,Social Care - Direct Payments,Bi-Borough Director of Integrated Care,"2,740.72"
21/10/2021,1247804,PERSONAL PAYMENTS,Social Care - Direct Payments,Bi-Borough Director of Integrated Care,902.40
21/10/2021,1246066,Barrie Bookkeeping & Payroll,Adult Social Care - Other Transfer Pay,Bi-Borough Director of Integrated Care,"11,674.68"
21/10/2021,1250627,PERSONAL PAYMENTS,Adult Social Care - Other Transfer Pay,Bi-Borough Director of Integrated Care,"2,508.00"
21/10/2021,1250310,PERSONAL PAYMENTS,Adult Social Care - Other Transfer Pay,Bi-Borough Director of Integrated Care,"1,368.00"
21/10/2021,1246066,Barrie Bookkeeping & Payroll,Adult Social Care - Other Transfer Pay,Bi-Borough Director of Integrated Care,"2,611.32"
21/10/2021,1268346,PERSONAL PAYMENTS,Adult Social Care - Other Transfer Pay,Bi-Borough Director of Integrated Care,"1,623.40"
21/10/2021,1250138,PERSONAL PAYMENTS,Adult Social Care - Other Transfer Pay,Bi-Borough Director of Integrated Care,"1,240.84"
21/10/2021,1249942,PERSONAL PAYMENTS,Adult Social Care - Other Transfer Pay,Bi-Borough Director of Integrated Care,"5,975.56"
21/10/2021,1246066,Barrie Bookkeeping & Payroll,Adult Social Care - Other Transfer Pay,Bi-Borough Director of Integrated Care,"4,603.40"
21/10/2021,1248354,PERSONAL PAYMENTS,Adult Social Care - Other Transfer Pay,Bi-Borough Director of Integrated Care,"2,294.60"
21/10/2021,1248148,PERSONAL PAYMENTS,Adult Social Care - Other Transfer Pay,Bi-Borough Director of Integrated Care,"1,638.96"
21/10/2021,1246066,Barrie Bookkeeping & Payroll,Adult Social Care - Other Transfer Pay,Bi-Borough Director of Integrated Care,"5,754.04"
21/10/2021,1246066,Barrie Bookkeeping & Payroll,Adult Social Care - Other Transfer Pay,Bi-Borough Director of Integrated Care,"5,914.56"
21/10/2021,1246066,Barrie Bookkeeping & Payroll,Adult Social Care - Other Transfer Pay,Bi-Borough Director of Integrated Care,"2,483.40"
21/10/2021,1246066,Barrie Bookkeeping & Payroll,Adult Social Care - Other Transfer Pay,Bi-Borough Director of Integrated Care,"1,791.60"
21/10/2021,1247820,PERSONAL PAYMENTS,Adult Social Care - Other Transfer Pay,Bi-Borough Director of Integrated Care,"8,751.04"
21/10/2021,1280973,PERSONAL PAYMENTS,Adult Social Care - Other Transfer Pay,Bi-Borough Director of Integrated Care,"6,236.88"
21/10/2021,1246066,Barrie Bookkeeping & Payroll,Adult Social Care - Other Transfer Pay,Bi-Borough Director of Integrated Care,"2,092.44"
21/10/2021,1246066,Barrie Bookkeeping & Payroll,Adult Social Care - Other Transfer Pay,Bi-Borough Director of Integrated Care,773.20
21/10/2021,1250656,PERSONAL PAYMENTS,Social Care - Direct Payments,Bi-Borough Director of Integrated Care,"1,118.36"
21/10/2021,1248292,PERSONAL PAYMENTS,Adult Social Care - Other Transfer Pay,Bi-Borough Director of Integrated Care,"1,208.96"
21/10/2021,1250215,PERSONAL PAYMENTS,Adult Social Care - Other Transfer Pay,Bi-Borough Director of Integrated Care,"2,278.00"
21/10/2021,1246066,Barrie Bookkeeping & Payroll,Adult Social Care - Other Transfer Pay,Bi-Borough Director of Integrated Care,818.00
21/10/2021,1250186,PERSONAL PAYMENTS,Adult Social Care - Other Transfer Pay,Bi-Borough Director of Integrated Care,"3,121.48"
21/10/2021,1246066,Barrie Bookkeeping & Payroll,Adult Social Care - Other Transfer Pay,Bi-Borough Director of Integrated Care,"1,688.60"
21/10/2021,1246066,Barrie Bookkeeping & Payroll,Adult Social Care - Other Transfer Pay,Bi-Borough Director of Integrated Care,733.80
21/10/2021,1246066,Barrie Bookkeeping & Payroll,Adult Social Care - Other Transfer Pay,Bi-Borough Director of Integrated Care,"2,452.20"
21/10/2021,1246066,Barrie Bookkeeping & Payroll,Adult Social Care - Other Transfer Pay,Bi-Borough Director of Integrated Care,876.08
21/10/2021,1246066,Barrie Bookkeeping & Payroll,Adult Social Care - Other Transfer Pay,Bi-Borough Director of Integrated Care,"2,830.00"
21/10/2021,1246066,Barrie Bookkeeping & Payroll,Adult Social Care - Other Transfer Pay,Bi-Borough Director of Integrated Care,"2,585.32"
21/10/2021,1256833,PERSONAL PAYMENTS,Adult Social Care - Other Transfer Pay,Bi-Borough Director of Integrated Care,572.00
21/10/2021,1250074,PERSONAL PAYMENTS,Adult Social Care - Other Transfer Pay,Bi-Borough Director of Integrated Care,"8,290.76"
21/10/2021,1246066,Barrie Bookkeeping & Payroll,Adult Social Care - Other Transfer Pay,Bi-Borough Director of Integrated Care,"1,821.60"
21/10/2021,1246066,Barrie Bookkeeping & Payroll,Adult Social Care - Other Transfer Pay,Bi-Borough Director of Integrated Care,"1,066.28"
21/10/2021,1250044,PERSONAL PAYMENTS,Adult Social Care - Other Transfer Pay,Bi-Borough Director of Integrated Care,648.00
21/10/2021,1248010,PERSONAL PAYMENTS,Adult Social Care - Other Transfer Pay,Bi-Borough Director of Integrated Care,634.88
21/10/2021,1246066,Barrie Bookkeeping & Payroll,Adult Social Care - Other Transfer Pay,Bi-Borough Director of Integrated Care,"1,991.00"
21/10/2021,1248292,PERSONAL PAYMENTS,Adult Social Care - Other Transfer Pay,Bi-Borough Director of Integrated Care,"8,640.00"
21/10/2021,1250674,PERSONAL PAYMENTS,Adult Social Care - Other Transfer Pay,Bi-Borough Director of Integrated Care,"2,652.16"
21/10/2021,1254540,PERSONAL PAYMENTS,Adult Social Care - Other Transfer Pay,Bi-Borough Director of Integrated Care,811.80
21/10/2021,1250670,PERSONAL PAYMENTS,Adult Social Care - Other Transfer Pay,Bi-Borough Director of Integrated Care,"1,024.00"
21/10/2021,1278955,PERSONAL PAYMENTS,Social Care - Direct Payments,Bi-Borough Director of Integrated Care,"1,289.24"
21/10/2021,1249796,PERSONAL PAYMENTS,Adult Social Care - Other Transfer Pay,Bi-Borough Director of Integrated Care,999.16
21/10/2021,1250012,PERSONAL PAYMENTS,Adult Social Care - Other Transfer Pay,Bi-Borough Director of Integrated Care,"2,015.00"
21/10/2021,1249876,PERSONAL PAYMENTS,Adult Social Care - Other Transfer Pay,Bi-Borough Director of Integrated Care,815.55
19/11/2021,1246066,Barrie Bookkeeping & Payroll,Adult Social Care - Other Transfer Pay,Bi-Borough Director of Integrated Care,876.08
19/11/2021,1246066,Barrie Bookkeeping & Payroll,Adult Social Care - Other Transfer Pay,Bi-Borough Director of Integrated Care,"5,754.04"
19/11/2021,1246066,Barrie Bookkeeping & Payroll,Adult Social Care - Other Transfer Pay,Bi-Borough Director of Integrated Care,"5,914.56"
19/11/2021,1246066,Barrie Bookkeeping & Payroll,Adult Social Care - Other Transfer Pay,Bi-Borough Director of Integrated Care,"2,483.40"
19/11/2021,1246066,Barrie Bookkeeping & Payroll,Adult Social Care - Other Transfer Pay,Bi-Borough Director of Integrated Care,"1,791.60"
19/11/2021,1247820,PERSONAL PAYMENTS,Adult Social Care - Other Transfer Pay,Bi-Borough Director of Integrated Care,"8,751.04"
19/11/2021,1280973,PERSONAL PAYMENTS,Adult Social Care - Other Transfer Pay,Bi-Borough Director of Integrated Care,"6,236.88"
19/11/2021,1246066,Barrie Bookkeeping & Payroll,Adult Social Care - Other Transfer Pay,Bi-Borough Director of Integrated Care,"1,861.04"
19/11/2021,1246066,Barrie Bookkeeping & Payroll,Adult Social Care - Other Transfer Pay,Bi-Borough Director of Integrated Care,773.20
19/11/2021,1246066,Barrie Bookkeeping & Payroll,Adult Social Care - Other Transfer Pay,Bi-Borough Director of Integrated Care,"2,944.19"
19/11/2021,1246066,Barrie Bookkeeping & Payroll,Adult Social Care - Other Transfer Pay,Bi-Borough Director of Integrated Care,"2,585.32"
19/11/2021,1250656,PERSONAL PAYMENTS,Social Care - Direct Payments,Bi-Borough Director of Integrated Care,"1,118.36"
19/11/2021,1248010,PERSONAL PAYMENTS,Adult Social Care - Other Transfer Pay,Bi-Borough Director of Integrated Care,634.88
19/11/2021,1246066,Barrie Bookkeeping & Payroll,Adult Social Care - Other Transfer Pay,Bi-Borough Director of Integrated Care,"1,991.00"
19/11/2021,1248292,PERSONAL PAYMENTS,Adult Social Care - Other Transfer Pay,Bi-Borough Director of Integrated Care,"1,208.96"
19/11/2021,1246066,Barrie Bookkeeping & Payroll,Adult Social Care - Other Transfer Pay,Bi-Borough Director of Integrated Care,"1,688.60"
19/11/2021,1246066,Barrie Bookkeeping & Payroll,Adult Social Care - Other Transfer Pay,Bi-Borough Director of Integrated Care,733.80
19/11/2021,1246066,Barrie Bookkeeping & Payroll,Adult Social Care - Other Transfer Pay,Bi-Borough Director of Integrated Care,"2,452.20"
19/11/2021,1250215,PERSONAL PAYMENTS,Adult Social Care - Other Transfer Pay,Bi-Borough Director of Integrated Care,"1,361.56"
19/11/2021,1246066,Barrie Bookkeeping & Payroll,Adult Social Care - Other Transfer Pay,Bi-Borough Director of Integrated Care,"1,821.60"
19/11/2021,1246066,Barrie Bookkeeping & Payroll,Adult Social Care - Other Transfer Pay,Bi-Borough Director of Integrated Care,"1,066.28"
19/11/2021,1250044,PERSONAL PAYMENTS,Adult Social Care - Other Transfer Pay,Bi-Borough Director of Integrated Care,648.00
19/11/2021,1250674,PERSONAL PAYMENTS,Adult Social Care - Other Transfer Pay,Bi-Borough Director of Integrated Care,"2,652.16"
19/11/2021,1248292,PERSONAL PAYMENTS,Adult Social Care - Other Transfer Pay,Bi-Borough Director of Integrated Care,"8,640.00"
19/11/2021,1254540,PERSONAL PAYMENTS,Adult Social Care - Other Transfer Pay,Bi-Borough Director of Integrated Care,811.80
19/11/2021,1250670,PERSONAL PAYMENTS,Adult Social Care - Other Transfer Pay,Bi-Borough Director of Integrated Care,"1,024.00"
19/11/2021,1278955,PERSONAL PAYMENTS,Social Care - Direct Payments,Bi-Borough Director of Integrated Care,"1,289.24"
19/11/2021,1249796,PERSONAL PAYMENTS,Adult Social Care - Other Transfer Pay,Bi-Borough Director of Integrated Care,999.16
19/11/2021,1250012,PERSONAL PAYMENTS,Adult Social Care - Other Transfer Pay,Bi-Borough Director of Integrated Care,"2,015.00"
19/11/2021,1250037,PERSONAL PAYMENTS,Adult Social Care - Other Transfer Pay,Bi-Borough Director of Integrated Care,"2,383.72"
19/11/2021,1247727,PERSONAL PAYMENTS,Social Care - Direct Payments,Bi-Borough Director of Integrated Care,"2,740.72"
19/11/2021,1247804,PERSONAL PAYMENTS,Social Care - Direct Payments,Bi-Borough Director of Integrated Care,902.40
19/11/2021,1246066,Barrie Bookkeeping & Payroll,Adult Social Care - Other Transfer Pay,Bi-Borough Director of Integrated Care,"11,674.68"
19/11/2021,1250627,PERSONAL PAYMENTS,Adult Social Care - Other Transfer Pay,Bi-Borough Director of Integrated Care,"2,508.00"
19/11/2021,1250310,PERSONAL PAYMENTS,Adult Social Care - Other Transfer Pay,Bi-Borough Director of Integrated Care,"1,368.00"
19/11/2021,1246066,Barrie Bookkeeping & Payroll,Adult Social Care - Other Transfer Pay,Bi-Borough Director of Integrated Care,"2,611.32"
19/11/2021,1268346,PERSONAL PAYMENTS,Adult Social Care - Other Transfer Pay,Bi-Borough Director of Integrated Care,"1,623.40"
19/11/2021,1250138,PERSONAL PAYMENTS,Adult Social Care - Other Transfer Pay,Bi-Borough Director of Integrated Care,"1,240.84"
19/11/2021,1249942,PERSONAL PAYMENTS,Adult Social Care - Other Transfer Pay,Bi-Borough Director of Integrated Care,"5,975.56"
19/11/2021,1246066,Barrie Bookkeeping & Payroll,Adult Social Care - Other Transfer Pay,Bi-Borough Director of Integrated Care,"4,603.40"
19/11/2021,1248354,PERSONAL PAYMENTS,Adult Social Care - Other Transfer Pay,Bi-Borough Director of Integrated Care,"2,294.60"
19/11/2021,1246066,Barrie Bookkeeping & Payroll,Adult Social Care - Other Transfer Pay,Bi-Borough Director of Integrated Care,818.00
19/11/2021,1250186,PERSONAL PAYMENTS,Adult Social Care - Other Transfer Pay,Bi-Borough Director of Integrated Care,"3,121.48"
19/11/2021,1248154,PERSONAL PAYMENTS,Adult Social Care - Other Transfer Pay,Bi-Borough Director of Integrated Care,829.52
22/11/2021,1248148,PERSONAL PAYMENTS,Adult Social Care - Other Transfer Pay,Bi-Borough Director of Integrated Care,"1,638.96"
30/11/2021,1245825,Sweet Tree Home Care Services,Adult Social Care - Other Transfer Pay,Bi-Borough Director of Integrated Care,"3,859.15"
16/12/2021,1246066,Barrie Bookkeeping & Payroll,Adult Social Care - Other Transfer Pay,Bi-Borough Director of Integrated Care,818.00
16/12/2021,1250186,PERSONAL PAYMENTS,Adult Social Care - Other Transfer Pay,Bi-Borough Director of Integrated Care,"3,121.48"
16/12/2021,1246066,Barrie Bookkeeping & Payroll,Adult Social Care - Other Transfer Pay,Bi-Borough Director of Integrated Care,"2,483.40"
16/12/2021,1246066,Barrie Bookkeeping & Payroll,Adult Social Care - Other Transfer Pay,Bi-Borough Director of Integrated Care,"1,791.60"
16/12/2021,1247820,PERSONAL PAYMENTS,Adult Social Care - Other Transfer Pay,Bi-Borough Director of Integrated Care,"8,751.04"
16/12/2021,1280973,PERSONAL PAYMENTS,Adult Social Care - Other Transfer Pay,Bi-Borough Director of Integrated Care,"6,236.88"
16/12/2021,1246066,Barrie Bookkeeping & Payroll,Adult Social Care - Other Transfer Pay,Bi-Borough Director of Integrated Care,"2,056.84"
16/12/2021,1246066,Barrie Bookkeeping & Payroll,Adult Social Care - Other Transfer Pay,Bi-Borough Director of Integrated Care,773.20
16/12/2021,1248154,PERSONAL PAYMENTS,Adult Social Care - Other Transfer Pay,Bi-Borough Director of Integrated Care,829.52
16/12/2021,1246066,Barrie Bookkeeping & Payroll,Adult Social Care - Other Transfer Pay,Bi-Borough Director of Integrated Care,876.08
16/12/2021,1247804,PERSONAL PAYMENTS,Adult Social Care - Other Transfer Pay,Bi-Borough Director of Integrated Care,"1,692.45"
16/12/2021,1250656,PERSONAL PAYMENTS,Social Care - Direct Payments,Bi-Borough Director of Integrated Care,"1,118.36"
16/12/2021,1246066,Barrie Bookkeeping & Payroll,Adult Social Care - Other Transfer Pay,Bi-Borough Director of Integrated Care,"1,688.60"
16/12/2021,1246066,Barrie Bookkeeping & Payroll,Adult Social Care - Other Transfer Pay,Bi-Borough Director of Integrated Care,733.80
16/12/2021,1246066,Barrie Bookkeeping & Payroll,Adult Social Care - Other Transfer Pay,Bi-Borough Director of Integrated Care,"2,452.20"
16/12/2021,1250215,PERSONAL PAYMENTS,Adult Social Care - Other Transfer Pay,Bi-Borough Director of Integrated Care,"1,361.56"
16/12/2021,1246066,Barrie Bookkeeping & Payroll,Adult Social Care - Other Transfer Pay,Bi-Borough Director of Integrated Care,"2,854.04"
16/12/2021,1246066,Barrie Bookkeeping & Payroll,Adult Social Care - Other Transfer Pay,Bi-Borough Director of Integrated Care,"2,585.32"
16/12/2021,1248010,PERSONAL PAYMENTS,Adult Social Care - Other Transfer Pay,Bi-Borough Director of Integrated Care,634.88
16/12/2021,1246066,Barrie Bookkeeping & Payroll,Adult Social Care - Other Transfer Pay,Bi-Borough Director of Integrated Care,"1,991.00"
16/12/2021,1250674,PERSONAL PAYMENTS,Adult Social Care - Other Transfer Pay,Bi-Borough Director of Integrated Care,"2,652.16"
16/12/2021,1246066,Barrie Bookkeeping & Payroll,Adult Social Care - Other Transfer Pay,Bi-Borough Director of Integrated Care,"1,821.60"
16/12/2021,1246066,Barrie Bookkeeping & Payroll,Adult Social Care - Other Transfer Pay,Bi-Borough Director of Integrated Care,"1,066.28"
16/12/2021,1250044,PERSONAL PAYMENTS,Adult Social Care - Other Transfer Pay,Bi-Borough Director of Integrated Care,648.00
16/12/2021,1248292,PERSONAL PAYMENTS,Adult Social Care - Other Transfer Pay,Bi-Borough Director of Integrated Care,"9,404.84"
16/12/2021,1254540,PERSONAL PAYMENTS,Adult Social Care - Other Transfer Pay,Bi-Borough Director of Integrated Care,811.80
16/12/2021,1250670,PERSONAL PAYMENTS,Adult Social Care - Other Transfer Pay,Bi-Borough Director of Integrated Care,"1,024.00"
16/12/2021,1278955,PERSONAL PAYMENTS,Social Care - Direct Payments,Bi-Borough Director of Integrated Care,"1,289.24"
16/12/2021,1249796,PERSONAL PAYMENTS,Adult Social Care - Other Transfer Pay,Bi-Borough Director of Integrated Care,999.16
16/12/2021,1246066,Barrie Bookkeeping & Payroll,Adult Social Care - Other Transfer Pay,Bi-Borough Director of Integrated Care,"2,380.05"
16/12/2021,1250012,PERSONAL PAYMENTS,Adult Social Care - Other Transfer Pay,Bi-Borough Director of Integrated Care,"2,015.00"
16/12/2021,1250037,PERSONAL PAYMENTS,Adult Social Care - Other Transfer Pay,Bi-Borough Director of Integrated Care,"2,383.72"
16/12/2021,1247727,PERSONAL PAYMENTS,Social Care - Direct Payments,Bi-Borough Director of Integrated Care,"2,740.72"
16/12/2021,1246066,Barrie Bookkeeping & Payroll,Adult Social Care - Other Transfer Pay,Bi-Borough Director of Integrated Care,"11,674.68"
16/12/2021,1246066,Barrie Bookkeeping & Payroll,Adult Social Care - Other Transfer Pay,Bi-Borough Director of Integrated Care,"8,098.80"
16/12/2021,1250627,PERSONAL PAYMENTS,Adult Social Care - Other Transfer Pay,Bi-Borough Director of Integrated Care,"2,508.00"
16/12/2021,1246066,Barrie Bookkeeping & Payroll,Adult Social Care - Other Transfer Pay,Bi-Borough Director of Integrated Care,"2,611.32"
16/12/2021,1268346,PERSONAL PAYMENTS,Adult Social Care - Other Transfer Pay,Bi-Borough Director of Integrated Care,"1,623.40"
16/12/2021,1249942,PERSONAL PAYMENTS,Adult Social Care - Other Transfer Pay,Bi-Borough Director of Integrated Care,"5,975.56"
16/12/2021,1246066,Barrie Bookkeeping & Payroll,Adult Social Care - Other Transfer Pay,Bi-Borough Director of Integrated Care,"4,603.40"
16/12/2021,1248354,PERSONAL PAYMENTS,Adult Social Care - Other Transfer Pay,Bi-Borough Director of Integrated Care,"2,294.60"
16/12/2021,1248148,PERSONAL PAYMENTS,Adult Social Care - Other Transfer Pay,Bi-Borough Director of Integrated Care,"1,638.96"
16/12/2021,1246066,Barrie Bookkeeping & Payroll,Adult Social Care - Other Transfer Pay,Bi-Borough Director of Integrated Care,"5,754.04"
16/12/2021,1246066,Barrie Bookkeeping & Payroll,Adult Social Care - Other Transfer Pay,Bi-Borough Director of Integrated Care,"5,914.56"
17/12/2021,1272570,PERSONAL PAYMENTS,Adult Social Care - Other Transfer Pay,Bi-Borough Director of Integrated Care,"4,730.58"
17/12/2021,1272570,PERSONAL PAYMENTS,Adult Social Care - Other Transfer Pay,Bi-Borough Director of Integrated Care,"2,211.98"
17/12/2021,1286339,PERSONAL PAYMENTS,Adult Social Care - Other Transfer Pay,Bi-Borough Director of Integrated Care,"1,907.76"
07/10/2021,1255663,PLAY ASSOCIATION HAMMERSMITH AND FU,B*Voluntary-Spot-V Dep-Enhanced - do not u,Bi-Borough Director of Integrated Care,825.00
03/11/2021,1255663,PLAY ASSOCIATION HAMMERSMITH AND FU,B*Voluntary-Spot-V Dep-Enhanced - do not u,Bi-Borough Director of Integrated Care,990.00
14/10/2021,1258049,PSS (UK),,Bi-Borough Director of Integrated Care,"2,660.96"
12/11/2021,1258049,PSS (UK),,Bi-Borough Director of Integrated Care,"2,660.96"
09/12/2021,1258049,PSS (UK),,Bi-Borough Director of Integrated Care,"2,660.96"
14/10/2021,1245021,Paradise Community,,Bi-Borough Director of Integrated Care,"10,414.68"
12/11/2021,1245021,Paradise Community,,Bi-Borough Director of Integrated Care,"10,414.68"
09/12/2021,1245021,Paradise Community,,Bi-Borough Director of Integrated Care,"10,414.68"
14/10/2021,1250448,PERSONAL PAYMENTS,,Bi-Borough Director of Integrated Care,"1,419.24"
12/11/2021,1250448,PERSONAL PAYMENTS,,Bi-Borough Director of Integrated Care,"1,419.24"
09/12/2021,1250448,PERSONAL PAYMENTS,,Bi-Borough Director of Integrated Care,"1,419.24"
14/10/2021,1245163,Poor Servants of the mother of,,Bi-Borough Director of Integrated Care,"2,878.88"
12/11/2021,1245163,Poor Servants of the mother of,,Bi-Borough Director of Integrated Care,"2,878.88"
09/12/2021,1245163,Poor Servants of the mother of,,Bi-Borough Director of Integrated Care,"2,878.88"
14/10/2021,1245165,Precious Homes Ltd,,Bi-Borough Director of Integrated Care,"5,320.00"
12/11/2021,1245165,Precious Homes Ltd,,Bi-Borough Director of Integrated Care,"5,320.00"
09/12/2021,1245165,Precious Homes Ltd,,Bi-Borough Director of Integrated Care,"5,320.00"
21/10/2021,1248563,Pursuing Independent Paths,B*Voluntary-Spot-V Dep-Enhanced - do not u,Bi-Borough Director of Integrated Care,"1,531.32"
21/10/2021,1248563,Pursuing Independent Paths,B*Voluntary-Spot-V Dep-Enhanced - do not u,Bi-Borough Director of Integrated Care,"1,252.72"
21/10/2021,1248563,Pursuing Independent Paths,B*Voluntary-Spot-V Dep-Enhanced - do not u,Bi-Borough Director of Integrated Care,510.44
21/10/2021,1248563,Pursuing Independent Paths,B*Voluntary-Spot-V Dep-Enhanced - do not u,Bi-Borough Director of Integrated Care,510.44
21/10/2021,1248563,Pursuing Independent Paths,B*Voluntary-Spot-V Dep-Enhanced - do not u,Bi-Borough Director of Integrated Care,"1,879.08"
21/10/2021,1248563,Pursuing Independent Paths,B*Voluntary-Spot-V Dep-Enhanced - do not u,Bi-Borough Director of Integrated Care,510.44
21/10/2021,1248563,Pursuing Independent Paths,B*Voluntary-Spot-V Dep-Enhanced - do not u,Bi-Borough Director of Integrated Care,510.44
21/10/2021,1248563,Pursuing Independent Paths,B*Voluntary-Spot-V Dep-Enhanced - do not u,Bi-Borough Director of Integrated Care,546.90
21/10/2021,1248563,Pursuing Independent Paths,B*Voluntary-Spot-V Dep-Enhanced - do not u,Bi-Borough Director of Integrated Care,583.36
21/10/2021,1248563,Pursuing Independent Paths,B*Voluntary-Spot-V Dep-Enhanced - do not u,Bi-Borough Director of Integrated Care,"1,531.32"
21/10/2021,1248563,Pursuing Independent Paths,B*Voluntary-Spot-V Dep-Enhanced - do not u,Bi-Borough Director of Integrated Care,"2,041.76"
21/10/2021,1248563,Pursuing Independent Paths,B*Voluntary-Spot-V Dep-Enhanced - do not u,Bi-Borough Director of Integrated Care,"1,276.10"
21/10/2021,1248563,Pursuing Independent Paths,B*Voluntary-Spot-V Dep-Enhanced - do not u,Bi-Borough Director of Integrated Care,"1,531.32"
21/10/2021,1248563,Pursuing Independent Paths,B*Voluntary-Spot-V Dep-Enhanced - do not u,Bi-Borough Director of Integrated Care,"1,531.32"
21/10/2021,1248563,Pursuing Independent Paths,B*Voluntary-Spot-V Dep-Enhanced - do not u,Bi-Borough Director of Integrated Care,"1,020.88"
21/10/2021,1248563,Pursuing Independent Paths,B*Voluntary-Spot-V Dep-Enhanced - do not u,Bi-Borough Director of Integrated Care,"1,276.10"
21/10/2021,1248563,Pursuing Independent Paths,B*Voluntary-Spot-V Dep-Enhanced - do not u,Bi-Borough Director of Integrated Care,"1,531.32"
21/10/2021,1248563,Pursuing Independent Paths,B*Voluntary-Spot-V Dep-Enhanced - do not u,Bi-Borough Director of Integrated Care,"1,786.54"
21/10/2021,1248563,Pursuing Independent Paths,B*Voluntary-Spot-V Dep-Enhanced - do not u,Bi-Borough Director of Integrated Care,"1,289.32"
21/10/2021,1248563,Pursuing Independent Paths,B*Voluntary-Spot-V Dep-Enhanced - do not u,Bi-Borough Director of Integrated Care,510.44
21/10/2021,1248563,Pursuing Independent Paths,B*Voluntary-Spot-V Dep-Enhanced - do not u,Bi-Borough Director of Integrated Care,"1,020.88"
21/10/2021,1248563,Pursuing Independent Paths,B*Voluntary-Spot-V Dep-Enhanced - do not u,Bi-Borough Director of Integrated Care,"1,020.88"
21/10/2021,1248563,Pursuing Independent Paths,B*Voluntary-Spot-V Dep-Enhanced - do not u,Bi-Borough Director of Integrated Care,"2,552.20"
21/10/2021,1248563,Pursuing Independent Paths,B*Voluntary-Spot-V Dep-Enhanced - do not u,Bi-Borough Director of Integrated Care,"1,531.32"
21/10/2021,1248563,Pursuing Independent Paths,B*Voluntary-Spot-V Dep-Enhanced - do not u,Bi-Borough Director of Integrated Care,"1,531.32"
21/10/2021,1248563,Pursuing Independent Paths,B*Voluntary-Spot-V Dep-Enhanced - do not u,Bi-Borough Director of Integrated Care,"1,531.32"
21/10/2021,1248563,Pursuing Independent Paths,B*Voluntary-Spot-V Dep-Enhanced - do not u,Bi-Borough Director of Integrated Care,510.44
21/10/2021,1248563,Pursuing Independent Paths,B*Voluntary-Spot-V Dep-Enhanced - do not u,Bi-Borough Director of Integrated Care,"1,020.88"
21/10/2021,1248563,Pursuing Independent Paths,B*Voluntary-Spot-V Dep-Enhanced - do not u,Bi-Borough Director of Integrated Care,"1,531.32"
21/10/2021,1248563,Pursuing Independent Paths,B*Voluntary-Spot-V Dep-Enhanced - do not u,Bi-Borough Director of Integrated Care,"1,276.10"
21/10/2021,1248563,Pursuing Independent Paths,B*Voluntary-Spot-V Dep-Enhanced - do not u,Bi-Borough Director of Integrated Care,"2,552.20"
21/10/2021,1248563,Pursuing Independent Paths,B*Voluntary-Spot-V Dep-Enhanced - do not u,Bi-Borough Director of Integrated Care,"1,531.32"
21/10/2021,1248563,Pursuing Independent Paths,B*Voluntary-Spot-V Dep-Enhanced - do not u,Bi-Borough Director of Integrated Care,"1,531.32"
21/10/2021,1248563,Pursuing Independent Paths,B*Voluntary-Spot-V Dep-Enhanced - do not u,Bi-Borough Director of Integrated Care,"1,531.32"
21/10/2021,1248563,Pursuing Independent Paths,B*Voluntary-Spot-V Dep-Enhanced - do not u,Bi-Borough Director of Integrated Care,"1,531.32"
21/10/2021,1248563,Pursuing Independent Paths,B*Voluntary-Spot-V Dep-Enhanced - do not u,Bi-Borough Director of Integrated Care,"1,020.88"
21/10/2021,1248563,Pursuing Independent Paths,B*Voluntary-Spot-V Dep-Enhanced - do not u,Bi-Borough Director of Integrated Care,"1,276.10"
21/10/2021,1248563,Pursuing Independent Paths,B*Voluntary-Spot-V Dep-Enhanced - do not u,Bi-Borough Director of Integrated Care,510.44
27/10/2021,1248563,Pursuing Independent Paths,B*Voluntary-Spot-V Dep-Enhanced - do not u,Bi-Borough Director of Integrated Care,"1,276.10"
12/11/2021,1248563,Pursuing Independent Paths,B*Voluntary-Spot-V Dep-Enhanced - do not u,Bi-Borough Director of Integrated Care,"1,276.10"
12/11/2021,1248563,Pursuing Independent Paths,B*Voluntary-Spot-V Dep-Enhanced - do not u,Bi-Borough Director of Integrated Care,"1,531.32"
12/11/2021,1248563,Pursuing Independent Paths,B*Voluntary-Spot-V Dep-Enhanced - do not u,Bi-Borough Director of Integrated Care,"1,786.54"
12/11/2021,1248563,Pursuing Independent Paths,B*Voluntary-Spot-V Dep-Enhanced - do not u,Bi-Borough Director of Integrated Care,"1,289.32"
12/11/2021,1248563,Pursuing Independent Paths,B*Voluntary-Spot-V Dep-Enhanced - do not u,Bi-Borough Director of Integrated Care,510.44
12/11/2021,1248563,Pursuing Independent Paths,B*Voluntary-Spot-V Dep-Enhanced - do not u,Bi-Borough Director of Integrated Care,"1,020.88"
12/11/2021,1248563,Pursuing Independent Paths,B*Voluntary-Spot-V Dep-Enhanced - do not u,Bi-Borough Director of Integrated Care,"1,020.88"
12/11/2021,1248563,Pursuing Independent Paths,B*Voluntary-Spot-V Dep-Enhanced - do not u,Bi-Borough Director of Integrated Care,"2,552.20"
12/11/2021,1248563,Pursuing Independent Paths,B*Voluntary-Spot-V Dep-Enhanced - do not u,Bi-Borough Director of Integrated Care,"1,531.32"
12/11/2021,1248563,Pursuing Independent Paths,B*Voluntary-Spot-V Dep-Enhanced - do not u,Bi-Borough Director of Integrated Care,"1,531.32"
12/11/2021,1248563,Pursuing Independent Paths,B*Voluntary-Spot-V Dep-Enhanced - do not u,Bi-Borough Director of Integrated Care,"1,531.32"
12/11/2021,1248563,Pursuing Independent Paths,B*Voluntary-Spot-V Dep-Enhanced - do not u,Bi-Borough Director of Integrated Care,510.44
12/11/2021,1248563,Pursuing Independent Paths,B*Voluntary-Spot-V Dep-Enhanced - do not u,Bi-Borough Director of Integrated Care,"1,020.88"
12/11/2021,1248563,Pursuing Independent Paths,B*Voluntary-Spot-V Dep-Enhanced - do not u,Bi-Borough Director of Integrated Care,"1,531.32"
12/11/2021,1248563,Pursuing Independent Paths,B*Voluntary-Spot-V Dep-Enhanced - do not u,Bi-Borough Director of Integrated Care,"1,276.10"
12/11/2021,1248563,Pursuing Independent Paths,B*Voluntary-Spot-V Dep-Enhanced - do not u,Bi-Borough Director of Integrated Care,"2,552.20"
12/11/2021,1248563,Pursuing Independent Paths,B*Voluntary-Spot-V Dep-Enhanced - do not u,Bi-Borough Director of Integrated Care,"1,531.32"
12/11/2021,1248563,Pursuing Independent Paths,B*Voluntary-Spot-V Dep-Enhanced - do not u,Bi-Borough Director of Integrated Care,"1,531.32"
12/11/2021,1248563,Pursuing Independent Paths,B*Voluntary-Spot-V Dep-Enhanced - do not u,Bi-Borough Director of Integrated Care,"1,531.32"
12/11/2021,1248563,Pursuing Independent Paths,B*Voluntary-Spot-V Dep-Enhanced - do not u,Bi-Borough Director of Integrated Care,"1,531.32"
12/11/2021,1248563,Pursuing Independent Paths,B*Voluntary-Spot-V Dep-Enhanced - do not u,Bi-Borough Director of Integrated Care,"1,020.88"
12/11/2021,1248563,Pursuing Independent Paths,B*Voluntary-Spot-V Dep-Enhanced - do not u,Bi-Borough Director of Integrated Care,"1,276.10"
12/11/2021,1248563,Pursuing Independent Paths,B*Voluntary-Spot-V Dep-Enhanced - do not u,Bi-Borough Director of Integrated Care,510.44
12/11/2021,1248563,Pursuing Independent Paths,B*Voluntary-Spot-V Dep-Enhanced - do not u,Bi-Borough Director of Integrated Care,"1,531.32"
12/11/2021,1248563,Pursuing Independent Paths,B*Voluntary-Spot-V Dep-Enhanced - do not u,Bi-Borough Director of Integrated Care,"1,252.72"
12/11/2021,1248563,Pursuing Independent Paths,B*Voluntary-Spot-V Dep-Enhanced - do not u,Bi-Borough Director of Integrated Care,510.44
12/11/2021,1248563,Pursuing Independent Paths,B*Voluntary-Spot-V Dep-Enhanced - do not u,Bi-Borough Director of Integrated Care,510.44
12/11/2021,1248563,Pursuing Independent Paths,B*Voluntary-Spot-V Dep-Enhanced - do not u,Bi-Borough Director of Integrated Care,"1,879.08"
12/11/2021,1248563,Pursuing Independent Paths,B*Voluntary-Spot-V Dep-Enhanced - do not u,Bi-Borough Director of Integrated Care,510.44
12/11/2021,1248563,Pursuing Independent Paths,B*Voluntary-Spot-V Dep-Enhanced - do not u,Bi-Borough Director of Integrated Care,510.44
12/11/2021,1248563,Pursuing Independent Paths,B*Voluntary-Spot-V Dep-Enhanced - do not u,Bi-Borough Director of Integrated Care,546.90
12/11/2021,1248563,Pursuing Independent Paths,B*Voluntary-Spot-V Dep-Enhanced - do not u,Bi-Borough Director of Integrated Care,583.36
12/11/2021,1248563,Pursuing Independent Paths,B*Voluntary-Spot-V Dep-Enhanced - do not u,Bi-Borough Director of Integrated Care,"1,531.32"
12/11/2021,1248563,Pursuing Independent Paths,B*Voluntary-Spot-V Dep-Enhanced - do not u,Bi-Borough Director of Integrated Care,"2,041.76"
12/11/2021,1248563,Pursuing Independent Paths,B*Voluntary-Spot-V Dep-Enhanced - do not u,Bi-Borough Director of Integrated Care,"1,276.10"
12/11/2021,1248563,Pursuing Independent Paths,B*Voluntary-Spot-V Dep-Enhanced - do not u,Bi-Borough Director of Integrated Care,"1,531.32"
12/11/2021,1248563,Pursuing Independent Paths,B*Voluntary-Spot-V Dep-Enhanced - do not u,Bi-Borough Director of Integrated Care,"1,531.32"
12/11/2021,1248563,Pursuing Independent Paths,B*Voluntary-Spot-V Dep-Enhanced - do not u,Bi-Borough Director of Integrated Care,"1,531.32"
17/12/2021,1248563,Pursuing Independent Paths,B*Voluntary-Spot-V Dep-Enhanced - do not u,Bi-Borough Director of Integrated Care,"1,786.54"
17/12/2021,1248563,Pursuing Independent Paths,B*Voluntary-Spot-V Dep-Enhanced - do not u,Bi-Borough Director of Integrated Care,"1,020.88"
14/10/2021,1278739,RESIDE HOUSING ASSOCIATION LTD,,Bi-Borough Director of Integrated Care,"1,088.24"
12/11/2021,1278739,RESIDE HOUSING ASSOCIATION LTD,,Bi-Borough Director of Integrated Care,"1,088.24"
09/12/2021,1278739,RESIDE HOUSING ASSOCIATION LTD,,Bi-Borough Director of Integrated Care,"1,088.24"
14/10/2021,1245169,Rcp Residential Care Providers Ltd,,Bi-Borough Director of Integrated Care,930.96
14/10/2021,1245169,Rcp Residential Care Providers Ltd,,Bi-Borough Director of Integrated Care,"5,767.40"
12/11/2021,1245169,Rcp Residential Care Providers Ltd,,Bi-Borough Director of Integrated Care,930.96
12/11/2021,1245169,Rcp Residential Care Providers Ltd,,Bi-Borough Director of Integrated Care,"5,767.40"
09/12/2021,1245169,Rcp Residential Care Providers Ltd,,Bi-Borough Director of Integrated Care,"5,767.40"
09/12/2021,1245169,Rcp Residential Care Providers Ltd,,Bi-Borough Director of Integrated Care,930.96
14/10/2021,1269718,Reliant Care Limited,,Bi-Borough Director of Integrated Care,"11,933.60"
14/10/2021,1269718,Reliant Care Limited,,Bi-Borough Director of Integrated Care,"2,500.00"
14/10/2021,1269718,Reliant Care Limited,,Bi-Borough Director of Integrated Care,"2,500.00"
14/10/2021,1269718,Reliant Care Limited,,Bi-Borough Director of Integrated Care,"3,712.00"
14/10/2021,1269718,Reliant Care Limited,,Bi-Borough Director of Integrated Care,"3,712.00"
12/11/2021,1269718,Reliant Care Limited,,Bi-Borough Director of Integrated Care,"11,933.60"
12/11/2021,1269718,Reliant Care Limited,,Bi-Borough Director of Integrated Care,"2,500.00"
12/11/2021,1269718,Reliant Care Limited,,Bi-Borough Director of Integrated Care,"2,500.00"
12/11/2021,1269718,Reliant Care Limited,,Bi-Borough Director of Integrated Care,"3,712.00"
12/11/2021,1269718,Reliant Care Limited,,Bi-Borough Director of Integrated Care,"3,712.00"
09/12/2021,1269718,Reliant Care Limited,,Bi-Borough Director of Integrated Care,"2,500.00"
09/12/2021,1269718,Reliant Care Limited,,Bi-Borough Director of Integrated Care,"2,500.00"
09/12/2021,1269718,Reliant Care Limited,,Bi-Borough Director of Integrated Care,"3,712.00"
09/12/2021,1269718,Reliant Care Limited,,Bi-Borough Director of Integrated Care,"3,712.00"
09/12/2021,1269718,Reliant Care Limited,,Bi-Borough Director of Integrated Care,"11,933.60"
15/10/2021,1245316,Respect Care Services Ltd,,Bi-Borough Director of Integrated Care,"1,543.76"
25/11/2021,1245316,Respect Care Services Ltd,,Bi-Borough Director of Integrated Care,"1,543.76"
25/11/2021,1245316,Respect Care Services Ltd,,Bi-Borough Director of Integrated Care,"1,543.76"
07/12/2021,1245316,Respect Care Services Ltd,,Bi-Borough Director of Integrated Care,"1,543.76"
14/12/2021,1245316,Respect Care Services Ltd,,Bi-Borough Director of Integrated Care,"1,543.76"
20/12/2021,1245316,Respect Care Services Ltd,,Bi-Borough Director of Integrated Care,"1,191.38"
14/10/2021,1245172,Richmond Health Care Ltd,,Bi-Borough Director of Integrated Care,"4,512.00"
12/11/2021,1245172,Richmond Health Care Ltd,,Bi-Borough Director of Integrated Care,"4,512.00"
09/12/2021,1245172,Richmond Health Care Ltd,,Bi-Borough Director of Integrated Care,"4,512.00"
14/10/2021,1248621,Rnib Redhill College,,Bi-Borough Director of Integrated Care,"5,380.40"
12/11/2021,1248621,Rnib Redhill College,,Bi-Borough Director of Integrated Care,"5,380.40"
09/12/2021,1248621,Rnib Redhill College,,Bi-Borough Director of Integrated Care,"5,380.40"
09/12/2021,1248843,Sage Care Ltd,,Bi-Borough Director of Integrated Care,546.41
09/12/2021,1248843,Sage Care Ltd,,Bi-Borough Director of Integrated Care,"1,667.72"
09/12/2021,1248843,Sage Care Ltd,,Bi-Borough Director of Integrated Care,"1,546.95"
09/12/2021,1248843,Sage Care Ltd,,Bi-Borough Director of Integrated Care,756.15
09/12/2021,1248843,Sage Care Ltd,,Bi-Borough Director of Integrated Care,518.53
09/12/2021,1248843,Sage Care Ltd,,Bi-Borough Director of Integrated Care,665.84
09/12/2021,1248843,Sage Care Ltd,,Bi-Borough Director of Integrated Care,774.25
09/12/2021,1248843,Sage Care Ltd,,Bi-Borough Director of Integrated Care,522.55
09/12/2021,1248843,Sage Care Ltd,,Bi-Borough Director of Integrated Care,"1,667.08"
09/12/2021,1248843,Sage Care Ltd,,Bi-Borough Director of Integrated Care,"1,536.76"
09/12/2021,1248843,Sage Care Ltd,,Bi-Borough Director of Integrated Care,777.02
09/12/2021,1248843,Sage Care Ltd,,Bi-Borough Director of Integrated Care,518.53
09/12/2021,1248843,Sage Care Ltd,,Bi-Borough Director of Integrated Care,759.11
09/12/2021,1248843,Sage Care Ltd,,Bi-Borough Director of Integrated Care,"1,160.60"
09/12/2021,1248843,Sage Care Ltd,,Bi-Borough Director of Integrated Care,606.55
09/12/2021,1248843,Sage Care Ltd,,Bi-Borough Director of Integrated Care,553.74
09/12/2021,1248843,Sage Care Ltd,,Bi-Borough Director of Integrated Care,"1,667.70"
09/12/2021,1248843,Sage Care Ltd,,Bi-Borough Director of Integrated Care,"1,556.52"
09/12/2021,1248843,Sage Care Ltd,,Bi-Borough Director of Integrated Care,500.31
09/12/2021,1248843,Sage Care Ltd,,Bi-Borough Director of Integrated Care,731.93
09/12/2021,1248843,Sage Care Ltd,,Bi-Borough Director of Integrated Care,"1,496.29"
14/10/2021,1262057,Sense - The National Deafbllind,,Bi-Borough Director of Integrated Care,"4,550.00"
14/10/2021,1262057,Sense - The National Deafbllind,,Bi-Borough Director of Integrated Care,"4,550.00"
12/11/2021,1262057,Sense - The National Deafbllind,,Bi-Borough Director of Integrated Care,"4,550.00"
12/11/2021,1262057,Sense - The National Deafbllind,,Bi-Borough Director of Integrated Care,"4,550.00"
09/12/2021,1262057,Sense - The National Deafbllind,,Bi-Borough Director of Integrated Care,"4,550.00"
09/12/2021,1262057,Sense - The National Deafbllind,,Bi-Borough Director of Integrated Care,"4,550.00"
14/10/2021,1243535,Sequence Care Ltd,,Bi-Borough Director of Integrated Care,"19,362.75"
14/10/2021,1243535,Sequence Care Ltd,,Bi-Borough Director of Integrated Care,"10,171.52"
14/10/2021,1243535,Sequence Care Ltd,,Bi-Borough Director of Integrated Care,"10,171.52"
14/10/2021,1243535,Sequence Care Ltd,,Bi-Borough Director of Integrated Care,"17,007.48"
12/11/2021,1243535,Sequence Care Ltd,,Bi-Borough Director of Integrated Care,"9,857.40"
12/11/2021,1243535,Sequence Care Ltd,,Bi-Borough Director of Integrated Care,"10,171.52"
12/11/2021,1243535,Sequence Care Ltd,,Bi-Borough Director of Integrated Care,"10,171.52"
12/11/2021,1243535,Sequence Care Ltd,,Bi-Borough Director of Integrated Care,"17,007.48"
09/12/2021,1243535,Sequence Care Ltd,,Bi-Borough Director of Integrated Care,"9,857.40"
09/12/2021,1243535,Sequence Care Ltd,,Bi-Borough Director of Integrated Care,"8,258.22"
09/12/2021,1243535,Sequence Care Ltd,,Bi-Borough Director of Integrated Care,"17,007.48"
14/10/2021,1245566,Shaw Care Uk Ltd,,Bi-Borough Director of Integrated Care,"3,200.00"
14/10/2021,1245566,Shaw Care Uk Ltd,,Bi-Borough Director of Integrated Care,"3,200.00"
12/11/2021,1245566,Shaw Care Uk Ltd,,Bi-Borough Director of Integrated Care,"3,200.00"
12/11/2021,1245566,Shaw Care Uk Ltd,,Bi-Borough Director of Integrated Care,"3,200.00"
09/12/2021,1245566,Shaw Care Uk Ltd,,Bi-Borough Director of Integrated Care,"3,200.00"
09/12/2021,1245566,Shaw Care Uk Ltd,,Bi-Borough Director of Integrated Care,"3,200.00"
21/10/2021,1245581,Simpson Millar LLP,Legal Costs,Bi-Borough Director of Integrated Care,"3,360.00"
14/10/2021,1248935,Southside Partnership,,Bi-Borough Director of Integrated Care,800.00
14/10/2021,1248935,Southside Partnership,,Bi-Borough Director of Integrated Care,"2,546.68"
14/10/2021,1248935,Southside Partnership,,Bi-Borough Director of Integrated Care,800.00
14/10/2021,1248935,Southside Partnership,,Bi-Borough Director of Integrated Care,"3,592.80"
12/11/2021,1248935,Southside Partnership,,Bi-Borough Director of Integrated Care,"2,546.68"
12/11/2021,1248935,Southside Partnership,,Bi-Borough Director of Integrated Care,800.00
12/11/2021,1248935,Southside Partnership,,Bi-Borough Director of Integrated Care,"3,592.80"
12/11/2021,1248935,Southside Partnership,,Bi-Borough Director of Integrated Care,800.00
09/12/2021,1248935,Southside Partnership,,Bi-Borough Director of Integrated Care,"2,546.68"
09/12/2021,1248935,Southside Partnership,,Bi-Borough Director of Integrated Care,800.00
09/12/2021,1248935,Southside Partnership,,Bi-Borough Director of Integrated Care,800.00
09/12/2021,1248935,Southside Partnership,,Bi-Borough Director of Integrated Care,"3,592.80"
07/10/2021,1248940,Special People,B*Voluntary-Spot-V Dep-Enhanced - do not u,Bi-Borough Director of Integrated Care,"2,484.99"
03/11/2021,1248940,Special People,B*Voluntary-Spot-V Dep-Enhanced - do not u,Bi-Borough Director of Integrated Care,"1,281.63"
03/11/2021,1248940,Special People,B*Voluntary-Spot-V Dep-Enhanced - do not u,Bi-Borough Director of Integrated Care,961.92
10/12/2021,1248940,Special People,B*Voluntary-Spot-V Dep-Enhanced - do not u,Bi-Borough Director of Integrated Care,"3,345.63"
14/10/2021,1245620,Spencer & Arlington,,Bi-Borough Director of Integrated Care,"12,835.20"
14/10/2021,1245620,Spencer & Arlington,,Bi-Borough Director of Integrated Care,"3,724.56"
14/10/2021,1245620,Spencer & Arlington,,Bi-Borough Director of Integrated Care,"6,627.60"
14/10/2021,1245620,Spencer & Arlington,,Bi-Borough Director of Integrated Care,"2,576.00"
12/11/2021,1245620,Spencer & Arlington,,Bi-Borough Director of Integrated Care,"12,835.20"
12/11/2021,1245620,Spencer & Arlington,,Bi-Borough Director of Integrated Care,"3,724.56"
12/11/2021,1245620,Spencer & Arlington,,Bi-Borough Director of Integrated Care,"6,627.60"
12/11/2021,1245620,Spencer & Arlington,,Bi-Borough Director of Integrated Care,"2,576.00"
09/12/2021,1245620,Spencer & Arlington,,Bi-Borough Director of Integrated Care,"6,627.60"
09/12/2021,1245620,Spencer & Arlington,,Bi-Borough Director of Integrated Care,"2,576.00"
09/12/2021,1245620,Spencer & Arlington,,Bi-Borough Director of Integrated Care,"3,724.56"
09/12/2021,1245620,Spencer & Arlington,,Bi-Borough Director of Integrated Care,"12,835.20"
14/10/2021,1243543,Springlake Care Home Ltd,,Bi-Borough Director of Integrated Care,"6,800.00"
14/10/2021,1243543,Springlake Care Home Ltd,,Bi-Borough Director of Integrated Care,"5,400.00"
14/10/2021,1243543,Springlake Care Home Ltd,,Bi-Borough Director of Integrated Care,"6,000.00"
12/11/2021,1243543,Springlake Care Home Ltd,,Bi-Borough Director of Integrated Care,"6,800.00"
12/11/2021,1243543,Springlake Care Home Ltd,,Bi-Borough Director of Integrated Care,"5,400.00"
12/11/2021,1243543,Springlake Care Home Ltd,,Bi-Borough Director of Integrated Care,"6,000.00"
09/12/2021,1243543,Springlake Care Home Ltd,,Bi-Borough Director of Integrated Care,"5,400.00"
09/12/2021,1243543,Springlake Care Home Ltd,,Bi-Borough Director of Integrated Care,"6,000.00"
09/12/2021,1243543,Springlake Care Home Ltd,,Bi-Borough Director of Integrated Care,"6,800.00"
14/10/2021,1248948,St Davids Care In The Community,,Bi-Borough Director of Integrated Care,"3,132.56"
14/10/2021,1248948,St Davids Care In The Community,,Bi-Borough Director of Integrated Care,"3,440.00"
12/11/2021,1248948,St Davids Care In The Community,,Bi-Borough Director of Integrated Care,"3,132.56"
12/11/2021,1248948,St Davids Care In The Community,,Bi-Borough Director of Integrated Care,"3,440.00"
09/12/2021,1248948,St Davids Care In The Community,,Bi-Borough Director of Integrated Care,"3,132.56"
09/12/2021,1248948,St Davids Care In The Community,,Bi-Borough Director of Integrated Care,"3,440.00"
10/11/2021,1245825,Sweet Tree Home Care Services,,Bi-Borough Director of Integrated Care,"4,688.85"
23/11/2021,1245825,Sweet Tree Home Care Services,,Bi-Borough Director of Integrated Care,"4,700.29"
02/12/2021,1245825,Sweet Tree Home Care Services,,Bi-Borough Director of Integrated Care,"4,694.24"
14/10/2021,1245900,The Grace Eyre Foundation,,Bi-Borough Director of Integrated Care,"3,290.16"
14/10/2021,1245900,The Grace Eyre Foundation,,Bi-Borough Director of Integrated Care,"4,235.96"
12/11/2021,1245900,The Grace Eyre Foundation,,Bi-Borough Director of Integrated Care,"4,235.96"
12/11/2021,1245900,The Grace Eyre Foundation,,Bi-Borough Director of Integrated Care,"3,290.16"
09/12/2021,1245900,The Grace Eyre Foundation,,Bi-Borough Director of Integrated Care,"4,235.96"
09/12/2021,1245900,The Grace Eyre Foundation,,Bi-Borough Director of Integrated Care,"3,290.16"
14/10/2021,1245929,The Regard Partnership Ltd,,Bi-Borough Director of Integrated Care,"3,932.76"
14/10/2021,1245929,The Regard Partnership Ltd,,Bi-Borough Director of Integrated Care,"6,222.20"
14/10/2021,1245929,The Regard Partnership Ltd,,Bi-Borough Director of Integrated Care,"9,292.60"
12/11/2021,1245929,The Regard Partnership Ltd,,Bi-Borough Director of Integrated Care,"6,222.20"
12/11/2021,1245929,The Regard Partnership Ltd,,Bi-Borough Director of Integrated Care,"9,292.60"
12/11/2021,1245929,The Regard Partnership Ltd,,Bi-Borough Director of Integrated Care,"3,932.76"
09/12/2021,1245929,The Regard Partnership Ltd,,Bi-Borough Director of Integrated Care,"6,222.20"
09/12/2021,1245929,The Regard Partnership Ltd,,Bi-Borough Director of Integrated Care,"9,292.60"
09/12/2021,1245929,The Regard Partnership Ltd,,Bi-Borough Director of Integrated Care,"3,932.76"
14/10/2021,1249156,The Wirral Autistic Society,,Bi-Borough Director of Integrated Care,"4,271.20"
12/11/2021,1249156,The Wirral Autistic Society,,Bi-Borough Director of Integrated Care,"4,271.20"
09/12/2021,1249156,The Wirral Autistic Society,,Bi-Borough Director of Integrated Care,"4,271.20"
14/10/2021,1246095,Theana Ltd T/a Enlighten Homes,,Bi-Borough Director of Integrated Care,"5,892.00"
12/11/2021,1246095,Theana Ltd T/a Enlighten Homes,,Bi-Borough Director of Integrated Care,"5,892.00"
09/12/2021,1246095,Theana Ltd T/a Enlighten Homes,,Bi-Borough Director of Integrated Care,"5,892.00"
12/11/2021,1249232,Vincentian Care Plus,,Bi-Borough Director of Integrated Care,518.84
07/12/2021,1249232,Vincentian Care Plus,,Bi-Borough Director of Integrated Care,"1,037.68"
14/10/2021,1243552,Vision Homes Association,,Bi-Borough Director of Integrated Care,"7,760.00"
12/11/2021,1243552,Vision Homes Association,,Bi-Borough Director of Integrated Care,"7,760.00"
09/12/2021,1243552,Vision Homes Association,,Bi-Borough Director of Integrated Care,"7,760.00"
14/10/2021,1243553,Voyage Care (Bridge House),,Bi-Borough Director of Integrated Care,"4,702.96"
14/10/2021,1243553,Voyage Care (Bridge House),,Bi-Borough Director of Integrated Care,"6,657.04"
12/11/2021,1243553,Voyage Care (Bridge House),,Bi-Borough Director of Integrated Care,"4,702.96"
12/11/2021,1243553,Voyage Care (Bridge House),,Bi-Borough Director of Integrated Care,"6,657.04"
09/12/2021,1243553,Voyage Care (Bridge House),,Bi-Borough Director of Integrated Care,"6,657.04"
09/12/2021,1243553,Voyage Care (Bridge House),,Bi-Borough Director of Integrated Care,"7,986.73"
09/12/2021,1243553,Voyage Care (Bridge House),,Bi-Borough Director of Integrated Care,"4,702.96"
14/10/2021,1243554,Voyage Care (Kenton House),,Bi-Borough Director of Integrated Care,"5,809.96"
12/11/2021,1243554,Voyage Care (Kenton House),,Bi-Borough Director of Integrated Care,"5,809.96"
09/12/2021,1243554,Voyage Care (Kenton House),,Bi-Borough Director of Integrated Care,"5,809.96"
12/10/2021,1249291,Westminster Society,Hired and Contracted Services,Bi-Borough Director of Integrated Care,"200,000.00"
14/10/2021,1249291,Westminster Society,,Bi-Borough Director of Integrated Care,"2,507.12"
14/10/2021,1249291,Westminster Society,,Bi-Borough Director of Integrated Care,540.76
14/10/2021,1249291,Westminster Society,,Bi-Borough Director of Integrated Care,"2,574.88"
14/10/2021,1249291,Westminster Society,,Bi-Borough Director of Integrated Care,"1,965.04"
14/10/2021,1249291,Westminster Society,,Bi-Borough Director of Integrated Care,853.96
14/10/2021,1249291,Westminster Society,,Bi-Borough Director of Integrated Care,"3,608.24"
14/10/2021,1249291,Westminster Society,,Bi-Borough Director of Integrated Care,"2,778.16"
14/10/2021,1249291,Westminster Society,,Bi-Borough Director of Integrated Care,"2,303.84"
14/10/2021,1249291,Westminster Society,,Bi-Borough Director of Integrated Care,"2,371.60"
14/10/2021,1249291,Westminster Society,,Bi-Borough Director of Integrated Care,"3,394.76"
14/10/2021,1249291,Westminster Society,,Bi-Borough Director of Integrated Care,713.64
14/10/2021,1249291,Westminster Society,,Bi-Borough Director of Integrated Care,"2,574.88"
14/10/2021,1249291,Westminster Society,,Bi-Borough Director of Integrated Care,721.00
14/10/2021,1249291,Westminster Society,,Bi-Borough Director of Integrated Care,"3,902.96"
14/10/2021,1249291,Westminster Society,,Bi-Borough Director of Integrated Care,853.96
14/10/2021,1249291,Westminster Society,,Bi-Borough Director of Integrated Care,"6,460.92"
14/10/2021,1249291,Westminster Society,,Bi-Borough Director of Integrated Care,721.00
14/10/2021,1249291,Westminster Society,,Bi-Borough Director of Integrated Care,853.96
14/10/2021,1249291,Westminster Society,,Bi-Borough Director of Integrated Care,"1,067.44"
14/10/2021,1249291,Westminster Society,,Bi-Borough Director of Integrated Care,"5,901.88"
14/10/2021,1249291,Westminster Society,,Bi-Borough Director of Integrated Care,721.00
14/10/2021,1249291,Westminster Society,,Bi-Borough Director of Integrated Care,"2,676.52"
14/10/2021,1249291,Westminster Society,,Bi-Borough Director of Integrated Care,713.64
14/10/2021,1249291,Westminster Society,,Bi-Borough Director of Integrated Care,"2,608.76"
14/10/2021,1249291,Westminster Society,,Bi-Borough Director of Integrated Care,"4,336.64"
14/10/2021,1249291,Westminster Society,,Bi-Borough Director of Integrated Care,"2,845.92"
14/10/2021,1249291,Westminster Society,,Bi-Borough Director of Integrated Care,"2,574.88"
14/10/2021,1249291,Westminster Society,,Bi-Borough Director of Integrated Care,677.60
14/10/2021,1249291,Westminster Society,,Bi-Borough Director of Integrated Care,"1,829.52"
14/10/2021,1249291,Westminster Society,,Bi-Borough Director of Integrated Care,"5,217.52"
14/10/2021,1249291,Westminster Society,,Bi-Borough Director of Integrated Care,540.76
14/10/2021,1249291,Westminster Society,,Bi-Borough Director of Integrated Care,"1,624.56"
14/10/2021,1249291,Westminster Society,,Bi-Borough Director of Integrated Care,"7,995.68"
14/10/2021,1249291,Westminster Society,,Bi-Borough Director of Integrated Care,540.76
14/10/2021,1249291,Westminster Society,,Bi-Borough Director of Integrated Care,853.96
14/10/2021,1249291,Westminster Society,,Bi-Borough Director of Integrated Care,"4,340.88"
14/10/2021,1249291,Westminster Society,,Bi-Borough Director of Integrated Care,948.64
14/10/2021,1249291,Westminster Society,,Bi-Borough Director of Integrated Care,"1,219.68"
14/10/2021,1249291,Westminster Society,,Bi-Borough Director of Integrated Care,542.08
14/10/2021,1249291,Westminster Society,,Bi-Borough Director of Integrated Care,"2,100.56"
14/10/2021,1249291,Westminster Society,,Bi-Borough Director of Integrated Care,779.24
14/10/2021,1249291,Westminster Society,,Bi-Borough Director of Integrated Care,853.96
14/10/2021,1249291,Westminster Society,,Bi-Borough Director of Integrated Care,"4,709.32"
14/10/2021,1249291,Westminster Society,,Bi-Borough Director of Integrated Care,713.64
14/10/2021,1249291,Westminster Society,,Bi-Borough Director of Integrated Care,"3,394.76"
14/10/2021,1249291,Westminster Society,,Bi-Borough Director of Integrated Care,713.64
14/10/2021,1249291,Westminster Society,,Bi-Borough Director of Integrated Care,"5,746.04"
14/10/2021,1249291,Westminster Society,,Bi-Borough Director of Integrated Care,"3,049.20"
14/10/2021,1249291,Westminster Society,,Bi-Borough Director of Integrated Care,"3,320.24"
14/10/2021,1249291,Westminster Society,,Bi-Borough Director of Integrated Care,542.08
14/10/2021,1249291,Westminster Society,,Bi-Borough Director of Integrated Care,853.96
14/10/2021,1249291,Westminster Society,,Bi-Borough Director of Integrated Care,"3,879.28"
14/10/2021,1249291,Westminster Society,,Bi-Borough Director of Integrated Care,"1,185.80"
14/10/2021,1249291,Westminster Society,,Bi-Borough Director of Integrated Care,"3,252.48"
14/10/2021,1249291,Westminster Society,,Bi-Borough Director of Integrated Care,"6,084.84"
14/10/2021,1249291,Westminster Society,,Bi-Borough Director of Integrated Care,853.96
14/10/2021,1249291,Westminster Society,,Bi-Borough Director of Integrated Care,540.76
14/10/2021,1249291,Westminster Society,,Bi-Borough Director of Integrated Care,"1,490.72"
14/10/2021,1249291,Westminster Society,,Bi-Borough Director of Integrated Care,"1,118.04"
14/10/2021,1249291,Westminster Society,,Bi-Borough Director of Integrated Care,"7,833.04"
14/10/2021,1249291,Westminster Society,,Bi-Borough Director of Integrated Care,721.00
14/10/2021,1249291,Westminster Society,,Bi-Borough Director of Integrated Care,853.96
14/10/2021,1249291,Westminster Society,,Bi-Borough Director of Integrated Care,"7,931.32"
14/10/2021,1249291,Westminster Society,,Bi-Borough Director of Integrated Care,721.00
14/10/2021,1249291,Westminster Society,,Bi-Borough Director of Integrated Care,"1,067.44"
14/10/2021,1249291,Westminster Society,,Bi-Borough Director of Integrated Care,540.76
14/10/2021,1249291,Westminster Society,,Bi-Borough Director of Integrated Care,"1,694.00"
14/10/2021,1249291,Westminster Society,,Bi-Borough Director of Integrated Care,"4,743.20"
14/10/2021,1249291,Westminster Society,,Bi-Borough Director of Integrated Care,"3,388.00"
14/10/2021,1249291,Westminster Society,,Bi-Borough Director of Integrated Care,"3,794.56"
14/10/2021,1249291,Westminster Society,,Bi-Borough Director of Integrated Care,542.08
14/10/2021,1249291,Westminster Society,,Bi-Borough Director of Integrated Care,"4,987.12"
14/10/2021,1249291,Westminster Society,,Bi-Borough Director of Integrated Care,713.64
14/10/2021,1249291,Westminster Society,,Bi-Borough Director of Integrated Care,"3,659.04"
14/10/2021,1249291,Westminster Society,,Bi-Borough Director of Integrated Care,853.96
14/10/2021,1249291,Westminster Society,,Bi-Borough Director of Integrated Care,540.76
14/10/2021,1249291,Westminster Society,,Bi-Borough Director of Integrated Care,"2,032.80"
14/10/2021,1249291,Westminster Society,,Bi-Borough Director of Integrated Care,"3,676.00"
14/10/2021,1249291,Westminster Society,,Bi-Borough Director of Integrated Care,540.76
14/10/2021,1249291,Westminster Society,,Bi-Borough Director of Integrated Care,"1,897.28"
14/10/2021,1249291,Westminster Society,,Bi-Borough Director of Integrated Care,"7,385.84"
14/10/2021,1249291,Westminster Society,,Bi-Borough Director of Integrated Care,"1,624.56"
14/10/2021,1249291,Westminster Society,,Bi-Borough Director of Integrated Care,"2,710.40"
14/10/2021,1249291,Westminster Society,,Bi-Borough Director of Integrated Care,"2,236.08"
14/10/2021,1249291,Westminster Society,,Bi-Borough Director of Integrated Care,982.52
14/10/2021,1249291,Westminster Society,,Bi-Borough Director of Integrated Care,"1,761.76"
14/10/2021,1249291,Westminster Society,,Bi-Borough Director of Integrated Care,948.64
14/10/2021,1249291,Westminster Society,,Bi-Borough Director of Integrated Care,"2,412.26"
14/10/2021,1249291,Westminster Society,,Bi-Borough Director of Integrated Care,"4,289.20"
14/10/2021,1249291,Westminster Society,,Bi-Borough Director of Integrated Care,"5,488.56"
14/10/2021,1249291,Westminster Society,,Bi-Borough Director of Integrated Care,"7,931.32"
14/10/2021,1249291,Westminster Society,,Bi-Borough Director of Integrated Care,"1,067.44"
14/10/2021,1249291,Westminster Society,,Bi-Borough Director of Integrated Care,721.00
14/10/2021,1249291,Westminster Society,,Bi-Borough Director of Integrated Care,713.64
14/10/2021,1249291,Westminster Society,,Bi-Borough Director of Integrated Care,"3,442.20"
14/10/2021,1249291,Westminster Society,,Bi-Borough Director of Integrated Care,"5,522.44"
14/10/2021,1249291,Westminster Society,,Bi-Borough Director of Integrated Care,713.64
14/10/2021,1249291,Westminster Society,,Bi-Borough Director of Integrated Care,"2,236.08"
14/10/2021,1249291,Westminster Society,,Bi-Borough Director of Integrated Care,"3,133.92"
14/10/2021,1249291,Westminster Society,,Bi-Borough Director of Integrated Care,853.96
14/10/2021,1249291,Westminster Society,,Bi-Borough Director of Integrated Care,"1,897.28"
14/10/2021,1249291,Westminster Society,,Bi-Borough Director of Integrated Care,713.64
14/10/2021,1249291,Westminster Society,,Bi-Borough Director of Integrated Care,"1,897.28"
14/10/2021,1249291,Westminster Society,,Bi-Borough Director of Integrated Care,"2,642.64"
14/10/2021,1249291,Westminster Society,,Bi-Borough Director of Integrated Care,"3,455.76"
14/10/2021,1249291,Westminster Society,,Bi-Borough Director of Integrated Care,"1,829.52"
14/10/2021,1249291,Westminster Society,,Bi-Borough Director of Integrated Care,"1,253.56"
14/10/2021,1249291,Westminster Society,,Bi-Borough Director of Integrated Care,"1,236.64"
14/10/2021,1249291,Westminster Society,,Bi-Borough Director of Integrated Care,"3,083.08"
14/10/2021,1249291,Westminster Society,,Bi-Borough Director of Integrated Care,948.64
14/10/2021,1249291,Westminster Society,,Bi-Borough Director of Integrated Care,"3,455.76"
14/10/2021,1249291,Westminster Society,,Bi-Borough Director of Integrated Care,713.64
14/10/2021,1249291,Westminster Society,,Bi-Borough Director of Integrated Care,"8,063.44"
14/10/2021,1249291,Westminster Society,,Bi-Borough Director of Integrated Care,"3,930.08"
14/10/2021,1249291,Westminster Society,,Bi-Borough Director of Integrated Care,540.76
14/10/2021,1249291,Westminster Society,,Bi-Borough Director of Integrated Care,609.84
14/10/2021,1249291,Westminster Society,,Bi-Borough Director of Integrated Care,721.00
14/10/2021,1249291,Westminster Society,,Bi-Borough Director of Integrated Care,853.96
14/10/2021,1249291,Westminster Society,,Bi-Borough Director of Integrated Care,"6,257.64"
21/10/2021,1249291,Westminster Society,B*Voluntary-Spot-V Dep-Enhanced - do not u,Bi-Borough Director of Integrated Care,680.00
02/11/2021,1249291,Westminster Society,Rent,Bi-Borough Director of Integrated Care,"14,397.28"
03/11/2021,1249291,Westminster Society,B*Voluntary-Spot-V Dep-Enhanced - do not u,Bi-Borough Director of Integrated Care,680.00
03/11/2021,1249291,Westminster Society,B*Voluntary-Spot-V Dep-Enhanced - do not u,Bi-Borough Director of Integrated Care,"1,190.00"
03/11/2021,1249291,Westminster Society,B*Voluntary-Spot-V Dep-Enhanced - do not u,Bi-Borough Director of Integrated Care,680.00
03/11/2021,1249291,Westminster Society,B*Voluntary-Spot-V Dep-Enhanced - do not u,Bi-Borough Director of Integrated Care,765.00
03/11/2021,1249291,Westminster Society,B*Voluntary-Spot-V Dep-Enhanced - do not u,Bi-Borough Director of Integrated Care,"1,105.00"
03/11/2021,1249291,Westminster Society,B*Voluntary-Spot-V Dep-Enhanced - do not u,Bi-Borough Director of Integrated Care,"1,190.00"
03/11/2021,1249291,Westminster Society,B*Voluntary-Spot-V Dep-Enhanced - do not u,Bi-Borough Director of Integrated Care,510.00
03/11/2021,1249291,Westminster Society,B*Voluntary-Spot-V Dep-Enhanced - do not u,Bi-Borough Director of Integrated Care,510.00
03/11/2021,1249291,Westminster Society,B*Voluntary-Spot-V Dep-Enhanced - do not u,Bi-Borough Director of Integrated Care,935.00
03/11/2021,1249291,Westminster Society,B*Voluntary-Spot-V Dep-Enhanced - do not u,Bi-Borough Director of Integrated Care,"1,615.00"
03/11/2021,1249291,Westminster Society,B*Voluntary-Spot-V Dep-Enhanced - do not u,Bi-Borough Director of Integrated Care,680.00
11/11/2021,1249291,Westminster Society,,Bi-Borough Director of Integrated Care,540.76
11/11/2021,1249291,Westminster Society,,Bi-Borough Director of Integrated Care,"4,093.06"
11/11/2021,1249291,Westminster Society,,Bi-Borough Director of Integrated Care,635.13
11/11/2021,1249291,Westminster Society,,Bi-Borough Director of Integrated Care,721.00
11/11/2021,1249291,Westminster Society,,Bi-Borough Director of Integrated Care,853.96
11/11/2021,1249291,Westminster Society,,Bi-Borough Director of Integrated Care,"6,517.14"
11/11/2021,1249291,Westminster Society,,Bi-Borough Director of Integrated Care,"2,611.09"
11/11/2021,1249291,Westminster Society,,Bi-Borough Director of Integrated Care,540.76
11/11/2021,1249291,Westminster Society,,Bi-Borough Director of Integrated Care,"2,681.66"
11/11/2021,1249291,Westminster Society,,Bi-Borough Director of Integrated Care,"2,046.53"
11/11/2021,1249291,Westminster Society,,Bi-Borough Director of Integrated Care,853.96
11/11/2021,1249291,Westminster Society,,Bi-Borough Director of Integrated Care,"3,757.87"
11/11/2021,1249291,Westminster Society,,Bi-Borough Director of Integrated Care,"2,716.95"
11/11/2021,1249291,Westminster Society,,Bi-Borough Director of Integrated Care,"4,516.48"
11/11/2021,1249291,Westminster Society,,Bi-Borough Director of Integrated Care,"2,963.94"
11/11/2021,1249291,Westminster Society,,Bi-Borough Director of Integrated Care,"2,681.66"
11/11/2021,1249291,Westminster Society,,Bi-Borough Director of Integrated Care,"3,535.55"
11/11/2021,1249291,Westminster Society,,Bi-Borough Director of Integrated Care,713.64
11/11/2021,1249291,Westminster Society,,Bi-Borough Director of Integrated Care,"3,175.65"
11/11/2021,1249291,Westminster Society,,Bi-Borough Director of Integrated Care,"3,457.93"
11/11/2021,1249291,Westminster Society,,Bi-Borough Director of Integrated Care,564.56
11/11/2021,1249291,Westminster Society,,Bi-Borough Director of Integrated Care,"4,040.15"
11/11/2021,1249291,Westminster Society,,Bi-Borough Director of Integrated Care,853.96
11/11/2021,1249291,Westminster Society,,Bi-Borough Director of Integrated Care,"1,234.98"
11/11/2021,1249291,Westminster Society,,Bi-Borough Director of Integrated Care,"3,387.36"
11/11/2021,1249291,Westminster Society,,Bi-Borough Director of Integrated Care,853.96
11/11/2021,1249291,Westminster Society,,Bi-Borough Director of Integrated Care,"6,337.18"
11/11/2021,1249291,Westminster Society,,Bi-Borough Director of Integrated Care,540.76
11/11/2021,1249291,Westminster Society,,Bi-Borough Director of Integrated Care,"1,552.54"
11/11/2021,1249291,Westminster Society,,Bi-Borough Director of Integrated Care,"1,164.41"
11/11/2021,1249291,Westminster Society,,Bi-Borough Director of Integrated Care,721.00
11/11/2021,1249291,Westminster Society,,Bi-Borough Director of Integrated Care,853.96
11/11/2021,1249291,Westminster Society,,Bi-Borough Director of Integrated Care,"8,157.88"
11/11/2021,1249291,Westminster Society,,Bi-Borough Director of Integrated Care,"8,260.23"
11/11/2021,1249291,Westminster Society,,Bi-Borough Director of Integrated Care,"1,067.44"
11/11/2021,1249291,Westminster Society,,Bi-Borough Director of Integrated Care,721.00
11/11/2021,1249291,Westminster Society,,Bi-Borough Director of Integrated Care,"1,764.25"
11/11/2021,1249291,Westminster Society,,Bi-Borough Director of Integrated Care,540.76
11/11/2021,1249291,Westminster Society,,Bi-Borough Director of Integrated Care,"4,939.90"
11/11/2021,1249291,Westminster Society,,Bi-Borough Director of Integrated Care,"1,624.56"
11/11/2021,1249291,Westminster Society,,Bi-Borough Director of Integrated Care,"2,893.37"
11/11/2021,1249291,Westminster Society,,Bi-Borough Director of Integrated Care,"2,399.38"
11/11/2021,1249291,Westminster Society,,Bi-Borough Director of Integrated Care,"2,469.95"
11/11/2021,1249291,Westminster Society,,Bi-Borough Director of Integrated Care,713.64
11/11/2021,1249291,Westminster Society,,Bi-Borough Director of Integrated Care,"3,535.55"
11/11/2021,1249291,Westminster Society,,Bi-Borough Director of Integrated Care,"2,681.66"
11/11/2021,1249291,Westminster Society,,Bi-Borough Director of Integrated Care,853.96
11/11/2021,1249291,Westminster Society,,Bi-Borough Director of Integrated Care,721.00
11/11/2021,1249291,Westminster Society,,Bi-Borough Director of Integrated Care,"4,064.82"
11/11/2021,1249291,Westminster Society,,Bi-Borough Director of Integrated Care,"6,728.85"
11/11/2021,1249291,Westminster Society,,Bi-Borough Director of Integrated Care,721.00
11/11/2021,1249291,Westminster Society,,Bi-Borough Director of Integrated Care,853.96
11/11/2021,1249291,Westminster Society,,Bi-Borough Director of Integrated Care,"6,146.64"
11/11/2021,1249291,Westminster Society,,Bi-Borough Director of Integrated Care,721.00
11/11/2021,1249291,Westminster Society,,Bi-Borough Director of Integrated Care,"1,067.44"
11/11/2021,1249291,Westminster Society,,Bi-Borough Director of Integrated Care,713.64
11/11/2021,1249291,Westminster Society,,Bi-Borough Director of Integrated Care,"2,787.52"
11/11/2021,1249291,Westminster Society,,Bi-Borough Director of Integrated Care,"3,528.50"
11/11/2021,1249291,Westminster Society,,Bi-Borough Director of Integrated Care,"3,951.92"
11/11/2021,1249291,Westminster Society,,Bi-Borough Director of Integrated Care,564.56
11/11/2021,1249291,Westminster Society,,Bi-Borough Director of Integrated Care,713.64
11/11/2021,1249291,Westminster Society,,Bi-Borough Director of Integrated Care,"5,193.94"
11/11/2021,1249291,Westminster Society,,Bi-Borough Director of Integrated Care,"3,810.78"
11/11/2021,1249291,Westminster Society,,Bi-Borough Director of Integrated Care,853.96
11/11/2021,1249291,Westminster Society,,Bi-Borough Director of Integrated Care,705.70
11/11/2021,1249291,Westminster Society,,Bi-Borough Director of Integrated Care,"1,905.39"
11/11/2021,1249291,Westminster Society,,Bi-Borough Director of Integrated Care,"5,433.89"
11/11/2021,1249291,Westminster Society,,Bi-Borough Director of Integrated Care,540.76
11/11/2021,1249291,Westminster Society,,Bi-Borough Director of Integrated Care,"1,624.56"
11/11/2021,1249291,Westminster Society,,Bi-Borough Director of Integrated Care,"8,327.26"
11/11/2021,1249291,Westminster Society,,Bi-Borough Director of Integrated Care,540.76
11/11/2021,1249291,Westminster Society,,Bi-Borough Director of Integrated Care,853.96
11/11/2021,1249291,Westminster Society,,Bi-Borough Director of Integrated Care,"5,791.83"
11/11/2021,1249291,Westminster Society,,Bi-Borough Director of Integrated Care,987.98
11/11/2021,1249291,Westminster Society,,Bi-Borough Director of Integrated Care,564.56
11/11/2021,1249291,Westminster Society,,Bi-Borough Director of Integrated Care,"2,187.67"
11/11/2021,1249291,Westminster Society,,Bi-Borough Director of Integrated Care,811.56
11/11/2021,1249291,Westminster Society,,Bi-Borough Director of Integrated Care,"2,117.10"
11/11/2021,1249291,Westminster Society,,Bi-Borough Director of Integrated Care,540.76
11/11/2021,1249291,Westminster Society,,Bi-Borough Director of Integrated Care,"3,828.44"
11/11/2021,1249291,Westminster Society,,Bi-Borough Director of Integrated Care,540.76
11/11/2021,1249291,Westminster Society,,Bi-Borough Director of Integrated Care,"1,975.96"
11/11/2021,1249291,Westminster Society,,Bi-Borough Director of Integrated Care,853.96
11/11/2021,1249291,Westminster Society,,Bi-Borough Director of Integrated Care,"4,904.62"
11/11/2021,1249291,Westminster Society,,Bi-Borough Director of Integrated Care,"5,984.33"
11/11/2021,1249291,Westminster Society,,Bi-Borough Director of Integrated Care,713.64
11/11/2021,1249291,Westminster Society,,Bi-Borough Director of Integrated Care,"1,624.56"
11/11/2021,1249291,Westminster Society,,Bi-Borough Director of Integrated Care,"7,692.13"
11/11/2021,1249291,Westminster Society,,Bi-Borough Director of Integrated Care,"2,822.80"
11/11/2021,1249291,Westminster Society,,Bi-Borough Director of Integrated Care,"2,328.81"
11/11/2021,1249291,Westminster Society,,Bi-Borough Director of Integrated Care,"1,023.27"
11/11/2021,1249291,Westminster Society,,Bi-Borough Director of Integrated Care,"1,834.82"
11/11/2021,1249291,Westminster Society,,Bi-Borough Director of Integrated Care,987.98
11/11/2021,1249291,Westminster Society,,Bi-Borough Director of Integrated Care,"2,540.52"
11/11/2021,1249291,Westminster Society,,Bi-Borough Director of Integrated Care,"4,467.08"
11/11/2021,1249291,Westminster Society,,Bi-Borough Director of Integrated Care,"5,716.17"
11/11/2021,1249291,Westminster Society,,Bi-Borough Director of Integrated Care,"8,260.23"
11/11/2021,1249291,Westminster Society,,Bi-Borough Director of Integrated Care,721.00
11/11/2021,1249291,Westminster Society,,Bi-Borough Director of Integrated Care,"1,067.44"
11/11/2021,1249291,Westminster Society,,Bi-Borough Director of Integrated Care,713.64
11/11/2021,1249291,Westminster Society,,Bi-Borough Director of Integrated Care,"3,584.95"
11/11/2021,1249291,Westminster Society,,Bi-Borough Director of Integrated Care,713.64
11/11/2021,1249291,Westminster Society,,Bi-Borough Director of Integrated Care,"5,751.46"
11/11/2021,1249291,Westminster Society,,Bi-Borough Director of Integrated Care,"2,328.81"
11/11/2021,1249291,Westminster Society,B*Voluntary-Spot-V Dep-Enhanced - do not u,Bi-Borough Director of Integrated Care,765.00
11/11/2021,1249291,Westminster Society,,Bi-Borough Director of Integrated Care,"3,263.88"
11/11/2021,1249291,Westminster Society,,Bi-Borough Director of Integrated Care,853.96
11/11/2021,1249291,Westminster Society,,Bi-Borough Director of Integrated Care,"1,975.96"
11/11/2021,1249291,Westminster Society,,Bi-Borough Director of Integrated Care,713.64
11/11/2021,1249291,Westminster Society,,Bi-Borough Director of Integrated Care,"1,975.96"
11/11/2021,1249291,Westminster Society,B*Voluntary-Spot-V Dep-Enhanced - do not u,Bi-Borough Director of Integrated Care,510.00
11/11/2021,1249291,Westminster Society,,Bi-Borough Director of Integrated Care,"14,564.31"
11/11/2021,1249291,Westminster Society,,Bi-Borough Director of Integrated Care,"1,921.41"
11/11/2021,1249291,Westminster Society,,Bi-Borough Director of Integrated Care,"2,752.23"
11/11/2021,1249291,Westminster Society,B*Voluntary-Spot-V Dep-Enhanced - do not u,Bi-Borough Director of Integrated Care,510.00
11/11/2021,1249291,Westminster Society,,Bi-Borough Director of Integrated Care,"3,599.07"
11/11/2021,1249291,Westminster Society,,Bi-Borough Director of Integrated Care,"1,905.39"
11/11/2021,1249291,Westminster Society,B*Voluntary-Spot-V Dep-Enhanced - do not u,Bi-Borough Director of Integrated Care,510.00
11/11/2021,1249291,Westminster Society,,Bi-Borough Director of Integrated Care,"1,305.55"
11/11/2021,1249291,Westminster Society,,Bi-Borough Director of Integrated Care,"1,287.92"
11/11/2021,1249291,Westminster Society,B*Voluntary-Spot-V Dep-Enhanced - do not u,Bi-Borough Director of Integrated Care,510.00
11/11/2021,1249291,Westminster Society,,Bi-Borough Director of Integrated Care,"3,210.94"
11/11/2021,1249291,Westminster Society,B*Voluntary-Spot-V Dep-Enhanced - do not u,Bi-Borough Director of Integrated Care,510.00
11/11/2021,1249291,Westminster Society,,Bi-Borough Director of Integrated Care,987.98
11/11/2021,1249291,Westminster Society,B*Voluntary-Spot-V Dep-Enhanced - do not u,Bi-Borough Director of Integrated Care,510.00
11/11/2021,1249291,Westminster Society,,Bi-Borough Director of Integrated Care,"3,599.07"
11/11/2021,1249291,Westminster Society,B*Voluntary-Spot-V Dep-Enhanced - do not u,Bi-Borough Director of Integrated Care,510.00
11/11/2021,1249291,Westminster Society,,Bi-Borough Director of Integrated Care,713.64
11/11/2021,1249291,Westminster Society,,Bi-Borough Director of Integrated Care,"8,397.83"
11/11/2021,1249291,Westminster Society,B*Voluntary-Spot-V Dep-Enhanced - do not u,Bi-Borough Director of Integrated Care,765.00
11/11/2021,1249291,Westminster Society,B*Voluntary-Spot-V Dep-Enhanced - do not u,Bi-Borough Director of Integrated Care,510.00
11/11/2021,1249291,Westminster Society,B*Voluntary-Spot-V Dep-Enhanced - do not u,Bi-Borough Director of Integrated Care,510.00
11/11/2021,1249291,Westminster Society,B*Voluntary-Spot-V Dep-Enhanced - do not u,Bi-Borough Director of Integrated Care,"1,020.00"
11/11/2021,1249291,Westminster Society,B*Voluntary-Spot-V Dep-Enhanced - do not u,Bi-Borough Director of Integrated Care,"2,550.00"
11/11/2021,1249291,Westminster Society,B*Voluntary-Spot-V Dep-Enhanced - do not u,Bi-Borough Director of Integrated Care,595.00
11/11/2021,1249291,Westminster Society,B*Voluntary-Spot-V Dep-Enhanced - do not u,Bi-Borough Director of Integrated Care,510.00
11/11/2021,1249291,Westminster Society,B*Voluntary-Spot-V Dep-Enhanced - do not u,Bi-Borough Director of Integrated Care,595.00
11/11/2021,1249291,Westminster Society,B*Voluntary-Spot-V Dep-Enhanced - do not u,Bi-Borough Director of Integrated Care,595.00
11/11/2021,1249291,Westminster Society,B*Voluntary-Spot-V Dep-Enhanced - do not u,Bi-Borough Director of Integrated Care,"1,020.00"
11/11/2021,1249291,Westminster Society,B*Voluntary-Spot-V Dep-Enhanced - do not u,Bi-Borough Director of Integrated Care,850.00
11/11/2021,1249291,Westminster Society,B*Voluntary-Spot-V Dep-Enhanced - do not u,Bi-Borough Director of Integrated Care,782.00
11/11/2021,1249291,Westminster Society,B*Voluntary-Spot-V Dep-Enhanced - do not u,Bi-Borough Director of Integrated Care,"1,360.00"
11/11/2021,1249291,Westminster Society,B*Voluntary-Spot-V Dep-Enhanced - do not u,Bi-Borough Director of Integrated Care,"1,020.00"
11/11/2021,1249291,Westminster Society,B*Voluntary-Spot-V Dep-Enhanced - do not u,Bi-Borough Director of Integrated Care,765.00
11/11/2021,1249291,Westminster Society,B*Voluntary-Spot-V Dep-Enhanced - do not u,Bi-Borough Director of Integrated Care,510.00
11/11/2021,1249291,Westminster Society,B*Voluntary-Spot-V Dep-Enhanced - do not u,Bi-Borough Director of Integrated Care,"2,125.00"
12/11/2021,1249291,Westminster Society,Rent,Bi-Borough Director of Integrated Care,"10,923.35"
12/11/2021,1249291,Westminster Society,Rent,Bi-Borough Director of Integrated Care,"14,372.62"
12/11/2021,1249291,Westminster Society,B*Voluntary-Spot-V Dep-Enhanced - do not u,Bi-Borough Director of Integrated Care,"1,700.00"
12/11/2021,1249291,Westminster Society,B*Voluntary-Spot-V Dep-Enhanced - do not u,Bi-Borough Director of Integrated Care,"2,125.00"
12/11/2021,1249291,Westminster Society,B*Voluntary-Spot-V Dep-Enhanced - do not u,Bi-Borough Director of Integrated Care,"2,125.00"
12/11/2021,1249291,Westminster Society,B*Voluntary-Spot-V Dep-Enhanced - do not u,Bi-Borough Director of Integrated Care,"2,125.00"
24/11/2021,1249291,Westminster Society,B*Voluntary-Spot-V Dep-Enhanced - do not u,Bi-Borough Director of Integrated Care,816.00
24/11/2021,1249291,Westminster Society,B*Voluntary-Spot-V Dep-Enhanced - do not u,Bi-Borough Director of Integrated Care,"1,088.00"
24/11/2021,1249291,Westminster Society,B*Voluntary-Spot-V Dep-Enhanced - do not u,Bi-Borough Director of Integrated Care,782.00
24/11/2021,1249291,Westminster Society,B*Voluntary-Spot-V Dep-Enhanced - do not u,Bi-Borough Director of Integrated Care,612.00
24/11/2021,1249291,Westminster Society,B*Voluntary-Spot-V Dep-Enhanced - do not u,Bi-Borough Director of Integrated Care,612.00
24/11/2021,1249291,Westminster Society,B*Voluntary-Spot-V Dep-Enhanced - do not u,Bi-Borough Director of Integrated Care,"1,020.00"
24/11/2021,1249291,Westminster Society,B*Voluntary-Spot-V Dep-Enhanced - do not u,Bi-Borough Director of Integrated Care,816.00
24/11/2021,1249291,Westminster Society,B*Voluntary-Spot-V Dep-Enhanced - do not u,Bi-Borough Director of Integrated Care,612.00
24/11/2021,1249291,Westminster Society,B*Voluntary-Spot-V Dep-Enhanced - do not u,Bi-Borough Director of Integrated Care,680.00
24/11/2021,1249291,Westminster Society,B*Voluntary-Spot-V Dep-Enhanced - do not u,Bi-Borough Director of Integrated Care,816.00
24/11/2021,1249291,Westminster Society,B*Voluntary-Spot-V Dep-Enhanced - do not u,Bi-Borough Director of Integrated Care,"1,700.00"
24/11/2021,1249291,Westminster Society,B*Voluntary-Spot-V Dep-Enhanced - do not u,Bi-Borough Director of Integrated Care,"2,040.00"
24/11/2021,1249291,Westminster Society,B*Voluntary-Spot-V Dep-Enhanced - do not u,Bi-Borough Director of Integrated Care,680.00
25/11/2021,1249291,Westminster Society,B*Voluntary-Spot-V Dep-Enhanced - do not u,Bi-Borough Director of Integrated Care,952.00
30/11/2021,1249291,Westminster Society,B*Voluntary-Spot-V Dep-Enhanced - do not u,Bi-Borough Director of Integrated Care,612.00
30/11/2021,1249291,Westminster Society,B*Voluntary-Spot-V Dep-Enhanced - do not u,Bi-Borough Director of Integrated Care,748.00
30/11/2021,1249291,Westminster Society,B*Voluntary-Spot-V Dep-Enhanced - do not u,Bi-Borough Director of Integrated Care,952.00
30/11/2021,1249291,Westminster Society,B*Voluntary-Spot-V Dep-Enhanced - do not u,Bi-Borough Director of Integrated Care,"1,292.00"
30/11/2021,1249291,Westminster Society,B*Voluntary-Spot-V Dep-Enhanced - do not u,Bi-Borough Director of Integrated Care,884.00
30/11/2021,1249291,Westminster Society,B*Voluntary-Spot-V Dep-Enhanced - do not u,Bi-Borough Director of Integrated Care,544.00
30/11/2021,1249291,Westminster Society,B*Voluntary-Spot-V Dep-Enhanced - do not u,Bi-Borough Director of Integrated Care,544.00
30/11/2021,1249291,Westminster Society,B*Voluntary-Spot-V Dep-Enhanced - do not u,Bi-Borough Director of Integrated Care,544.00
08/12/2021,1249291,Westminster Society,,Bi-Borough Director of Integrated Care,"3,950.00"
08/12/2021,1249291,Westminster Society,,Bi-Borough Director of Integrated Care,"4,424.00"
08/12/2021,1249291,Westminster Society,,Bi-Borough Director of Integrated Care,632.00
08/12/2021,1249291,Westminster Society,,Bi-Borough Director of Integrated Care,713.64
08/12/2021,1249291,Westminster Society,,Bi-Borough Director of Integrated Care,"5,814.40"
08/12/2021,1249291,Westminster Society,,Bi-Borough Director of Integrated Care,853.96
08/12/2021,1249291,Westminster Society,,Bi-Borough Director of Integrated Care,"4,266.00"
08/12/2021,1249291,Westminster Society,,Bi-Borough Director of Integrated Care,540.76
08/12/2021,1249291,Westminster Society,,Bi-Borough Director of Integrated Care,"2,370.00"
08/12/2021,1249291,Westminster Society,,Bi-Borough Director of Integrated Care,"4,285.76"
08/12/2021,1249291,Westminster Society,,Bi-Borough Director of Integrated Care,540.76
08/12/2021,1249291,Westminster Society,,Bi-Borough Director of Integrated Care,"2,212.00"
08/12/2021,1249291,Westminster Society,,Bi-Borough Director of Integrated Care,"8,611.00"
08/12/2021,1249291,Westminster Society,,Bi-Borough Director of Integrated Care,"1,624.56"
08/12/2021,1249291,Westminster Society,,Bi-Borough Director of Integrated Care,"3,160.00"
08/12/2021,1249291,Westminster Society,,Bi-Borough Director of Integrated Care,"2,607.00"
08/12/2021,1249291,Westminster Society,,Bi-Borough Director of Integrated Care,"1,145.52"
08/12/2021,1249291,Westminster Society,,Bi-Borough Director of Integrated Care,"2,054.00"
08/12/2021,1249291,Westminster Society,,Bi-Borough Director of Integrated Care,"1,106.00"
08/12/2021,1249291,Westminster Society,,Bi-Borough Director of Integrated Care,"2,844.00"
08/12/2021,1249291,Westminster Society,,Bi-Borough Director of Integrated Care,"5,000.72"
08/12/2021,1249291,Westminster Society,,Bi-Borough Director of Integrated Care,"6,399.00"
08/12/2021,1249291,Westminster Society,,Bi-Borough Director of Integrated Care,"1,067.44"
08/12/2021,1249291,Westminster Society,,Bi-Borough Director of Integrated Care,721.00
08/12/2021,1249291,Westminster Society,,Bi-Borough Director of Integrated Care,"9,246.96"
08/12/2021,1249291,Westminster Society,,Bi-Borough Director of Integrated Care,713.64
08/12/2021,1249291,Westminster Society,,Bi-Borough Director of Integrated Care,"4,013.20"
08/12/2021,1249291,Westminster Society,,Bi-Borough Director of Integrated Care,713.64
08/12/2021,1249291,Westminster Society,,Bi-Borough Director of Integrated Care,"6,438.52"
08/12/2021,1249291,Westminster Society,,Bi-Borough Director of Integrated Care,"2,607.00"
08/12/2021,1249291,Westminster Society,,Bi-Borough Director of Integrated Care,853.96
08/12/2021,1249291,Westminster Society,,Bi-Borough Director of Integrated Care,"3,653.76"
08/12/2021,1249291,Westminster Society,,Bi-Borough Director of Integrated Care,"2,212.00"
08/12/2021,1249291,Westminster Society,,Bi-Borough Director of Integrated Care,713.64
08/12/2021,1249291,Westminster Society,,Bi-Borough Director of Integrated Care,"2,212.00"
08/12/2021,1249291,Westminster Society,,Bi-Borough Director of Integrated Care,"7,410.20"
08/12/2021,1249291,Westminster Society,,Bi-Borough Director of Integrated Care,853.96
08/12/2021,1249291,Westminster Society,,Bi-Borough Director of Integrated Care,"3,081.00"
08/12/2021,1249291,Westminster Society,,Bi-Borough Director of Integrated Care,"4,029.00"
08/12/2021,1249291,Westminster Society,,Bi-Borough Director of Integrated Care,"2,133.00"
08/12/2021,1249291,Westminster Society,,Bi-Borough Director of Integrated Care,553.00
08/12/2021,1249291,Westminster Society,,Bi-Borough Director of Integrated Care,"1,461.52"
08/12/2021,1249291,Westminster Society,,Bi-Borough Director of Integrated Care,"1,441.76"
08/12/2021,1249291,Westminster Society,,Bi-Borough Director of Integrated Care,"3,594.52"
08/12/2021,1249291,Westminster Society,,Bi-Borough Director of Integrated Care,"1,106.00"
08/12/2021,1249291,Westminster Society,,Bi-Borough Director of Integrated Care,"4,029.00"
08/12/2021,1249291,Westminster Society,,Bi-Borough Director of Integrated Care,713.64
08/12/2021,1249291,Westminster Society,,Bi-Borough Director of Integrated Care,"9,401.00"
08/12/2021,1249291,Westminster Society,,Bi-Borough Director of Integrated Care,"4,582.00"
08/12/2021,1249291,Westminster Society,,Bi-Borough Director of Integrated Care,540.76
08/12/2021,1249291,Westminster Society,,Bi-Borough Director of Integrated Care,711.00
08/12/2021,1249291,Westminster Society,,Bi-Borough Director of Integrated Care,721.00
08/12/2021,1249291,Westminster Society,,Bi-Borough Director of Integrated Care,"7,295.64"
08/12/2021,1249291,Westminster Society,,Bi-Borough Director of Integrated Care,853.96
08/12/2021,1249291,Westminster Society,,Bi-Borough Director of Integrated Care,"2,923.00"
08/12/2021,1249291,Westminster Society,,Bi-Borough Director of Integrated Care,"3,002.00"
08/12/2021,1249291,Westminster Society,,Bi-Borough Director of Integrated Care,540.76
08/12/2021,1249291,Westminster Society,,Bi-Borough Director of Integrated Care,"2,291.00"
08/12/2021,1249291,Westminster Society,,Bi-Borough Director of Integrated Care,"4,206.76"
08/12/2021,1249291,Westminster Society,,Bi-Borough Director of Integrated Care,853.96
08/12/2021,1249291,Westminster Society,,Bi-Borough Director of Integrated Care,553.00
08/12/2021,1249291,Westminster Society,,Bi-Borough Director of Integrated Care,"3,239.00"
08/12/2021,1249291,Westminster Society,,Bi-Borough Director of Integrated Care,"2,686.00"
08/12/2021,1249291,Westminster Society,,Bi-Borough Director of Integrated Care,"2,765.00"
08/12/2021,1249291,Westminster Society,,Bi-Borough Director of Integrated Care,"3,957.92"
08/12/2021,1249291,Westminster Society,,Bi-Borough Director of Integrated Care,713.64
08/12/2021,1249291,Westminster Society,,Bi-Borough Director of Integrated Care,"3,002.00"
08/12/2021,1249291,Westminster Society,,Bi-Borough Director of Integrated Care,721.00
08/12/2021,1249291,Westminster Society,,Bi-Borough Director of Integrated Care,853.96
08/12/2021,1249291,Westminster Society,,Bi-Borough Director of Integrated Care,"4,550.40"
08/12/2021,1249291,Westminster Society,,Bi-Borough Director of Integrated Care,853.96
08/12/2021,1249291,Westminster Society,,Bi-Borough Director of Integrated Care,"7,532.64"
08/12/2021,1249291,Westminster Society,,Bi-Borough Director of Integrated Care,721.00
08/12/2021,1249291,Westminster Society,,Bi-Borough Director of Integrated Care,"1,067.44"
08/12/2021,1249291,Westminster Society,,Bi-Borough Director of Integrated Care,"6,880.92"
08/12/2021,1249291,Westminster Society,,Bi-Borough Director of Integrated Care,721.00
08/12/2021,1249291,Westminster Society,,Bi-Borough Director of Integrated Care,713.64
08/12/2021,1249291,Westminster Society,,Bi-Borough Director of Integrated Care,"3,120.52"
08/12/2021,1249291,Westminster Society,,Bi-Borough Director of Integrated Care,"3,041.52"
08/12/2021,1249291,Westminster Society,,Bi-Borough Director of Integrated Care,"5,056.00"
08/12/2021,1249291,Westminster Society,,Bi-Borough Director of Integrated Care,"12,809.16"
08/12/2021,1249291,Westminster Society,,Bi-Borough Director of Integrated Care,"3,318.00"
08/12/2021,1249291,Westminster Society,,Bi-Borough Director of Integrated Care,"3,002.00"
08/12/2021,1249291,Westminster Society,,Bi-Borough Director of Integrated Care,"3,957.92"
08/12/2021,1249291,Westminster Society,,Bi-Borough Director of Integrated Care,713.64
08/12/2021,1249291,Westminster Society,,Bi-Borough Director of Integrated Care,790.00
08/12/2021,1249291,Westminster Society,,Bi-Borough Director of Integrated Care,"2,133.00"
08/12/2021,1249291,Westminster Society,,Bi-Borough Director of Integrated Care,"6,083.00"
08/12/2021,1249291,Westminster Society,,Bi-Borough Director of Integrated Care,540.76
08/12/2021,1249291,Westminster Society,,Bi-Borough Director of Integrated Care,"1,624.56"
08/12/2021,1249291,Westminster Society,,Bi-Borough Director of Integrated Care,"9,322.00"
08/12/2021,1249291,Westminster Society,,Bi-Borough Director of Integrated Care,540.76
08/12/2021,1249291,Westminster Society,,Bi-Borough Director of Integrated Care,"5,786.76"
08/12/2021,1249291,Westminster Society,,Bi-Borough Director of Integrated Care,853.96
08/12/2021,1249291,Westminster Society,,Bi-Borough Director of Integrated Care,"1,106.00"
08/12/2021,1249291,Westminster Society,,Bi-Borough Director of Integrated Care,632.00
08/12/2021,1249291,Westminster Society,,Bi-Borough Director of Integrated Care,"2,449.00"
08/12/2021,1249291,Westminster Society,,Bi-Borough Director of Integrated Care,908.52
08/12/2021,1249291,Westminster Society,,Bi-Borough Director of Integrated Care,"5,490.52"
08/12/2021,1249291,Westminster Society,,Bi-Borough Director of Integrated Care,853.96
08/12/2021,1249291,Westminster Society,,Bi-Borough Director of Integrated Care,"3,555.00"
08/12/2021,1249291,Westminster Society,,Bi-Borough Director of Integrated Care,"3,871.00"
08/12/2021,1249291,Westminster Society,,Bi-Borough Director of Integrated Care,853.96
08/12/2021,1249291,Westminster Society,,Bi-Borough Director of Integrated Care,"4,522.76"
08/12/2021,1249291,Westminster Society,,Bi-Borough Director of Integrated Care,"1,382.52"
08/12/2021,1249291,Westminster Society,,Bi-Borough Director of Integrated Care,"3,792.00"
08/12/2021,1249291,Westminster Society,,Bi-Borough Director of Integrated Care,"6,699.20"
08/12/2021,1249291,Westminster Society,,Bi-Borough Director of Integrated Care,713.64
08/12/2021,1249291,Westminster Society,,Bi-Borough Director of Integrated Care,"7,094.20"
08/12/2021,1249291,Westminster Society,,Bi-Borough Director of Integrated Care,853.96
08/12/2021,1249291,Westminster Society,,Bi-Borough Director of Integrated Care,"1,738.00"
08/12/2021,1249291,Westminster Society,,Bi-Borough Director of Integrated Care,540.76
08/12/2021,1249291,Westminster Society,,Bi-Borough Director of Integrated Care,"1,303.52"
08/12/2021,1249291,Westminster Society,,Bi-Borough Director of Integrated Care,"4,483.29"
08/12/2021,1249291,Westminster Society,,Bi-Borough Director of Integrated Care,721.00
08/12/2021,1249291,Westminster Society,,Bi-Borough Director of Integrated Care,"16,532.16"
08/12/2021,1249291,Westminster Society,,Bi-Borough Director of Integrated Care,"9,246.96"
08/12/2021,1249291,Westminster Society,,Bi-Borough Director of Integrated Care,721.00
08/12/2021,1249291,Westminster Society,,Bi-Borough Director of Integrated Care,"1,067.44"
08/12/2021,1249291,Westminster Society,,Bi-Borough Director of Integrated Care,540.76
08/12/2021,1249291,Westminster Society,,Bi-Borough Director of Integrated Care,"1,975.00"
08/12/2021,1249291,Westminster Society,,Bi-Borough Director of Integrated Care,"5,530.00"
08/12/2021,1249291,Westminster Society,,Bi-Borough Director of Integrated Care,"1,624.56"
24/12/2021,1249291,Westminster Society,B*Voluntary-Spot-V Dep-Enhanced - do not u,Bi-Borough Director of Integrated Care,"2,040.00"
24/12/2021,1249291,Westminster Society,B*Voluntary-Spot-V Dep-Enhanced - do not u,Bi-Borough Director of Integrated Care,"1,088.00"
24/12/2021,1249291,Westminster Society,B*Voluntary-Spot-V Dep-Enhanced - do not u,Bi-Borough Director of Integrated Care,671.50
24/12/2021,1249291,Westminster Society,B*Voluntary-Spot-V Dep-Enhanced - do not u,Bi-Borough Director of Integrated Care,816.00
24/12/2021,1249291,Westminster Society,B*Voluntary-Spot-V Dep-Enhanced - do not u,Bi-Borough Director of Integrated Care,612.00
24/12/2021,1249291,Westminster Society,B*Voluntary-Spot-V Dep-Enhanced - do not u,Bi-Borough Director of Integrated Care,816.00
24/12/2021,1249291,Westminster Society,B*Voluntary-Spot-V Dep-Enhanced - do not u,Bi-Borough Director of Integrated Care,816.00
24/12/2021,1249291,Westminster Society,B*Voluntary-Spot-V Dep-Enhanced - do not u,Bi-Borough Director of Integrated Care,612.00
24/12/2021,1249291,Westminster Society,B*Voluntary-Spot-V Dep-Enhanced - do not u,Bi-Borough Director of Integrated Care,"1,700.00"
24/12/2021,1249291,Westminster Society,B*Voluntary-Spot-V Dep-Enhanced - do not u,Bi-Borough Director of Integrated Care,816.00
24/12/2021,1249291,Westminster Society,B*Voluntary-Spot-V Dep-Enhanced - do not u,Bi-Borough Director of Integrated Care,612.00
24/12/2021,1249291,Westminster Society,B*Voluntary-Spot-V Dep-Enhanced - do not u,Bi-Borough Director of Integrated Care,816.00
24/12/2021,1249291,Westminster Society,B*Voluntary-Spot-V Dep-Enhanced - do not u,Bi-Borough Director of Integrated Care,680.00
24/12/2021,1249291,Westminster Society,B*Voluntary-Spot-V Dep-Enhanced - do not u,Bi-Borough Director of Integrated Care,782.00
24/12/2021,1249291,Westminster Society,B*Voluntary-Spot-V Dep-Enhanced - do not u,Bi-Borough Director of Integrated Care,"2,040.00"
24/12/2021,1249291,Westminster Society,B*Voluntary-Spot-V Dep-Enhanced - do not u,Bi-Borough Director of Integrated Care,612.00
24/12/2021,1249291,Westminster Society,B*Voluntary-Spot-V Dep-Enhanced - do not u,Bi-Borough Director of Integrated Care,"1,088.00"
24/12/2021,1249291,Westminster Society,B*Voluntary-Spot-V Dep-Enhanced - do not u,Bi-Borough Director of Integrated Care,"1,836.00"
14/10/2021,1246224,Whitmore Vale Housing Association,,Bi-Borough Director of Integrated Care,"3,688.80"
12/11/2021,1246224,Whitmore Vale Housing Association,,Bi-Borough Director of Integrated Care,"3,688.80"
09/12/2021,1246224,Whitmore Vale Housing Association,,Bi-Borough Director of Integrated Care,"3,688.80"
05/10/2021,1243566,Yarrow Housing Ltd,,Bi-Borough Director of Integrated Care,"15,842.40"
14/10/2021,1243566,Yarrow Housing Ltd,,Bi-Borough Director of Integrated Care,"8,301.92"
14/10/2021,1243566,Yarrow Housing Ltd,,Bi-Borough Director of Integrated Care,"7,851.20"
14/10/2021,1243566,Yarrow Housing Ltd,,Bi-Borough Director of Integrated Care,"3,632.88"
14/10/2021,1243566,Yarrow Housing Ltd,,Bi-Borough Director of Integrated Care,"1,747.20"
14/10/2021,1243566,Yarrow Housing Ltd,,Bi-Borough Director of Integrated Care,814.08
14/10/2021,1243566,Yarrow Housing Ltd,,Bi-Borough Director of Integrated Care,"3,651.20"
14/10/2021,1243566,Yarrow Housing Ltd,,Bi-Borough Director of Integrated Care,"3,387.52"
14/10/2021,1243566,Yarrow Housing Ltd,,Bi-Borough Director of Integrated Care,"3,889.16"
14/10/2021,1243566,Yarrow Housing Ltd,,Bi-Borough Director of Integrated Care,"7,297.56"
12/11/2021,1243566,Yarrow Housing Ltd,,Bi-Borough Director of Integrated Care,"3,632.88"
12/11/2021,1243566,Yarrow Housing Ltd,,Bi-Borough Director of Integrated Care,"3,031.27"
12/11/2021,1243566,Yarrow Housing Ltd,,Bi-Borough Director of Integrated Care,814.08
12/11/2021,1243566,Yarrow Housing Ltd,,Bi-Borough Director of Integrated Care,"5,279.43"
12/11/2021,1243566,Yarrow Housing Ltd,,Bi-Borough Director of Integrated Care,"4,672.20"
12/11/2021,1243566,Yarrow Housing Ltd,,Bi-Borough Director of Integrated Care,"3,889.16"
12/11/2021,1243566,Yarrow Housing Ltd,,Bi-Borough Director of Integrated Care,"7,297.56"
12/11/2021,1243566,Yarrow Housing Ltd,,Bi-Borough Director of Integrated Care,"8,301.92"
12/11/2021,1243566,Yarrow Housing Ltd,,Bi-Borough Director of Integrated Care,"7,851.20"
16/11/2021,1243566,Yarrow Housing Ltd,,Bi-Borough Director of Integrated Care,"31,684.80"
09/12/2021,1243566,Yarrow Housing Ltd,,Bi-Borough Director of Integrated Care,"3,245.28"
09/12/2021,1243566,Yarrow Housing Ltd,,Bi-Borough Director of Integrated Care,814.08
09/12/2021,1243566,Yarrow Housing Ltd,,Bi-Borough Director of Integrated Care,"5,550.80"
09/12/2021,1243566,Yarrow Housing Ltd,,Bi-Borough Director of Integrated Care,"4,886.32"
09/12/2021,1243566,Yarrow Housing Ltd,,Bi-Borough Director of Integrated Care,"3,889.16"
09/12/2021,1243566,Yarrow Housing Ltd,,Bi-Borough Director of Integrated Care,"7,297.56"
09/12/2021,1243566,Yarrow Housing Ltd,,Bi-Borough Director of Integrated Care,"8,301.92"
09/12/2021,1243566,Yarrow Housing Ltd,,Bi-Borough Director of Integrated Care,"7,851.20"
09/12/2021,1243566,Yarrow Housing Ltd,,Bi-Borough Director of Integrated Care,"3,632.88"
16/12/2021,1243566,Yarrow Housing Ltd,,Bi-Borough Director of Integrated Care,"15,842.40"
14/10/2021,1249317,Zocalo Ltd T/as Bluebird Care,,Bi-Borough Director of Integrated Care,"2,950.50"
14/10/2021,1249317,Zocalo Ltd T/as Bluebird Care,,Bi-Borough Director of Integrated Care,"1,841.40"
23/11/2021,1249317,Zocalo Ltd T/as Bluebird Care,,Bi-Borough Director of Integrated Care,"3,402.00"
23/11/2021,1249317,Zocalo Ltd T/as Bluebird Care,,Bi-Borough Director of Integrated Care,"1,841.40"
07/12/2021,1249317,Zocalo Ltd T/as Bluebird Care,,Bi-Borough Director of Integrated Care,"3,780.00"
07/12/2021,1249317,Zocalo Ltd T/as Bluebird Care,,Bi-Borough Director of Integrated Care,"1,825.14"
09/12/2021,1249317,Zocalo Ltd T/as Bluebird Care,,Bi-Borough Director of Integrated Care,"3,339.00"
09/12/2021,1249317,Zocalo Ltd T/as Bluebird Care,,Bi-Borough Director of Integrated Care,"1,841.40"
26/10/2021,1249318,Zodiac Arts Ltd,B*Voluntary-Spot-V Dep-Enhanced - do not u,Bi-Borough Director of Integrated Care,715.50
10/11/2021,1249318,Zodiac Arts Ltd,B*Voluntary-Spot-V Dep-Enhanced - do not u,Bi-Borough Director of Integrated Care,715.50
14/12/2021,1249318,Zodiac Arts Ltd,B*Voluntary-Spot-V Dep-Enhanced - do not u,Bi-Borough Director of Integrated Care,715.50
16/12/2021,1249167,TMP (UK) Ltd,Recruitment Expenses (excl. advertising),Bi-Borough Director of Integrated Care,"1,010.00"
14/10/2021,1248618,Riverside Echg,,Bi-Borough Director of Integrated Care,"2,208.54"
12/11/2021,1248618,Riverside Echg,,Bi-Borough Director of Integrated Care,"1,381.92"
09/12/2021,1248618,Riverside Echg,,Bi-Borough Director of Integrated Care,"1,381.92"
09/12/2021,1259100,Care Assist Limited,,Bi-Borough Director of Integrated Care,"4,528.02"
04/11/2021,D000000016,PERSONAL PAYMENTS,,Bi-Borough Director of Integrated Care,"5,000.00"
14/10/2021,1247852,Look Ahead Care and Support Ltd,,Bi-Borough Director of Integrated Care,897.92
14/10/2021,1247852,Look Ahead Care and Support Ltd,,Bi-Borough Director of Integrated Care,842.28
14/10/2021,1247852,Look Ahead Care and Support Ltd,,Bi-Borough Director of Integrated Care,842.28
14/10/2021,1247852,Look Ahead Care and Support Ltd,,Bi-Borough Director of Integrated Care,"1,256.64"
14/10/2021,1247852,Look Ahead Care and Support Ltd,,Bi-Borough Director of Integrated Care,"1,303.28"
14/10/2021,1247852,Look Ahead Care and Support Ltd,,Bi-Borough Director of Integrated Care,955.56
14/10/2021,1247852,Look Ahead Care and Support Ltd,,Bi-Borough Director of Integrated Care,897.92
14/10/2021,1247852,Look Ahead Care and Support Ltd,,Bi-Borough Director of Integrated Care,"1,413.00"
14/10/2021,1247852,Look Ahead Care and Support Ltd,,Bi-Borough Director of Integrated Care,955.56
14/10/2021,1247852,Look Ahead Care and Support Ltd,,Bi-Borough Director of Integrated Care,"1,256.64"
12/11/2021,1247852,Look Ahead Care and Support Ltd,,Bi-Borough Director of Integrated Care,"1,256.64"
12/11/2021,1247852,Look Ahead Care and Support Ltd,,Bi-Borough Director of Integrated Care,"1,303.28"
12/11/2021,1247852,Look Ahead Care and Support Ltd,,Bi-Borough Director of Integrated Care,955.56
12/11/2021,1247852,Look Ahead Care and Support Ltd,,Bi-Borough Director of Integrated Care,897.92
12/11/2021,1247852,Look Ahead Care and Support Ltd,,Bi-Borough Director of Integrated Care,"1,413.00"
12/11/2021,1247852,Look Ahead Care and Support Ltd,,Bi-Borough Director of Integrated Care,955.56
12/11/2021,1247852,Look Ahead Care and Support Ltd,,Bi-Borough Director of Integrated Care,"1,256.64"
12/11/2021,1247852,Look Ahead Care and Support Ltd,,Bi-Borough Director of Integrated Care,897.92
12/11/2021,1247852,Look Ahead Care and Support Ltd,,Bi-Borough Director of Integrated Care,842.28
12/11/2021,1247852,Look Ahead Care and Support Ltd,,Bi-Borough Director of Integrated Care,842.28
09/12/2021,1247852,Look Ahead Care and Support Ltd,,Bi-Borough Director of Integrated Care,897.92
09/12/2021,1247852,Look Ahead Care and Support Ltd,,Bi-Borough Director of Integrated Care,"1,413.00"
09/12/2021,1247852,Look Ahead Care and Support Ltd,,Bi-Borough Director of Integrated Care,955.56
09/12/2021,1247852,Look Ahead Care and Support Ltd,,Bi-Borough Director of Integrated Care,"1,256.64"
09/12/2021,1247852,Look Ahead Care and Support Ltd,,Bi-Borough Director of Integrated Care,897.92
09/12/2021,1247852,Look Ahead Care and Support Ltd,,Bi-Borough Director of Integrated Care,842.28
09/12/2021,1247852,Look Ahead Care and Support Ltd,,Bi-Borough Director of Integrated Care,842.28
09/12/2021,1247852,Look Ahead Care and Support Ltd,,Bi-Borough Director of Integrated Care,"1,256.64"
09/12/2021,1247852,Look Ahead Care and Support Ltd,,Bi-Borough Director of Integrated Care,"1,303.28"
09/12/2021,1247852,Look Ahead Care and Support Ltd,,Bi-Borough Director of Integrated Care,955.56
14/10/2021,1244970,Octavia Housing & Care (Rent,,Bi-Borough Director of Integrated Care,704.40
12/11/2021,1244970,Octavia Housing & Care (Rent,,Bi-Borough Director of Integrated Care,704.40
14/10/2021,1248618,Riverside Echg,,Bi-Borough Director of Integrated Care,"1,157.52"
14/10/2021,1248618,Riverside Echg,,Bi-Borough Director of Integrated Care,706.72
14/10/2021,1248618,Riverside Echg,,Bi-Borough Director of Integrated Care,852.32
14/10/2021,1248618,Riverside Echg,,Bi-Borough Director of Integrated Care,688.24
14/10/2021,1248618,Riverside Echg,,Bi-Borough Director of Integrated Care,"1,233.48"
14/10/2021,1248618,Riverside Echg,,Bi-Borough Director of Integrated Care,"1,718.06"
14/10/2021,1248618,Riverside Echg,,Bi-Borough Director of Integrated Care,"1,055.88"
14/10/2021,1248618,Riverside Echg,,Bi-Borough Director of Integrated Care,"1,225.47"
12/11/2021,1248618,Riverside Echg,,Bi-Borough Director of Integrated Care,"1,157.52"
12/11/2021,1248618,Riverside Echg,,Bi-Borough Director of Integrated Care,706.72
12/11/2021,1248618,Riverside Echg,,Bi-Borough Director of Integrated Care,852.32
12/11/2021,1248618,Riverside Echg,,Bi-Borough Director of Integrated Care,688.24
12/11/2021,1248618,Riverside Echg,,Bi-Borough Director of Integrated Care,"1,233.48"
12/11/2021,1248618,Riverside Echg,,Bi-Borough Director of Integrated Care,"1,233.48"
12/11/2021,1248618,Riverside Echg,,Bi-Borough Director of Integrated Care,"1,055.88"
12/11/2021,1248618,Riverside Echg,,Bi-Borough Director of Integrated Care,"1,236.28"
09/12/2021,1248618,Riverside Echg,,Bi-Borough Director of Integrated Care,706.72
09/12/2021,1248618,Riverside Echg,,Bi-Borough Director of Integrated Care,852.32
09/12/2021,1248618,Riverside Echg,,Bi-Borough Director of Integrated Care,688.24
09/12/2021,1248618,Riverside Echg,,Bi-Borough Director of Integrated Care,"1,233.48"
09/12/2021,1248618,Riverside Echg,,Bi-Borough Director of Integrated Care,"1,233.48"
09/12/2021,1248618,Riverside Echg,,Bi-Borough Director of Integrated Care,"1,055.88"
09/12/2021,1248618,Riverside Echg,,Bi-Borough Director of Integrated Care,"1,236.28"
09/12/2021,1248618,Riverside Echg,,Bi-Borough Director of Integrated Care,"1,157.52"
14/10/2021,1245584,Single Homeless Project,,Bi-Borough Director of Integrated Care,"1,531.36"
14/10/2021,1245584,Single Homeless Project,,Bi-Borough Director of Integrated Care,"1,076.92"
14/10/2021,1245584,Single Homeless Project,,Bi-Borough Director of Integrated Care,"1,531.40"
12/11/2021,1245584,Single Homeless Project,,Bi-Borough Director of Integrated Care,"1,076.92"
12/11/2021,1245584,Single Homeless Project,,Bi-Borough Director of Integrated Care,"1,531.40"
12/11/2021,1245584,Single Homeless Project,,Bi-Borough Director of Integrated Care,"1,531.36"
09/12/2021,1245584,Single Homeless Project,,Bi-Borough Director of Integrated Care,"1,076.92"
09/12/2021,1245584,Single Homeless Project,,Bi-Borough Director of Integrated Care,"1,531.40"
09/12/2021,1245584,Single Homeless Project,,Bi-Borough Director of Integrated Care,"1,531.36"
14/10/2021,1245636,St Mungos Broadway (Grants &,,Bi-Borough Director of Integrated Care,"1,622.36"
14/10/2021,1245636,St Mungos Broadway (Grants &,,Bi-Borough Director of Integrated Care,"1,511.44"
14/10/2021,1245636,St Mungos Broadway (Grants &,,Bi-Borough Director of Integrated Care,"1,622.36"
14/10/2021,1245636,St Mungos Broadway (Grants &,,Bi-Borough Director of Integrated Care,"1,037.68"
14/10/2021,1245636,St Mungos Broadway (Grants &,,Bi-Borough Director of Integrated Care,"1,511.44"
12/11/2021,1245636,St Mungos Broadway (Grants &,,Bi-Borough Director of Integrated Care,"1,622.36"
12/11/2021,1245636,St Mungos Broadway (Grants &,,Bi-Borough Director of Integrated Care,"1,511.44"
12/11/2021,1245636,St Mungos Broadway (Grants &,,Bi-Borough Director of Integrated Care,"1,796.18"
12/11/2021,1245636,St Mungos Broadway (Grants &,,Bi-Borough Director of Integrated Care,"1,622.36"
12/11/2021,1245636,St Mungos Broadway (Grants &,,Bi-Borough Director of Integrated Care,"1,037.68"
12/11/2021,1245636,St Mungos Broadway (Grants &,,Bi-Borough Director of Integrated Care,"1,511.44"
09/12/2021,1245636,St Mungos Broadway (Grants &,,Bi-Borough Director of Integrated Care,"1,622.36"
09/12/2021,1245636,St Mungos Broadway (Grants &,,Bi-Borough Director of Integrated Care,"1,622.36"
09/12/2021,1245636,St Mungos Broadway (Grants &,,Bi-Borough Director of Integrated Care,"1,037.68"
09/12/2021,1245636,St Mungos Broadway (Grants &,,Bi-Borough Director of Integrated Care,"1,511.44"
09/12/2021,1245636,St Mungos Broadway (Grants &,,Bi-Borough Director of Integrated Care,"1,622.36"
09/12/2021,1245636,St Mungos Broadway (Grants &,,Bi-Borough Director of Integrated Care,"1,511.44"
13/12/2021,1246011,Art4Space,B*Voluntary-Spot-V Dep-Enhanced - do not u,Bi-Borough Director of Integrated Care,"1,250.00"
13/12/2021,1246011,Art4Space,B*Voluntary-Spot-V Dep-Enhanced - do not u,Bi-Borough Director of Integrated Care,"1,250.00"
13/12/2021,1246011,Art4Space,B*Voluntary-Spot-V Dep-Enhanced - do not u,Bi-Borough Director of Integrated Care,"1,250.00"
13/12/2021,1246011,Art4Space,B*Voluntary-Spot-V Dep-Enhanced - do not u,Bi-Borough Director of Integrated Care,"1,250.00"
13/12/2021,1246011,Art4Space,B*Voluntary-Spot-V Dep-Enhanced - do not u,Bi-Borough Director of Integrated Care,"1,250.00"
13/12/2021,1246011,Art4Space,B*Voluntary-Spot-V Dep-Enhanced - do not u,Bi-Borough Director of Integrated Care,"1,250.00"
12/10/2021,1243931,Ashbourne Healthcare Services,,Bi-Borough Director of Integrated Care,"1,174.60"
21/10/2021,1243931,Ashbourne Healthcare Services,,Bi-Borough Director of Integrated Care,"1,174.60"
03/11/2021,1243931,Ashbourne Healthcare Services,,Bi-Borough Director of Integrated Care,"1,174.60"
02/12/2021,1243931,Ashbourne Healthcare Services,,Bi-Borough Director of Integrated Care,"1,174.60"
23/12/2021,1243931,Ashbourne Healthcare Services,,Bi-Borough Director of Integrated Care,"1,174.60"
30/11/2021,1245073,Astoria Healthcare Ltd,,Bi-Borough Director of Integrated Care,780.00
14/10/2021,1271022,BONZA CARE LTD,,Bi-Borough Director of Integrated Care,"1,684.00"
14/10/2021,1271022,BONZA CARE LTD,,Bi-Borough Director of Integrated Care,"3,800.00"
12/11/2021,1271022,BONZA CARE LTD,,Bi-Borough Director of Integrated Care,"1,684.00"
12/11/2021,1271022,BONZA CARE LTD,,Bi-Borough Director of Integrated Care,"3,800.00"
09/12/2021,1271022,BONZA CARE LTD,,Bi-Borough Director of Integrated Care,"1,684.00"
09/12/2021,1271022,BONZA CARE LTD,,Bi-Borough Director of Integrated Care,"3,800.00"
07/10/2021,1246247,Blitz Home Environmental Cleaning,,Bi-Borough Director of Integrated Care,"2,100.00"
09/12/2021,1246247,Blitz Home Environmental Cleaning,,Bi-Borough Director of Integrated Care,750.00
03/11/2021,1246262,Brent Wandsworth & Westminster,B*Voluntary-Spot-V Dep-Enhanced - do not u,Bi-Borough Director of Integrated Care,540.00
03/11/2021,1246262,Brent Wandsworth & Westminster,B*Voluntary-Spot-V Dep-Enhanced - do not u,Bi-Borough Director of Integrated Care,840.00
03/11/2021,1246262,Brent Wandsworth & Westminster,B*Voluntary-Spot-V Dep-Enhanced - do not u,Bi-Borough Director of Integrated Care,540.00
05/11/2021,1246261,Brent Wandsworth & Westminster,,Bi-Borough Director of Integrated Care,592.35
23/11/2021,1246261,Brent Wandsworth & Westminster,,Bi-Borough Director of Integrated Care,646.20
20/12/2021,1246262,Brent Wandsworth & Westminster,B*Voluntary-Spot-V Dep-Enhanced - do not u,Bi-Borough Director of Integrated Care,780.00
20/12/2021,1246262,Brent Wandsworth & Westminster,B*Voluntary-Spot-V Dep-Enhanced - do not u,Bi-Borough Director of Integrated Care,540.00
20/12/2021,1246262,Brent Wandsworth & Westminster,B*Voluntary-Spot-V Dep-Enhanced - do not u,Bi-Borough Director of Integrated Care,540.00
20/12/2021,1246262,Brent Wandsworth & Westminster,B*Voluntary-Spot-V Dep-Enhanced - do not u,Bi-Borough Director of Integrated Care,540.00
20/12/2021,1246262,Brent Wandsworth & Westminster,B*Voluntary-Spot-V Dep-Enhanced - do not u,Bi-Borough Director of Integrated Care,"1,020.00"
14/10/2021,1247482,PERSONAL PAYMENTS,,Bi-Borough Director of Integrated Care,833.28
12/11/2021,1247482,PERSONAL PAYMENTS,,Bi-Borough Director of Integrated Care,833.28
09/12/2021,1247482,PERSONAL PAYMENTS,,Bi-Borough Director of Integrated Care,833.28
14/10/2021,1246321,Camphill Village Trust,,Bi-Borough Director of Integrated Care,"1,109.60"
12/11/2021,1246321,Camphill Village Trust,,Bi-Borough Director of Integrated Care,"1,109.60"
09/12/2021,1246321,Camphill Village Trust,,Bi-Borough Director of Integrated Care,"1,109.60"
26/10/2021,1246581,Clearup Solutions Limited,,Bi-Borough Director of Integrated Care,600.00
26/10/2021,1246581,Clearup Solutions Limited,,Bi-Borough Director of Integrated Care,550.00
26/10/2021,1246581,Clearup Solutions Limited,,Bi-Borough Director of Integrated Care,"1,265.00"
03/11/2021,1246581,Clearup Solutions Limited,,Bi-Borough Director of Integrated Care,630.00
03/11/2021,1246581,Clearup Solutions Limited,,Bi-Borough Director of Integrated Care,600.00
09/12/2021,1246581,Clearup Solutions Limited,,Bi-Borough Director of Integrated Care,735.00
13/12/2021,1246581,Clearup Solutions Limited,,Bi-Borough Director of Integrated Care,"3,800.00"
12/10/2021,1244190,Clouds End Services Ltd,,Bi-Borough Director of Integrated Care,800.00
14/10/2021,1244190,Clouds End Services Ltd,,Bi-Borough Director of Integrated Care,800.00
01/11/2021,1244190,Clouds End Services Ltd,,Bi-Borough Director of Integrated Care,"1,400.00"
01/11/2021,1244190,Clouds End Services Ltd,,Bi-Borough Director of Integrated Care,800.00
12/11/2021,1244190,Clouds End Services Ltd,,Bi-Borough Director of Integrated Care,"1,200.00"
12/11/2021,1244190,Clouds End Services Ltd,,Bi-Borough Director of Integrated Care,"1,200.00"
25/11/2021,1244190,Clouds End Services Ltd,,Bi-Borough Director of Integrated Care,"1,400.00"
09/12/2021,1244190,Clouds End Services Ltd,,Bi-Borough Director of Integrated Care,"1,200.00"
14/10/2021,1246602,Community Housing Therapy,,Bi-Borough Director of Integrated Care,"1,940.00"
12/11/2021,1246602,Community Housing Therapy,,Bi-Borough Director of Integrated Care,"1,940.00"
09/12/2021,1246602,Community Housing Therapy,,Bi-Borough Director of Integrated Care,"1,940.00"
25/10/2021,1268176,Conquest Care and Support,,Bi-Borough Director of Integrated Care,822.24
10/12/2021,1284861,PERSONAL PAYMENTS,B*Voluntary-Spot-V Dep-Enhanced - do not u,Bi-Borough Director of Integrated Care,"1,546.00"
08/10/2021,1259597,Ethica Services LTD,,Bi-Borough Director of Integrated Care,"1,431.20"
02/11/2021,1259597,Ethica Services LTD,,Bi-Borough Director of Integrated Care,"1,216.52"
02/11/2021,1259597,Ethica Services LTD,,Bi-Borough Director of Integrated Care,"1,409.52"
17/11/2021,1259597,Ethica Services LTD,,Bi-Borough Director of Integrated Care,"1,208.16"
14/10/2021,1278030,Graceful Care Ltd,,Bi-Borough Director of Integrated Care,"1,833.44"
14/10/2021,1278030,Graceful Care Ltd,,Bi-Borough Director of Integrated Care,"1,440.56"
14/10/2021,1278030,Graceful Care Ltd,,Bi-Borough Director of Integrated Care,"7,235.55"
14/10/2021,1278030,Graceful Care Ltd,,Bi-Borough Director of Integrated Care,"2,095.36"
13/11/2021,1278030,Graceful Care Ltd,,Bi-Borough Director of Integrated Care,"2,172.80"
30/11/2021,1278030,Graceful Care Ltd,,Bi-Borough Director of Integrated Care,"10,165.60"
19/10/2021,1247257,Health Vision Uk,,Bi-Borough Director of Integrated Care,673.22
19/10/2021,1247257,Health Vision Uk,,Bi-Borough Director of Integrated Care,965.83
19/10/2021,1247257,Health Vision Uk,,Bi-Borough Director of Integrated Care,511.40
19/10/2021,1247257,Health Vision Uk,,Bi-Borough Director of Integrated Care,958.70
19/10/2021,1247257,Health Vision Uk,,Bi-Borough Director of Integrated Care,"1,028.29"
19/10/2021,1247257,Health Vision Uk,,Bi-Borough Director of Integrated Care,510.81
19/10/2021,1247257,Health Vision Uk,,Bi-Borough Director of Integrated Care,648.76
13/11/2021,1247257,Health Vision Uk,,Bi-Borough Director of Integrated Care,581.63
13/11/2021,1247257,Health Vision Uk,,Bi-Borough Director of Integrated Care,664.74
13/11/2021,1247257,Health Vision Uk,,Bi-Borough Director of Integrated Care,963.86
13/11/2021,1247257,Health Vision Uk,,Bi-Borough Director of Integrated Care,519.05
13/11/2021,1247257,Health Vision Uk,,Bi-Borough Director of Integrated Care,991.35
13/11/2021,1247257,Health Vision Uk,,Bi-Borough Director of Integrated Care,945.08
13/11/2021,1247257,Health Vision Uk,,Bi-Borough Director of Integrated Care,639.57
23/12/2021,1247257,Health Vision Uk,,Bi-Borough Director of Integrated Care,619.46
23/12/2021,1247257,Health Vision Uk,,Bi-Borough Director of Integrated Care,976.33
23/12/2021,1247257,Health Vision Uk,,Bi-Borough Director of Integrated Care,511.04
23/12/2021,1247257,Health Vision Uk,,Bi-Borough Director of Integrated Care,581.80
23/12/2021,1247257,Health Vision Uk,,Bi-Borough Director of Integrated Care,885.73
23/12/2021,1247257,Health Vision Uk,,Bi-Borough Director of Integrated Care,"1,023.35"
23/12/2021,1247257,Health Vision Uk,,Bi-Borough Director of Integrated Care,500.62
23/12/2021,1247257,Health Vision Uk,,Bi-Borough Director of Integrated Care,618.07
23/12/2021,1247257,Health Vision Uk,,Bi-Borough Director of Integrated Care,561.86
10/12/2021,1282613,I Support Behaviour LTD,B*Voluntary-Spot-V Dep-Enhanced - do not u,Bi-Borough Director of Integrated Care,"1,615.00"
13/12/2021,1282613,I Support Behaviour LTD,B*Voluntary-Spot-V Dep-Enhanced - do not u,Bi-Borough Director of Integrated Care,"7,209.64"
14/12/2021,1282613,I Support Behaviour LTD,B*Voluntary-Spot-V Dep-Enhanced - do not u,Bi-Borough Director of Integrated Care,"2,126.00"
14/12/2021,1282613,I Support Behaviour LTD,B*Voluntary-Spot-V Dep-Enhanced - do not u,Bi-Borough Director of Integrated Care,"1,092.50"
21/12/2021,1282613,I Support Behaviour LTD,B*Voluntary-Spot-V Dep-Enhanced - do not u,Bi-Borough Director of Integrated Care,"1,615.00"
04/11/2021,1247531,Islington  Music Forum Ltd T/A,B*Voluntary-Spot-V Dep-Enhanced - do not u,Bi-Borough Director of Integrated Care,"1,632.00"
04/11/2021,1247531,Islington  Music Forum Ltd T/A,B*Voluntary-Spot-V Dep-Enhanced - do not u,Bi-Borough Director of Integrated Care,"2,400.00"
04/11/2021,1247531,Islington  Music Forum Ltd T/A,B*Voluntary-Spot-V Dep-Enhanced - do not u,Bi-Borough Director of Integrated Care,"1,248.00"
04/11/2021,1247531,Islington  Music Forum Ltd T/A,B*Voluntary-Spot-V Dep-Enhanced - do not u,Bi-Borough Director of Integrated Care,"2,016.00"
29/10/2021,1256893,Kapital Care WCC,,Bi-Borough Director of Integrated Care,939.68
05/11/2021,1256893,Kapital Care WCC,,Bi-Borough Director of Integrated Care,939.68
07/12/2021,1256893,Kapital Care WCC,,Bi-Borough Director of Integrated Care,939.68
21/10/2021,1247650,London Care Ltd,,Bi-Borough Director of Integrated Care,675.11
21/10/2021,1247650,London Care Ltd,,Bi-Borough Director of Integrated Care,995.97
21/10/2021,1247650,London Care Ltd,,Bi-Borough Director of Integrated Care,512.97
21/10/2021,1247650,London Care Ltd,,Bi-Borough Director of Integrated Care,863.26
04/12/2021,1247650,London Care Ltd,,Bi-Borough Director of Integrated Care,682.21
04/12/2021,1247650,London Care Ltd,,Bi-Borough Director of Integrated Care,"1,010.82"
04/12/2021,1247650,London Care Ltd,,Bi-Borough Director of Integrated Care,518.84
04/12/2021,1247650,London Care Ltd,,Bi-Borough Director of Integrated Care,888.39
04/12/2021,1247650,London Care Ltd,,Bi-Borough Director of Integrated Care,"1,215.87"
04/12/2021,1247650,London Care Ltd,,Bi-Borough Director of Integrated Care,"1,226.50"
04/12/2021,1247650,London Care Ltd,,Bi-Borough Director of Integrated Care,741.20
14/10/2021,1262948,Lotus House,,Bi-Borough Director of Integrated Care,"2,928.00"
12/11/2021,1262948,Lotus House,,Bi-Borough Director of Integrated Care,"2,928.00"
09/12/2021,1262948,Lotus House,,Bi-Borough Director of Integrated Care,"2,928.00"
14/10/2021,1244866,Micado Community Living Services,,Bi-Borough Director of Integrated Care,"2,880.00"
12/11/2021,1244866,Micado Community Living Services,,Bi-Borough Director of Integrated Care,"2,880.00"
09/12/2021,1244866,Micado Community Living Services,,Bi-Borough Director of Integrated Care,"2,880.00"
10/12/2021,1284866,PERSONAL PAYMENTS,B*Voluntary-Spot-V Dep-Enhanced - do not u,Bi-Borough Director of Integrated Care,"1,120.00"
26/10/2021,1244905,Nas Services Ltd (Residential),B*Voluntary-Spot-V Dep-Enhanced - do not u,Bi-Borough Director of Integrated Care,"1,065.12"
14/12/2021,1244905,Nas Services Ltd (Residential),B*Voluntary-Spot-V Dep-Enhanced - do not u,Bi-Borough Director of Integrated Care,"1,065.12"
21/12/2021,1244905,Nas Services Ltd (Residential),B*Voluntary-Spot-V Dep-Enhanced - do not u,Bi-Borough Director of Integrated Care,"1,065.12"
14/10/2021,1270326,New Directions Flexible Social Care,,Bi-Borough Director of Integrated Care,"1,400.00"
12/11/2021,1270326,New Directions Flexible Social Care,,Bi-Borough Director of Integrated Care,"1,400.00"
09/12/2021,1270326,New Directions Flexible Social Care,,Bi-Borough Director of Integrated Care,"1,400.00"
14/10/2021,1254334,PERSONAL PAYMENTS,Adult Social Care - Other Transfer Pay,Bi-Borough Director of Integrated Care,"1,500.00"
21/10/2021,1254334,PERSONAL PAYMENTS,Adult Social Care - Other Transfer Pay,Bi-Borough Director of Integrated Care,"1,500.00"
21/10/2021,1256902,PERSONAL PAYMENTS,Social Care - Direct Payments,Bi-Borough Director of Integrated Care,933.92
21/10/2021,1266895,PERSONAL PAYMENTS,Social Care - Direct Payments,Bi-Borough Director of Integrated Care,728.00
21/10/2021,1247479,PERSONAL PAYMENTS,Social Care - Direct Payments,Bi-Borough Director of Integrated Care,"1,639.08"
21/10/2021,1259940,PERSONAL PAYMENTS,Adult Social Care - Other Transfer Pay,Bi-Borough Director of Integrated Care,"1,913.76"
11/11/2021,1284661,PERSONAL PAYMENTS,Social Care - Direct Payments,Bi-Borough Director of Integrated Care,"2,166.86"
19/11/2021,1256902,PERSONAL PAYMENTS,Social Care - Direct Payments,Bi-Borough Director of Integrated Care,933.92
19/11/2021,1266895,PERSONAL PAYMENTS,Social Care - Direct Payments,Bi-Borough Director of Integrated Care,728.00
19/11/2021,1247479,PERSONAL PAYMENTS,Social Care - Direct Payments,Bi-Borough Director of Integrated Care,"1,639.08"
19/11/2021,1259940,PERSONAL PAYMENTS,Adult Social Care - Other Transfer Pay,Bi-Borough Director of Integrated Care,"1,913.76"
19/11/2021,1254334,PERSONAL PAYMENTS,Adult Social Care - Other Transfer Pay,Bi-Borough Director of Integrated Care,"1,500.00"
16/12/2021,1256902,PERSONAL PAYMENTS,Social Care - Direct Payments,Bi-Borough Director of Integrated Care,933.92
16/12/2021,1266895,PERSONAL PAYMENTS,Social Care - Direct Payments,Bi-Borough Director of Integrated Care,728.00
16/12/2021,1247479,PERSONAL PAYMENTS,Social Care - Direct Payments,Bi-Borough Director of Integrated Care,"1,639.08"
16/12/2021,1259940,PERSONAL PAYMENTS,Adult Social Care - Other Transfer Pay,Bi-Borough Director of Integrated Care,"1,913.76"
16/12/2021,1286294,PERSONAL PAYMENTS,Social Care - Direct Payments,Bi-Borough Director of Integrated Care,"1,360.00"
16/12/2021,1254334,PERSONAL PAYMENTS,Adult Social Care - Other Transfer Pay,Bi-Borough Director of Integrated Care,"1,500.00"
14/10/2021,1269718,Reliant Care Limited,,Bi-Borough Director of Integrated Care,"1,780.40"
12/11/2021,1269718,Reliant Care Limited,,Bi-Borough Director of Integrated Care,"1,780.40"
09/12/2021,1269718,Reliant Care Limited,,Bi-Borough Director of Integrated Care,"1,780.40"
19/10/2021,1245316,Respect Care Services Ltd,,Bi-Borough Director of Integrated Care,604.08
25/11/2021,1245316,Respect Care Services Ltd,,Bi-Borough Director of Integrated Care,604.08
25/11/2021,1245316,Respect Care Services Ltd,,Bi-Borough Director of Integrated Care,604.08
07/12/2021,1245316,Respect Care Services Ltd,,Bi-Borough Director of Integrated Care,604.08
14/12/2021,1245316,Respect Care Services Ltd,,Bi-Borough Director of Integrated Care,604.08
14/12/2021,1245316,Respect Care Services Ltd,,Bi-Borough Director of Integrated Care,554.67
20/12/2021,1245316,Respect Care Services Ltd,,Bi-Borough Director of Integrated Care,604.08
20/12/2021,1245316,Respect Care Services Ltd,,Bi-Borough Director of Integrated Care,634.28
20/12/2021,1245316,Respect Care Services Ltd,,Bi-Borough Director of Integrated Care,634.28
14/10/2021,1272438,ST GEORGES SUPPORTED LIVING LTD,,Bi-Borough Director of Integrated Care,"1,700.00"
12/11/2021,1272438,ST GEORGES SUPPORTED LIVING LTD,,Bi-Borough Director of Integrated Care,"1,700.00"
09/12/2021,1272438,ST GEORGES SUPPORTED LIVING LTD,,Bi-Borough Director of Integrated Care,"1,700.00"
09/12/2021,1248843,Sage Care Ltd,,Bi-Borough Director of Integrated Care,771.87
09/12/2021,1248843,Sage Care Ltd,,Bi-Borough Director of Integrated Care,"1,816.08"
09/12/2021,1248843,Sage Care Ltd,,Bi-Borough Director of Integrated Care,"1,287.82"
09/12/2021,1248843,Sage Care Ltd,,Bi-Borough Director of Integrated Care,581.84
09/12/2021,1248843,Sage Care Ltd,,Bi-Borough Director of Integrated Care,"2,236.57"
09/12/2021,1248843,Sage Care Ltd,,Bi-Borough Director of Integrated Care,"1,815.94"
09/12/2021,1248843,Sage Care Ltd,,Bi-Borough Director of Integrated Care,"1,261.28"
09/12/2021,1248843,Sage Care Ltd,,Bi-Borough Director of Integrated Care,562.08
09/12/2021,1248843,Sage Care Ltd,,Bi-Borough Director of Integrated Care,"2,200.44"
09/12/2021,1248843,Sage Care Ltd,,Bi-Borough Director of Integrated Care,"1,815.94"
09/12/2021,1248843,Sage Care Ltd,,Bi-Borough Director of Integrated Care,"1,276.40"
09/12/2021,1248843,Sage Care Ltd,,Bi-Borough Director of Integrated Care,591.42
14/10/2021,1248970,St Martin Of Tours Ha Ltd (Use,,Bi-Borough Director of Integrated Care,"10,450.00"
12/11/2021,1248970,St Martin Of Tours Ha Ltd (Use,,Bi-Borough Director of Integrated Care,"3,800.00"
09/12/2021,1248970,St Martin Of Tours Ha Ltd (Use,,Bi-Borough Director of Integrated Care,"3,800.00"
21/10/2021,1245182,Supporting Care Ltd,,Bi-Borough Director of Integrated Care,"3,044.82"
21/10/2021,1245182,Supporting Care Ltd,,Bi-Borough Director of Integrated Care,"3,044.82"
21/10/2021,1245182,Supporting Care Ltd,,Bi-Borough Director of Integrated Care,"3,044.82"
05/11/2021,1245182,Supporting Care Ltd,,Bi-Borough Director of Integrated Care,"3,044.82"
14/10/2021,1270462,TRIVENI CARE LTD,,Bi-Borough Director of Integrated Care,"2,280.00"
12/11/2021,1270462,TRIVENI CARE LTD,,Bi-Borough Director of Integrated Care,"2,280.00"
09/12/2021,1270462,TRIVENI CARE LTD,,Bi-Borough Director of Integrated Care,"2,280.00"
14/10/2021,1246095,Theana Ltd T/a Enlighten Homes,,Bi-Borough Director of Integrated Care,"3,940.00"
12/11/2021,1246095,Theana Ltd T/a Enlighten Homes,,Bi-Borough Director of Integrated Care,"3,940.00"
09/12/2021,1246095,Theana Ltd T/a Enlighten Homes,,Bi-Borough Director of Integrated Care,"3,940.00"
08/10/2021,1249232,Vincentian Care Plus,,Bi-Borough Director of Integrated Care,"1,556.48"
08/10/2021,1249232,Vincentian Care Plus,,Bi-Borough Director of Integrated Care,"1,111.80"
08/10/2021,1249232,Vincentian Care Plus,,Bi-Borough Director of Integrated Care,667.08
08/10/2021,1249232,Vincentian Care Plus,,Bi-Borough Director of Integrated Care,592.96
08/10/2021,1249232,Vincentian Care Plus,,Bi-Borough Director of Integrated Care,528.10
08/10/2021,1249232,Vincentian Care Plus,,Bi-Borough Director of Integrated Care,"1,297.10"
08/10/2021,1249232,Vincentian Care Plus,,Bi-Borough Director of Integrated Care,"1,038.26"
08/10/2021,1249232,Vincentian Care Plus,,Bi-Borough Director of Integrated Care,"2,594.20"
08/10/2021,1249232,Vincentian Care Plus,,Bi-Borough Director of Integrated Care,"2,038.30"
08/10/2021,1249232,Vincentian Care Plus,,Bi-Borough Director of Integrated Care,843.10
08/10/2021,1249232,Vincentian Care Plus,,Bi-Borough Director of Integrated Care,"1,037.68"
08/10/2021,1249232,Vincentian Care Plus,,Bi-Borough Director of Integrated Care,"2,334.78"
08/10/2021,1249232,Vincentian Care Plus,,Bi-Borough Director of Integrated Care,518.84
08/10/2021,1249232,Vincentian Care Plus,,Bi-Borough Director of Integrated Care,518.84
08/10/2021,1249232,Vincentian Care Plus,,Bi-Borough Director of Integrated Care,518.84
08/10/2021,1249232,Vincentian Care Plus,,Bi-Borough Director of Integrated Care,768.99
25/10/2021,1249232,Vincentian Care Plus,,Bi-Borough Director of Integrated Care,"1,816.36"
10/11/2021,1249232,Vincentian Care Plus,,Bi-Borough Director of Integrated Care,830.43
10/11/2021,1249232,Vincentian Care Plus,,Bi-Borough Director of Integrated Care,"1,037.68"
10/11/2021,1249232,Vincentian Care Plus,,Bi-Borough Director of Integrated Care,"2,334.78"
10/11/2021,1249232,Vincentian Care Plus,,Bi-Borough Director of Integrated Care,509.57
10/11/2021,1249232,Vincentian Care Plus,,Bi-Borough Director of Integrated Care,518.84
10/11/2021,1249232,Vincentian Care Plus,,Bi-Borough Director of Integrated Care,518.84
10/11/2021,1249232,Vincentian Care Plus,,Bi-Borough Director of Integrated Care,"1,579.00"
10/11/2021,1249232,Vincentian Care Plus,,Bi-Borough Director of Integrated Care,"1,111.80"
10/11/2021,1249232,Vincentian Care Plus,,Bi-Borough Director of Integrated Care,667.08
10/11/2021,1249232,Vincentian Care Plus,,Bi-Borough Director of Integrated Care,592.96
10/11/2021,1249232,Vincentian Care Plus,,Bi-Borough Director of Integrated Care,528.10
10/11/2021,1249232,Vincentian Care Plus,,Bi-Borough Director of Integrated Care,778.26
10/11/2021,1249232,Vincentian Care Plus,,Bi-Borough Director of Integrated Care,"1,297.10"
10/11/2021,1249232,Vincentian Care Plus,,Bi-Borough Director of Integrated Care,"1,046.43"
10/11/2021,1249232,Vincentian Care Plus,,Bi-Borough Director of Integrated Care,"2,594.20"
10/11/2021,1249232,Vincentian Care Plus,,Bi-Borough Director of Integrated Care,"2,038.30"
12/11/2021,1249232,Vincentian Care Plus,,Bi-Borough Director of Integrated Care,"1,807.09"
07/12/2021,1249232,Vincentian Care Plus,,Bi-Borough Director of Integrated Care,"1,816.26"
14/12/2021,1249232,Vincentian Care Plus,,Bi-Borough Director of Integrated Care,"1,601.44"
14/12/2021,1249232,Vincentian Care Plus,,Bi-Borough Director of Integrated Care,"1,139.60"
14/12/2021,1249232,Vincentian Care Plus,,Bi-Borough Director of Integrated Care,667.08
14/12/2021,1249232,Vincentian Care Plus,,Bi-Borough Director of Integrated Care,592.96
14/12/2021,1249232,Vincentian Care Plus,,Bi-Borough Director of Integrated Care,537.37
14/12/2021,1249232,Vincentian Care Plus,,Bi-Borough Director of Integrated Care,"1,297.10"
14/12/2021,1249232,Vincentian Care Plus,,Bi-Borough Director of Integrated Care,"1,046.43"
14/12/2021,1249232,Vincentian Care Plus,,Bi-Borough Director of Integrated Care,"2,594.20"
14/12/2021,1249232,Vincentian Care Plus,,Bi-Borough Director of Integrated Care,"2,038.30"
14/12/2021,1249232,Vincentian Care Plus,,Bi-Borough Director of Integrated Care,830.43
14/12/2021,1249232,Vincentian Care Plus,,Bi-Borough Director of Integrated Care,"1,037.68"
14/12/2021,1249232,Vincentian Care Plus,,Bi-Borough Director of Integrated Care,"2,334.78"
14/12/2021,1249232,Vincentian Care Plus,,Bi-Borough Director of Integrated Care,518.84
14/12/2021,1249232,Vincentian Care Plus,,Bi-Borough Director of Integrated Care,518.84
14/12/2021,1249232,Vincentian Care Plus,,Bi-Borough Director of Integrated Care,778.26
14/12/2021,1249232,Vincentian Care Plus,,Bi-Borough Director of Integrated Care,"1,000.62"
05/11/2021,1249291,Westminster Society,,Bi-Borough Director of Integrated Care,"1,360.00"
05/11/2021,1249291,Westminster Society,,Bi-Borough Director of Integrated Care,"1,088.00"
05/11/2021,1249291,Westminster Society,,Bi-Borough Director of Integrated Care,"1,088.00"
30/11/2021,1249291,Westminster Society,,Bi-Borough Director of Integrated Care,"1,088.00"
24/12/2021,1249291,Westminster Society,,Bi-Borough Director of Integrated Care,"1,088.00"
14/10/2021,1243566,Yarrow Housing Ltd,,Bi-Borough Director of Integrated Care,"1,408.68"
12/11/2021,1243566,Yarrow Housing Ltd,,Bi-Borough Director of Integrated Care,"1,408.68"
09/12/2021,1243566,Yarrow Housing Ltd,,Bi-Borough Director of Integrated Care,"1,408.68"
14/10/2021,1243431,Abba Residential Home,,Bi-Borough Director of Integrated Care,"2,472.00"
14/10/2021,1243431,Abba Residential Home,,Bi-Borough Director of Integrated Care,"2,472.00"
14/10/2021,1243431,Abba Residential Home,,Bi-Borough Director of Integrated Care,"1,629.92"
14/10/2021,1243431,Abba Residential Home,,Bi-Borough Director of Integrated Care,"1,629.92"
14/10/2021,1243431,Abba Residential Home,,Bi-Borough Director of Integrated Care,"70,638.02"
14/10/2021,1243431,Abba Residential Home,,Bi-Borough Director of Integrated Care,"2,457.20"
12/11/2021,1243431,Abba Residential Home,,Bi-Borough Director of Integrated Care,"2,472.00"
12/11/2021,1243431,Abba Residential Home,,Bi-Borough Director of Integrated Care,"2,472.00"
12/11/2021,1243431,Abba Residential Home,,Bi-Borough Director of Integrated Care,"1,629.92"
12/11/2021,1243431,Abba Residential Home,,Bi-Borough Director of Integrated Care,"1,629.92"
12/11/2021,1243431,Abba Residential Home,,Bi-Borough Director of Integrated Care,"3,544.56"
12/11/2021,1243431,Abba Residential Home,,Bi-Borough Director of Integrated Care,"2,457.20"
09/12/2021,1243431,Abba Residential Home,,Bi-Borough Director of Integrated Care,"2,472.00"
09/12/2021,1243431,Abba Residential Home,,Bi-Borough Director of Integrated Care,"2,472.00"
09/12/2021,1243431,Abba Residential Home,,Bi-Borough Director of Integrated Care,"1,629.92"
09/12/2021,1243431,Abba Residential Home,,Bi-Borough Director of Integrated Care,"1,629.92"
09/12/2021,1243431,Abba Residential Home,,Bi-Borough Director of Integrated Care,"3,544.56"
09/12/2021,1243431,Abba Residential Home,,Bi-Borough Director of Integrated Care,"2,457.20"
14/10/2021,1243851,Accomplish Group Ltd,,Bi-Borough Director of Integrated Care,"3,730.00"
14/10/2021,1243851,Accomplish Group Ltd,,Bi-Borough Director of Integrated Care,"3,730.00"
12/11/2021,1243851,Accomplish Group Ltd,,Bi-Borough Director of Integrated Care,"3,730.00"
12/11/2021,1243851,Accomplish Group Ltd,,Bi-Borough Director of Integrated Care,"3,730.00"
09/12/2021,1243851,Accomplish Group Ltd,,Bi-Borough Director of Integrated Care,"3,730.00"
09/12/2021,1243851,Accomplish Group Ltd,,Bi-Borough Director of Integrated Care,"3,730.00"
05/10/2021,1245982,Anchor Trust,,Bi-Borough Director of Integrated Care,"2,452.32"
05/10/2021,1245982,Anchor Trust,,Bi-Borough Director of Integrated Care,"1,226.16"
16/11/2021,1245982,Anchor Trust,,Bi-Borough Director of Integrated Care,"2,452.32"
16/11/2021,1245982,Anchor Trust,,Bi-Borough Director of Integrated Care,"4,904.64"
16/12/2021,1245982,Anchor Trust,,Bi-Borough Director of Integrated Care,"2,452.32"
16/12/2021,1245982,Anchor Trust,,Bi-Borough Director of Integrated Care,"1,226.16"
14/10/2021,1245067,Andover Care Ltd T/A Andover,,Bi-Borough Director of Integrated Care,"6,517.76"
12/11/2021,1245067,Andover Care Ltd T/A Andover,,Bi-Borough Director of Integrated Care,"6,517.76"
09/12/2021,1245067,Andover Care Ltd T/A Andover,,Bi-Borough Director of Integrated Care,"6,517.76"
14/10/2021,1267747,Apex Care Homes Ltd,,Bi-Borough Director of Integrated Care,"1,710.00"
14/10/2021,1267747,Apex Care Homes Ltd,,Bi-Borough Director of Integrated Care,"1,710.00"
12/11/2021,1267747,Apex Care Homes Ltd,,Bi-Borough Director of Integrated Care,"1,710.00"
12/11/2021,1267747,Apex Care Homes Ltd,,Bi-Borough Director of Integrated Care,"1,710.00"
09/12/2021,1267747,Apex Care Homes Ltd,,Bi-Borough Director of Integrated Care,"1,710.00"
09/12/2021,1267747,Apex Care Homes Ltd,,Bi-Borough Director of Integrated Care,"1,710.00"
14/10/2021,1266508,Ashley Healthcare Ltd,,Bi-Borough Director of Integrated Care,"1,700.00"
14/10/2021,1266508,Ashley Healthcare Ltd,,Bi-Borough Director of Integrated Care,"1,700.00"
12/11/2021,1266508,Ashley Healthcare Ltd,,Bi-Borough Director of Integrated Care,"1,700.00"
12/11/2021,1266508,Ashley Healthcare Ltd,,Bi-Borough Director of Integrated Care,"1,700.00"
09/12/2021,1266508,Ashley Healthcare Ltd,,Bi-Borough Director of Integrated Care,"1,700.00"
09/12/2021,1266508,Ashley Healthcare Ltd,,Bi-Borough Director of Integrated Care,"1,700.00"
14/10/2021,1272521,Ashurst Lodge Healthcare Ltd,,Bi-Borough Director of Integrated Care,"2,492.00"
14/10/2021,1272521,Ashurst Lodge Healthcare Ltd,,Bi-Borough Director of Integrated Care,"2,492.00"
12/11/2021,1272521,Ashurst Lodge Healthcare Ltd,,Bi-Borough Director of Integrated Care,"2,492.00"
12/11/2021,1272521,Ashurst Lodge Healthcare Ltd,,Bi-Borough Director of Integrated Care,"2,492.00"
09/12/2021,1272521,Ashurst Lodge Healthcare Ltd,,Bi-Borough Director of Integrated Care,"2,492.00"
09/12/2021,1272521,Ashurst Lodge Healthcare Ltd,,Bi-Borough Director of Integrated Care,"2,492.00"
14/10/2021,1245072,Aster Healthcare Ltd,,Bi-Borough Director of Integrated Care,"3,400.00"
14/10/2021,1245072,Aster Healthcare Ltd,,Bi-Borough Director of Integrated Care,"3,302.40"
12/11/2021,1245072,Aster Healthcare Ltd,,Bi-Borough Director of Integrated Care,"3,400.00"
12/11/2021,1245072,Aster Healthcare Ltd,,Bi-Borough Director of Integrated Care,"3,302.40"
09/12/2021,1245072,Aster Healthcare Ltd,,Bi-Borough Director of Integrated Care,"3,400.00"
09/12/2021,1245072,Aster Healthcare Ltd,,Bi-Borough Director of Integrated Care,"3,302.40"
14/10/2021,1245073,Astoria Healthcare Ltd,,Bi-Borough Director of Integrated Care,"3,600.00"
14/10/2021,1245073,Astoria Healthcare Ltd,,Bi-Borough Director of Integrated Care,"3,600.00"
12/11/2021,1245073,Astoria Healthcare Ltd,,Bi-Borough Director of Integrated Care,"3,600.00"
12/11/2021,1245073,Astoria Healthcare Ltd,,Bi-Borough Director of Integrated Care,"3,600.00"
09/12/2021,1285462,Astoria Healthcare Ltd,,Bi-Borough Director of Integrated Care,"3,600.00"
09/12/2021,1285462,Astoria Healthcare Ltd,,Bi-Borough Director of Integrated Care,"3,600.00"
14/10/2021,1245074,Astra Homes Ltd,,Bi-Borough Director of Integrated Care,"1,750.00"
14/10/2021,1245074,Astra Homes Ltd,,Bi-Borough Director of Integrated Care,"1,750.00"
14/10/2021,1245074,Astra Homes Ltd,,Bi-Borough Director of Integrated Care,"1,600.00"
14/10/2021,1245074,Astra Homes Ltd,,Bi-Borough Director of Integrated Care,"1,600.00"
12/11/2021,1245074,Astra Homes Ltd,,Bi-Borough Director of Integrated Care,"1,750.00"
12/11/2021,1245074,Astra Homes Ltd,,Bi-Borough Director of Integrated Care,"1,750.00"
12/11/2021,1245074,Astra Homes Ltd,,Bi-Borough Director of Integrated Care,"1,600.00"
12/11/2021,1245074,Astra Homes Ltd,,Bi-Borough Director of Integrated Care,"1,600.00"
09/12/2021,1245074,Astra Homes Ltd,,Bi-Borough Director of Integrated Care,"1,750.00"
09/12/2021,1245074,Astra Homes Ltd,,Bi-Borough Director of Integrated Care,"1,750.00"
09/12/2021,1245074,Astra Homes Ltd,,Bi-Borough Director of Integrated Care,"1,600.00"
09/12/2021,1245074,Astra Homes Ltd,,Bi-Borough Director of Integrated Care,"1,600.00"
14/10/2021,1276561,Autumn Lodge Hove Limited,,Bi-Borough Director of Integrated Care,"2,390.00"
14/10/2021,1276561,Autumn Lodge Hove Limited,,Bi-Borough Director of Integrated Care,"2,390.00"
12/11/2021,1276561,Autumn Lodge Hove Limited,,Bi-Borough Director of Integrated Care,"2,390.00"
12/11/2021,1276561,Autumn Lodge Hove Limited,,Bi-Borough Director of Integrated Care,"2,390.00"
09/12/2021,1276561,Autumn Lodge Hove Limited,,Bi-Borough Director of Integrated Care,"2,390.00"
09/12/2021,1276561,Autumn Lodge Hove Limited,,Bi-Borough Director of Integrated Care,"2,390.00"
14/10/2021,1268910,BROWNLOW ENTERPRISES Ltd,,Bi-Borough Director of Integrated Care,"3,000.00"
14/10/2021,1268910,BROWNLOW ENTERPRISES Ltd,,Bi-Borough Director of Integrated Care,"1,800.00"
14/10/2021,1268910,BROWNLOW ENTERPRISES Ltd,,Bi-Borough Director of Integrated Care,"1,800.00"
12/11/2021,1268910,BROWNLOW ENTERPRISES Ltd,,Bi-Borough Director of Integrated Care,"3,000.00"
12/11/2021,1268910,BROWNLOW ENTERPRISES Ltd,,Bi-Borough Director of Integrated Care,"1,800.00"
12/11/2021,1268910,BROWNLOW ENTERPRISES Ltd,,Bi-Borough Director of Integrated Care,"1,800.00"
09/12/2021,1268910,BROWNLOW ENTERPRISES Ltd,,Bi-Borough Director of Integrated Care,"3,000.00"
09/12/2021,1268910,BROWNLOW ENTERPRISES Ltd,,Bi-Borough Director of Integrated Care,"1,800.00"
09/12/2021,1268910,BROWNLOW ENTERPRISES Ltd,,Bi-Borough Director of Integrated Care,"1,800.00"
14/10/2021,1245081,Barchester Healthcare Homes Ltd,,Bi-Borough Director of Integrated Care,"2,720.00"
14/10/2021,1245081,Barchester Healthcare Homes Ltd,,Bi-Borough Director of Integrated Care,"2,720.00"
12/11/2021,1245081,Barchester Healthcare Homes Ltd,,Bi-Borough Director of Integrated Care,"2,720.00"
12/11/2021,1245081,Barchester Healthcare Homes Ltd,,Bi-Borough Director of Integrated Care,"2,720.00"
09/12/2021,1245081,Barchester Healthcare Homes Ltd,,Bi-Borough Director of Integrated Care,"2,720.00"
09/12/2021,1245081,Barchester Healthcare Homes Ltd,,Bi-Borough Director of Integrated Care,"2,720.00"
14/10/2021,1268306,Beresford House,,Bi-Borough Director of Integrated Care,"1,700.00"
14/10/2021,1268306,Beresford House,,Bi-Borough Director of Integrated Care,"1,700.00"
12/11/2021,1268306,Beresford House,,Bi-Borough Director of Integrated Care,"1,700.00"
12/11/2021,1268306,Beresford House,,Bi-Borough Director of Integrated Care,"1,700.00"
09/12/2021,1268306,Beresford House,,Bi-Borough Director of Integrated Care,"1,700.00"
09/12/2021,1268306,Beresford House,,Bi-Borough Director of Integrated Care,"1,700.00"
14/10/2021,1243453,Bupa Care Homes(ANS ) Ltd - T/a,,Bi-Borough Director of Integrated Care,"2,640.72"
12/11/2021,1243453,Bupa Care Homes(ANS ) Ltd - T/a,,Bi-Borough Director of Integrated Care,"2,640.72"
09/12/2021,1243453,Bupa Care Homes(ANS ) Ltd - T/a,,Bi-Borough Director of Integrated Care,"2,640.72"
14/10/2021,1243455,Bupa Care Homes(BNH) Ltd - T/a,,Bi-Borough Director of Integrated Care,"4,419.16"
12/11/2021,1243455,Bupa Care Homes(BNH) Ltd - T/a,,Bi-Borough Director of Integrated Care,"4,419.16"
09/12/2021,1243455,Bupa Care Homes(BNH) Ltd - T/a,,Bi-Borough Director of Integrated Care,"4,419.16"
14/10/2021,1259100,Care Assist Limited,,Bi-Borough Director of Integrated Care,"2,102.00"
14/10/2021,1259100,Care Assist Limited,,Bi-Borough Director of Integrated Care,"2,102.00"
12/11/2021,1259100,Care Assist Limited,,Bi-Borough Director of Integrated Care,"2,102.00"
12/11/2021,1259100,Care Assist Limited,,Bi-Borough Director of Integrated Care,"2,102.00"
09/12/2021,1259100,Care Assist Limited,,Bi-Borough Director of Integrated Care,"2,102.00"
09/12/2021,1259100,Care Assist Limited,,Bi-Borough Director of Integrated Care,"2,102.00"
14/10/2021,1268990,Care UK Partnerships Ltd T/a,,Bi-Borough Director of Integrated Care,"1,340.00"
14/10/2021,1268990,Care UK Partnerships Ltd T/a,,Bi-Borough Director of Integrated Care,"1,340.00"
14/10/2021,1268990,Care UK Partnerships Ltd T/a,,Bi-Borough Director of Integrated Care,"2,740.00"
12/11/2021,1268990,Care UK Partnerships Ltd T/a,,Bi-Borough Director of Integrated Care,685.00
12/11/2021,1268990,Care UK Partnerships Ltd T/a,,Bi-Borough Director of Integrated Care,"1,340.00"
12/11/2021,1268990,Care UK Partnerships Ltd T/a,,Bi-Borough Director of Integrated Care,"1,340.00"
09/12/2021,1268990,Care UK Partnerships Ltd T/a,,Bi-Borough Director of Integrated Care,"1,340.00"
09/12/2021,1268990,Care UK Partnerships Ltd T/a,,Bi-Borough Director of Integrated Care,"1,340.00"
14/10/2021,1245095,Centrust Care Homes Ltd,,Bi-Borough Director of Integrated Care,"5,537.80"
12/11/2021,1245095,Centrust Care Homes Ltd,,Bi-Borough Director of Integrated Care,"5,537.80"
09/12/2021,1245095,Centrust Care Homes Ltd,,Bi-Borough Director of Integrated Care,"5,537.80"
14/10/2021,1243457,Cmg Homes Ltd - The Care House,,Bi-Borough Director of Integrated Care,"6,141.52"
14/10/2021,1243457,Cmg Homes Ltd - The Care House,,Bi-Borough Director of Integrated Care,"6,141.52"
12/11/2021,1243457,Cmg Homes Ltd - The Care House,,Bi-Borough Director of Integrated Care,"6,141.52"
12/11/2021,1243457,Cmg Homes Ltd - The Care House,,Bi-Borough Director of Integrated Care,"6,141.52"
09/12/2021,1243457,Cmg Homes Ltd - The Care House,,Bi-Borough Director of Integrated Care,"6,141.52"
09/12/2021,1243457,Cmg Homes Ltd - The Care House,,Bi-Borough Director of Integrated Care,"6,141.52"
14/10/2021,1243461,Connifers Care Ltd T/a Rowan,,Bi-Borough Director of Integrated Care,"1,220.00"
14/10/2021,1243461,Connifers Care Ltd T/a Rowan,,Bi-Borough Director of Integrated Care,"4,980.00"
14/10/2021,1243461,Connifers Care Ltd T/a Rowan,,Bi-Borough Director of Integrated Care,"1,745.36"
14/10/2021,1243461,Connifers Care Ltd T/a Rowan,,Bi-Borough Director of Integrated Care,"1,745.36"
14/10/2021,1243461,Connifers Care Ltd T/a Rowan,,Bi-Borough Director of Integrated Care,"2,374.00"
14/10/2021,1243461,Connifers Care Ltd T/a Rowan,,Bi-Borough Director of Integrated Care,"2,374.00"
14/10/2021,1243461,Connifers Care Ltd T/a Rowan,,Bi-Borough Director of Integrated Care,"3,061.00"
14/10/2021,1243461,Connifers Care Ltd T/a Rowan,,Bi-Borough Director of Integrated Care,"3,069.00"
12/11/2021,1243461,Connifers Care Ltd T/a Rowan,,Bi-Borough Director of Integrated Care,"2,791.55"
12/11/2021,1243461,Connifers Care Ltd T/a Rowan,,Bi-Borough Director of Integrated Care,"2,791.55"
12/11/2021,1243461,Connifers Care Ltd T/a Rowan,,Bi-Borough Director of Integrated Care,"1,220.00"
12/11/2021,1243461,Connifers Care Ltd T/a Rowan,,Bi-Borough Director of Integrated Care,"4,980.00"
12/11/2021,1243461,Connifers Care Ltd T/a Rowan,,Bi-Borough Director of Integrated Care,"1,745.36"
12/11/2021,1243461,Connifers Care Ltd T/a Rowan,,Bi-Borough Director of Integrated Care,"1,745.36"
12/11/2021,1243461,Connifers Care Ltd T/a Rowan,,Bi-Borough Director of Integrated Care,"2,374.00"
12/11/2021,1243461,Connifers Care Ltd T/a Rowan,,Bi-Borough Director of Integrated Care,"2,374.00"
